﻿Department Family,Entity,Date,Expense Type,Expense Area,Supplier,Transaction Number,Amount,Item Description
BEIS,UKRI - AHRC,03/08/2020,Fees (Including College Members),GCRF - Programme Delivery,Unspecified,98789028,510.00,Fees (Including College Members)
BEIS,UKRI - AHRC,03/08/2020,Fees (Including College Members),GCRF - Programme Delivery,Unspecified,98789029,510.00,Fees (Including College Members)
BEIS,UKRI - AHRC,03/08/2020,Fees (Including College Members),GCRF - Programme Delivery,Unspecified,98789030,510.00,Fees (Including College Members)
BEIS,UKRI - AHRC,03/08/2020,Fees (Including College Members),GCRF - Programme Delivery,Unspecified,98789031,510.00,Fees (Including College Members)
BEIS,UKRI - AHRC,03/08/2020,Fees (Including College Members),GCRF - Programme Delivery,Unspecified,98789032,510.00,Fees (Including College Members)
BEIS,UKRI - AHRC,03/08/2020,Fees (Including College Members),GCRF - Programme Delivery,Unspecified,98789033,690.00,Fees (Including College Members)
BEIS,UKRI - AHRC,03/08/2020,Fees (Including College Members),GCRF - Programme Delivery,Unspecified,98789034,510.00,Fees (Including College Members)
BEIS,UKRI - AHRC,03/08/2020,Fees (Including College Members),GCRF - Programme Delivery,Unspecified,98789035,510.00,Fees (Including College Members)
BEIS,UKRI - AHRC,04/08/2020,Unspecified,SMT,University of Oxford,98788471,20093.20,Secondments
BEIS,UKRI - AHRC,04/08/2020,Recruitment Costs,Corporate Services,Agenda Resource Management Ltd,98789081,153.91,Recruitment Costs
BEIS,UKRI - AHRC,05/08/2020,Health & Safety (inc. Medicals & Opticians),HR,Swindon Occupational Medical Services Ltd,98790087,1400.00,Health & Safety (inc. Medicals & Opticians)
BEIS,UKRI - AHRC,06/08/2020,Fees (Including College Members),Health and Environmental Humanities,Unspecified,98790315,460.00,Fees (Including College Members)
BEIS,UKRI - AHRC,06/08/2020,Fees (Including College Members),Health and Environmental Humanities,Unspecified,98790316,340.00,Fees (Including College Members)
BEIS,UKRI - AHRC,06/08/2020,Fees (Including College Members),Health and Environmental Humanities,Unspecified,98790317,340.00,Fees (Including College Members)
BEIS,UKRI - AHRC,06/08/2020,Fees (Including College Members),Health and Environmental Humanities,Unspecified,98790318,340.00,Fees (Including College Members)
BEIS,UKRI - AHRC,06/08/2020,Non-staff travel and subsistance,Public and Stakeholder Engagement,Unspecified,98791558,92.40,Non-staff travel and subsistance
BEIS,UKRI - AHRC,07/08/2020,T&S Overseas - Flights,Executive Office,Corporate Travel Management (North) Ltd,98790883,7.00,T&S Overseas - Flights
BEIS,UKRI - AHRC,07/08/2020,T&S Overseas - Other Charges,SMT,Corporate Travel Management (North) Ltd,98790883,7.00,T&S Overseas - Other Charges
BEIS,UKRI - AHRC,07/08/2020,T&S Overseas - Other Charges,SMT,Corporate Travel Management (North) Ltd,98790883,242.00,T&S Overseas - Other Charges
BEIS,UKRI - AHRC,07/08/2020,T&S UK - Accommodation,FIC- US,Corporate Travel Management (North) Ltd,98790883,0.80,T&S UK - Accommodation
BEIS,UKRI - AHRC,07/08/2020,T&S UK - Accommodation,FIC- US,Corporate Travel Management (North) Ltd,98790883,256.00,T&S UK - Accommodation
BEIS,UKRI - AHRC,07/08/2020,T&S UK - Accommodation,FIC- US,Corporate Travel Management (North) Ltd,98790883,0.16,T&S UK - Accommodation
BEIS,UKRI - AHRC,07/08/2020,T&S UK - Accommodation,HR,Corporate Travel Management (North) Ltd,98790883,0.80,T&S UK - Accommodation
BEIS,UKRI - AHRC,07/08/2020,T&S UK - Accommodation,HR,Corporate Travel Management (North) Ltd,98790883,70.48,T&S UK - Accommodation
BEIS,UKRI - AHRC,07/08/2020,T&S UK - Accommodation,HR,Corporate Travel Management (North) Ltd,98790883,0.16,T&S UK - Accommodation
BEIS,UKRI - AHRC,07/08/2020,T&S UK - Accommodation,Operations,Corporate Travel Management (North) Ltd,98790883,0.80,T&S UK - Accommodation
BEIS,UKRI - AHRC,07/08/2020,T&S UK - Accommodation,Operations,Corporate Travel Management (North) Ltd,98790883,77.00,T&S UK - Accommodation
BEIS,UKRI - AHRC,07/08/2020,T&S UK - Accommodation,Operations,Corporate Travel Management (North) Ltd,98790883,0.16,T&S UK - Accommodation
BEIS,UKRI - AHRC,07/08/2020,T&S UK - Public Transport,HR,Corporate Travel Management (North) Ltd,98790883,0.25,T&S UK - Public Transport
BEIS,UKRI - AHRC,07/08/2020,T&S UK - Public Transport,HR,Corporate Travel Management (North) Ltd,98790883,74.40,T&S UK - Public Transport
BEIS,UKRI - AHRC,07/08/2020,T&S UK - Other Charges,Public and Stakeholder Engagement,Unspecified,98791033,10.80,T&S UK - Other Charges
BEIS,UKRI - AHRC,10/08/2020,Unspecified,Corporate Services,Iron Mountain (UK) PLC,98523879,-575.11,Data Storage & Recovery
BEIS,UKRI - AHRC,10/08/2020,Unspecified,Corporate Services,Iron Mountain (UK) PLC,98528809,63.44,Data Storage & Recovery
BEIS,UKRI - AHRC,10/08/2020,Unspecified,Corporate Services,Iron Mountain (UK) PLC,98573841,-170.54,Data Storage & Recovery
BEIS,UKRI - AHRC,10/08/2020,Unspecified,Corporate Services,Iron Mountain (UK) PLC,98597718,62.44,Data Storage & Recovery
BEIS,UKRI - AHRC,10/08/2020,Unspecified,Corporate Services,Iron Mountain (UK) PLC,98621700,101.08,Data Storage & Recovery
BEIS,UKRI - AHRC,10/08/2020,Unspecified,Corporate Services,Iron Mountain (UK) PLC,98647252,60.49,Data Storage & Recovery
BEIS,UKRI - AHRC,10/08/2020,Unspecified,Corporate Services,Iron Mountain (UK) PLC,98667339,60.49,Data Storage & Recovery
BEIS,UKRI - AHRC,10/08/2020,Unspecified,Corporate Services,Iron Mountain (UK) PLC,98712179,60.49,Data Storage & Recovery
BEIS,UKRI - AHRC,10/08/2020,Unspecified,Corporate Services,Iron Mountain (UK) PLC,98731560,58.64,Data Storage & Recovery
BEIS,UKRI - AHRC,10/08/2020,Unspecified,Corporate Services,Iron Mountain (UK) PLC,98746658,131.02,Data Storage & Recovery
BEIS,UKRI - AHRC,10/08/2020,Unspecified,Corporate Services,Iron Mountain (UK) PLC,98756452,50.82,Data Storage & Recovery
BEIS,UKRI - AHRC,10/08/2020,Unspecified,Corporate Services,Iron Mountain (UK) PLC,98778700,57.78,Data Storage & Recovery
BEIS,UKRI - AHRC,10/08/2020,Unspecified,Corporate Services,Iron Mountain (UK) PLC,98790987,49.96,Data Storage & Recovery
BEIS,UKRI - AHRC,10/08/2020,Fees (Including College Members),New Programme Development,Unspecified,98791102,170.00,Fees (Including College Members)
BEIS,UKRI - AHRC,10/08/2020,Fees (Including College Members),GCRF - Programme Delivery,Unspecified,98791103,510.00,Fees (Including College Members)
BEIS,UKRI - AHRC,10/08/2020,Fees (Including College Members),New Programme Development,Unspecified,98791105,170.00,Fees (Including College Members)
BEIS,UKRI - AHRC,10/08/2020,Fees (Including College Members),New Programme Development,Unspecified,98791106,230.00,Fees (Including College Members)
BEIS,UKRI - AHRC,10/08/2020,Fees (Including College Members),GCRF - Programme Delivery,Unspecified,98791107,510.00,Fees (Including College Members)
BEIS,UKRI - AHRC,10/08/2020,Fees (Including College Members),New Programme Development,Unspecified,98791108,170.00,Fees (Including College Members)
BEIS,UKRI - AHRC,11/08/2020,Unspecified,SMT,"Keble College, University of Oxford",98778949,27296.04,Secondments
BEIS,UKRI - AHRC,11/08/2020,Research Grant Expenditure,Urban Living,UKRI - Economic & Social Research Council,98790061,-1910.45,Research Grant Expenditure
BEIS,UKRI - AHRC,11/08/2020,Recharges From Councils - General,Health and Environmental Humanities,UKRI - Economic & Social Research Council,98791258,3489.00,Recharges From Councils - General
BEIS,UKRI - AHRC,11/08/2020,T&S UK - Other Charges,Operations,Unspecified,98792558,143.63,T&S UK - Other Charges
BEIS,UKRI - AHRC,11/08/2020,T&S UK - Other Charges,Digital Arts and Humanities and Creative Industries,Unspecified,98792559,114.95,T&S UK - Other Charges
BEIS,UKRI - AHRC,12/08/2020,Fees (Including College Members),GCRF - Programme Delivery,Unspecified,98792584,170.00,Fees (Including College Members)
BEIS,UKRI - AHRC,12/08/2020,Fees (Including College Members),GCRF - Programme Delivery,Unspecified,98792585,170.00,Fees (Including College Members)
BEIS,UKRI - AHRC,12/08/2020,Fees (Including College Members),GCRF - Programme Delivery,Unspecified,98792586,170.00,Fees (Including College Members)
BEIS,UKRI - AHRC,12/08/2020,Fees (Including College Members),New Programme Development,Unspecified,98792653,170.00,Fees (Including College Members)
BEIS,UKRI - AHRC,12/08/2020,Fees (Including College Members),New Programme Development,Unspecified,98792654,170.00,Fees (Including College Members)
BEIS,UKRI - AHRC,12/08/2020,Fees (Including College Members),Health and Environmental Humanities,Unspecified,98792655,340.00,Fees (Including College Members)
BEIS,UKRI - AHRC,12/08/2020,Fees (Including College Members),GCRF - Programme Delivery,Unspecified,98792656,340.00,Fees (Including College Members)
BEIS,UKRI - AHRC,12/08/2020,Fees (Including College Members),GCRF - Programme Delivery,Unspecified,98792657,510.00,Fees (Including College Members)
BEIS,UKRI - AHRC,12/08/2020,Research Grant Expenditure,Follow-on Fund,Bournemouth University,98792720,76873.12,Research Grant Expenditure
BEIS,UKRI - AHRC,12/08/2020,Unspecified,Balance Sheet,HM Revenue & Customs,98794128,75213.05,NI Payable Salaries
BEIS,UKRI - AHRC,12/08/2020,Unspecified,Balance Sheet,HM Revenue & Customs,98794129,57553.67,PAYE Payable Salaries
BEIS,UKRI - AHRC,12/08/2020,Unspecified,Balance Sheet,HM Revenue & Customs,98794130,8411.00,Student Loans
BEIS,UKRI - AHRC,12/08/2020,Unspecified,Corporate Services,HM Revenue & Customs,98794131,1878.00,Apprenticeship Levy
BEIS,UKRI - AHRC,13/08/2020,Fees (Including College Members),GCRF - Programme Delivery,Unspecified,98792987,340.00,Fees (Including College Members)
BEIS,UKRI - AHRC,13/08/2020,Fees (Including College Members),GCRF - Programme Delivery,Unspecified,98792988,340.00,Fees (Including College Members)
BEIS,UKRI - AHRC,13/08/2020,Fees (Including College Members),GCRF - Programme Delivery,Unspecified,98792989,340.00,Fees (Including College Members)
BEIS,UKRI - AHRC,13/08/2020,Fees (Including College Members),GCRF - Programme Delivery,Unspecified,98792990,340.00,Fees (Including College Members)
BEIS,UKRI - AHRC,13/08/2020,Fees (Including College Members),GCRF - Programme Delivery,Unspecified,98792991,340.00,Fees (Including College Members)
BEIS,UKRI - AHRC,13/08/2020,Fees (Including College Members),GCRF - Programme Delivery,Unspecified,98792992,340.00,Fees (Including College Members)
BEIS,UKRI - AHRC,13/08/2020,Voluntary Deductions,Balance Sheet,Chargive,98794132,570.83,Voluntary Deductions
BEIS,UKRI - AHRC,13/08/2020,Union Deductions,Balance Sheet,PCS Union,98794134,68.59,Union Deductions
BEIS,UKRI - AHRC,13/08/2020,Unspecified,Balance Sheet,Unspecified,98794135,12365.35,Ees Pension Deductions - JSS
BEIS,UKRI - AHRC,13/08/2020,Unspecified,Balance Sheet,Unspecified,98794136,54534.31,Ers Pension Deductions - JSS
BEIS,UKRI - AHRC,13/08/2020,Unspecified,Balance Sheet,Scottish Widows,98794137,455.47,Partnership Pension Deductions
BEIS,UKRI - AHRC,13/08/2020,Unspecified,Balance Sheet,Cabinet Office RM Shared Services,98794138,15.80,Ers Pension Deductions - JSS
BEIS,UKRI - AHRC,13/08/2020,Unspecified,Balance Sheet,Cabinet Office RM Shared Services,98794139,7690.07,Ees Pension Deductions - MyCSP
BEIS,UKRI - AHRC,13/08/2020,Unspecified,Balance Sheet,Cabinet Office RM Shared Services,98794140,37100.80,Ers Pension Deductions - MyCSP
BEIS,UKRI - AHRC,13/08/2020,Ees Pension Deductions - MRC,Balance Sheet,UKRI - Medical Research Council,98794141,165.97,Ees Pension Deductions - MRC
BEIS,UKRI - AHRC,13/08/2020,Ers Pension Deductions - MRC,Balance Sheet,UKRI - Medical Research Council,98794142,383.00,Ers Pension Deductions - MRC
BEIS,UKRI - AHRC,13/08/2020,Nursery Deductions,Balance Sheet,UKRI - Engineering & Physical Sciences Research Council,98794143,620.00,Nursery Deductions
BEIS,UKRI - AHRC,14/08/2020,Fees (Including College Members),Operations,Unspecified,98793281,46.80,Fees (Including College Members)
BEIS,UKRI - AHRC,18/08/2020,Recruitment Costs,Operations,Onefix Recruitment Ltd,98797422,150.00,Recruitment Costs
BEIS,UKRI - AHRC,20/08/2020,Non-staff travel and subsistance,Operations,Unspecified,98797224,49.80,Non-staff travel and subsistance
BEIS,UKRI - AHRC,20/08/2020,Fees (Including College Members),New Programme Development,Unspecified,98797225,170.00,Fees (Including College Members)
BEIS,UKRI - AHRC,20/08/2020,Non-staff travel and subsistance,Operations,Unspecified,98797226,112.10,Non-staff travel and subsistance
BEIS,UKRI - AHRC,20/08/2020,Non-staff travel and subsistance,Operations,Unspecified,98797227,37.79,Non-staff travel and subsistance
BEIS,UKRI - AHRC,20/08/2020,Fees (Including College Members),Operations,Unspecified,98797228,230.00,Fees (Including College Members)
BEIS,UKRI - AHRC,20/08/2020,Non-staff travel and subsistance,Funds for International Collaboration (FIC 21 China),Unspecified,98797229,810.25,Non-staff travel and subsistance
BEIS,UKRI - AHRC,21/08/2020,Unspecified,Infrastruture Roadmap,CIPFA,98799039,2100.00,Staff Salaries
BEIS,UKRI - AHRC,24/08/2020,Non-staff travel and subsistance,New Programme Development,Unspecified,98801538,86.20,Non-staff travel and subsistance
BEIS,UKRI - AHRC,24/08/2020,Fees (Including College Members),New Programme Development,Unspecified,98801539,170.00,Fees (Including College Members)
BEIS,UKRI - AHRC,24/08/2020,Research Grant Expenditure,Digital Arts and Humanities and Creative Industries,The Nuffield Foundation,98801640,45000.00,Research Grant Expenditure
BEIS,UKRI - AHRC,25/08/2020,Voluntary Deductions,Balance Sheet,Swindon Office Sports and Social Club,98794133,30.00,Voluntary Deductions
BEIS,UKRI - AHRC,26/08/2020,Conferences & Seminars,SMT,Westminster Forum Projects Ltd,98801053,273.60,Conferences & Seminars
BEIS,UKRI - AHRC,26/08/2020,Conferences & Seminars,SMT,Westminster Forum Projects Ltd,98801053,-7.60,Conferences & Seminars
BEIS,UKRI - AHRC,26/08/2020,Conferences & Seminars,SMT,Westminster Forum Projects Ltd,98801053,-38.00,Conferences & Seminars
BEIS,UKRI - AHRC,26/08/2020,Printing & Stationery,PSU Project Office,Fisher Scientific UK Ltd,98802258,19.02,Printing & Stationery
BEIS,UKRI - AHRC,27/08/2020,Fees (Including College Members),New Programme Development,Unspecified,98802488,170.00,Fees (Including College Members)
BEIS,UKRI - AHRC,27/08/2020,Fees (Including College Members),GCRF - Programme Delivery,Unspecified,98802489,580.00,Fees (Including College Members)
BEIS,UKRI - AHRC,27/08/2020,Fees (Including College Members),Health and Environmental Humanities,Unspecified,98802490,340.00,Fees (Including College Members)
BEIS,UKRI - AHRC,27/08/2020,Fees (Including College Members),Health and Environmental Humanities,Unspecified,98802491,340.00,Fees (Including College Members)
BEIS,UKRI - AHRC,28/08/2020,Non-staff travel and subsistance,Digital Arts and Humanities and Creative Industries,Unspecified,98802708,72.10,Non-staff travel and subsistance
BEIS,UKRI - BBSRC,03/08/2020,Recruitment Costs,PDG - Director,Onefix Recruitment Ltd,98787784,450.00,Recruitment Costs
BEIS,UKRI - BBSRC,03/08/2020,Staff Training,PDG - Director,Corinium Human Resource Management Ltd,98788974,300.00,Staff Training
BEIS,UKRI - BBSRC,04/08/2020,T&S UK - Other Charges,CIMG - Information Management,Unspecified,98789375,25.68,T&S UK - Other Charges
BEIS,UKRI - BBSRC,04/08/2020,T&S UK - Other Charges,CE - IRU,Unspecified,98789376,20.68,T&S UK - Other Charges
BEIS,UKRI - BBSRC,04/08/2020,Research Grant Expenditure,SPF W1 EMBL EBI,EMBL (European Molecular Biology Laboratory),98789780,32916.30,Research Grant Expenditure
BEIS,UKRI - BBSRC,05/08/2020,Unspecified,CE - CPS,University of Southampton,98790067,9947.14,Secondments
BEIS,UKRI - BBSRC,06/08/2020,Recruitment Costs,PDG - Director,Warwick University Services Ltd,98791476,300.00,Recruitment Costs
BEIS,UKRI - BBSRC,06/08/2020,Recruitment Costs,PDG - Director,Warwick University Services Ltd,98791477,300.00,Recruitment Costs
BEIS,UKRI - BBSRC,06/08/2020,Recruitment Costs,PDG - Director,Warwick University Services Ltd,98791480,300.00,Recruitment Costs
BEIS,UKRI - BBSRC,06/08/2020,Recruitment Costs,PDG - Director,Warwick University Services Ltd,98791496,600.00,Recruitment Costs
BEIS,UKRI - BBSRC,06/08/2020,T&S UK - Mileage,CE - Chief Executive,Unspecified,98791615,8.55,T&S UK - Mileage
BEIS,UKRI - BBSRC,06/08/2020,T&S UK - Other Charges,CE - Chief Executive,Unspecified,98791615,2.06,T&S UK - Other Charges
BEIS,UKRI - BBSRC,07/08/2020,T&S Overseas - Accommodation,Science Group,Corporate Travel Management (North) Ltd,98790885,2.00,T&S Overseas - Accommodation
BEIS,UKRI - BBSRC,07/08/2020,T&S Overseas - Accommodation,Science Group,Corporate Travel Management (North) Ltd,98790885,0.40,T&S Overseas - Accommodation
BEIS,UKRI - BBSRC,07/08/2020,T&S UK - Accommodation,CIMG - Director,Corporate Travel Management (North) Ltd,98790885,0.80,T&S UK - Accommodation
BEIS,UKRI - BBSRC,07/08/2020,T&S UK - Accommodation,CIMG - Director,Corporate Travel Management (North) Ltd,98790885,126.00,T&S UK - Accommodation
BEIS,UKRI - BBSRC,07/08/2020,T&S UK - Accommodation,CIMG - Director,Corporate Travel Management (North) Ltd,98790885,0.16,T&S UK - Accommodation
BEIS,UKRI - BBSRC,07/08/2020,T&S UK - Accommodation,Innovation and Skills Group,Corporate Travel Management (North) Ltd,98790885,0.80,T&S UK - Accommodation
BEIS,UKRI - BBSRC,07/08/2020,T&S UK - Accommodation,Innovation and Skills Group,Corporate Travel Management (North) Ltd,98790885,119.00,T&S UK - Accommodation
BEIS,UKRI - BBSRC,07/08/2020,T&S UK - Accommodation,Innovation and Skills Group,Corporate Travel Management (North) Ltd,98790885,0.16,T&S UK - Accommodation
BEIS,UKRI - BBSRC,07/08/2020,T&S UK - Public Transport,Innovation and Skills Group,Corporate Travel Management (North) Ltd,98790885,5.00,T&S UK - Public Transport
BEIS,UKRI - BBSRC,07/08/2020,Unspecified,Balance Sheet,Cabinet Office RM Shared Services,98791585,1046.88,Partnership Pension Deductions
BEIS,UKRI - BBSRC,07/08/2020,Unspecified,FG - Estates,Powis Hughes Ltd,98791642,2895.78,Legal & Professional Services
BEIS,UKRI - BBSRC,07/08/2020,Unspecified,FG - Estates,Powis Hughes Ltd,98791653,420.00,Legal & Professional Services
BEIS,UKRI - BBSRC,10/08/2020,Health & Safety (inc. Medicals & Opticians),PDG - Director,Swindon Occupational Medical Services Ltd,98790133,1225.00,Health & Safety (inc. Medicals & Opticians)
BEIS,UKRI - BBSRC,10/08/2020,Recruitment Costs,PDG - Director,Onefix Recruitment Ltd,98792053,216.00,Recruitment Costs
BEIS,UKRI - BBSRC,11/08/2020,Research Grant Expenditure,Research: Responsive,UKRI - Medical Research Council,98785068,117003.28,Research Grant Expenditure
BEIS,UKRI - BBSRC,11/08/2020,Compensation Payments,FG - Accounts & Business Planning,JSS Pensions Administration,98791784,1267.18,Compensation Payments
BEIS,UKRI - BBSRC,12/08/2020,Unspecified,Balance Sheet,HM Revenue & Customs,98792259,96885.60,PAYE Payable Salaries
BEIS,UKRI - BBSRC,12/08/2020,Unspecified,Balance Sheet,HM Revenue & Customs,98792260,7248.00,Student Loans
BEIS,UKRI - BBSRC,12/08/2020,Unspecified,Balance Sheet,HM Revenue & Customs,98792261,117748.37,NI Payable Salaries
BEIS,UKRI - BBSRC,12/08/2020,Unspecified,FG - Accounts & Business Planning,HM Revenue & Customs,98792262,3006.00,Apprenticeship Levy
BEIS,UKRI - BBSRC,12/08/2020,Unspecified,Balance Sheet,HM Revenue & Customs,98792298,1885.01,PAYE Payable Salaries
BEIS,UKRI - BBSRC,12/08/2020,Unspecified,Balance Sheet,HM Revenue & Customs,98792299,13.98,NI Payable Salaries
BEIS,UKRI - BBSRC,12/08/2020,Unspecified,FG - Accounts & Business Planning,HM Revenue & Customs,98792300,30.00,Apprenticeship Levy
BEIS,UKRI - BBSRC,12/08/2020,Voluntary Deductions,Balance Sheet,St Elizabeth’s Centre,98792301,570.83,Voluntary Deductions
BEIS,UKRI - BBSRC,12/08/2020,Research Institutes - Capital Grants: Major Works,Pirbright,The Pirbright Institute,98792649,48592.26,Research Institutes - Capital Grants: Major Works
BEIS,UKRI - BBSRC,13/08/2020,Union Deductions,Balance Sheet,PCS Union,98792263,85.83,Union Deductions
BEIS,UKRI - BBSRC,13/08/2020,Unspecified,Balance Sheet,Unspecified,98792265,28338.59,Ees Pension Deductions - JSS
BEIS,UKRI - BBSRC,13/08/2020,Unspecified,Balance Sheet,Unspecified,98792266,114170.21,Ers Pension Deductions - JSS
BEIS,UKRI - BBSRC,13/08/2020,Unspecified,Balance Sheet,Scottish Widows Life Assurance,98792267,550.36,Partnership Pension Deductions
BEIS,UKRI - BBSRC,13/08/2020,Unspecified,Balance Sheet,Scottish Widows Life Assurance,98792268,10.00,Other Pension Deductions
BEIS,UKRI - BBSRC,13/08/2020,Unspecified,Balance Sheet,Cabinet Office RM Shared Services,98792269,18.99,Ers Pension Deductions - JSS
BEIS,UKRI - BBSRC,13/08/2020,Unspecified,Balance Sheet,Cabinet Office RM Shared Services,98792270,7156.11,Ees Pension Deductions - MyCSP
BEIS,UKRI - BBSRC,13/08/2020,Unspecified,Balance Sheet,Cabinet Office RM Shared Services,98792271,35884.02,Ers Pension Deductions - MyCSP
BEIS,UKRI - BBSRC,13/08/2020,Voluntary Deductions,Balance Sheet,BHCA (Services) Ltd,98792272,23.80,Voluntary Deductions
BEIS,UKRI - BBSRC,13/08/2020,Nursery Deductions,Balance Sheet,UKRI - Engineering & Physical Sciences Research Council,98792273,1628.00,Nursery Deductions
BEIS,UKRI - BBSRC,13/08/2020,Research Institutes - Capital Grants: Major Works,Pirbright,The Pirbright Institute,98792651,18026.40,Research Institutes - Capital Grants: Major Works
BEIS,UKRI - BBSRC,13/08/2020,Fees (Including College Members),Innovation and Skills Group CDSU,Unspecified,98792998,170.00,Fees (Including College Members)
BEIS,UKRI - BBSRC,13/08/2020,Fees (Including College Members),Innovation and Skills Group CDSU,Unspecified,98792999,170.00,Fees (Including College Members)
BEIS,UKRI - BBSRC,13/08/2020,Fees (Including College Members),Innovation and Skills Group CDSU,Unspecified,98793000,170.00,Fees (Including College Members)
BEIS,UKRI - BBSRC,13/08/2020,Non-staff travel and subsistance,Innovation and Skills Group CDSU,Unspecified,98793001,127.46,Non-staff travel and subsistance
BEIS,UKRI - BBSRC,13/08/2020,Fees (Including College Members),Innovation and Skills Group CDSU,Unspecified,98793002,170.00,Fees (Including College Members)
BEIS,UKRI - BBSRC,13/08/2020,Fees (Including College Members),Innovation and Skills Group CDSU,Unspecified,98793003,340.00,Fees (Including College Members)
BEIS,UKRI - BBSRC,13/08/2020,Fees (Including College Members),Innovation and Skills Group CDSU,Unspecified,98793004,170.00,Fees (Including College Members)
BEIS,UKRI - BBSRC,13/08/2020,Fees (Including College Members),Innovation and Skills Group CDSU,Unspecified,98793005,170.00,Fees (Including College Members)
BEIS,UKRI - BBSRC,13/08/2020,Fees (Including College Members),Innovation and Skills Group CDSU,Unspecified,98793006,170.00,Fees (Including College Members)
BEIS,UKRI - BBSRC,13/08/2020,Fees (Including College Members),Innovation and Skills Group CDSU,Unspecified,98793007,510.00,Fees (Including College Members)
BEIS,UKRI - BBSRC,13/08/2020,Research Grant Expenditure,SPF W1 EMBL EBI,EMBL (European Molecular Biology Laboratory),98794109,11458.20,Research Grant Expenditure
BEIS,UKRI - BBSRC,13/08/2020,Conferences & Seminars,Science Group,Knowinnovation Ltd,98794149,25740.00,Conferences & Seminars
BEIS,UKRI - BBSRC,14/08/2020,Research Grant Expenditure,FG - Accounts & Business Planning,Imperial College London,98793294,1802.50,Research Grant Expenditure
BEIS,UKRI - BBSRC,17/08/2020,Fees (Including College Members),Science Group - Delivery Function,Unspecified,98794689,170.00,Fees (Including College Members)
BEIS,UKRI - BBSRC,17/08/2020,T&S UK - Mileage,FG - Estates,Unspecified,98794795,31.95,T&S UK - Mileage
BEIS,UKRI - BBSRC,17/08/2020,T&S UK - Other Charges,FG - Estates,Unspecified,98794795,43.50,T&S UK - Other Charges
BEIS,UKRI - BBSRC,17/08/2020,T&S UK - Parking Tolls Congestion Charges,FG - Estates,Unspecified,98794795,1.50,T&S UK - Parking Tolls Congestion Charges
BEIS,UKRI - BBSRC,17/08/2020,T&S UK - Other Charges,CIMG - Information Management,Unspecified,98794796,31.99,T&S UK - Other Charges
BEIS,UKRI - BBSRC,18/08/2020,Research Institutes - Competitive Strategic Grant,JIC,John Innes Centre,98790492,21499.99,Research Institutes - Competitive Strategic Grant
BEIS,UKRI - BBSRC,18/08/2020,Research Institutes - Competitive Strategic Grant,JIC,John Innes Centre,98790492,499916.52,Research Institutes - Competitive Strategic Grant
BEIS,UKRI - BBSRC,18/08/2020,Research Institutes - Competitive Strategic Grant,JIC,John Innes Centre,98790492,65333.31,Research Institutes - Competitive Strategic Grant
BEIS,UKRI - BBSRC,18/08/2020,Research Institutes - Competitive Strategic Grant,JIC,John Innes Centre,98790492,513249.85,Research Institutes - Competitive Strategic Grant
BEIS,UKRI - BBSRC,18/08/2020,Research Institutes - Competitive Strategic Grant,JIC,John Innes Centre,98790492,7083.33,Research Institutes - Competitive Strategic Grant
BEIS,UKRI - BBSRC,18/08/2020,Research Institutes - Competitive Strategic Grant,TGAC,Earlham Institute,98790497,167372.13,Research Institutes - Competitive Strategic Grant
BEIS,UKRI - BBSRC,18/08/2020,Research Institutes - Competitive Strategic Grant,TGAC,Earlham Institute,98790497,78195.44,Research Institutes - Competitive Strategic Grant
BEIS,UKRI - BBSRC,18/08/2020,Research Institutes - Competitive Strategic Grant,TGAC,Earlham Institute,98790497,41249.97,Research Institutes - Competitive Strategic Grant
BEIS,UKRI - BBSRC,18/08/2020,Research Institutes - Competitive Strategic Grant,TGAC,Earlham Institute,98790497,33333.31,Research Institutes - Competitive Strategic Grant
BEIS,UKRI - BBSRC,18/08/2020,Research Institutes - Competitive Strategic Grant,TGAC,Earlham Institute,98790497,117765.49,Research Institutes - Competitive Strategic Grant
BEIS,UKRI - BBSRC,18/08/2020,Research Institutes - Competitive Strategic Grant,TGAC,Earlham Institute,98790497,2916.66,Research Institutes - Competitive Strategic Grant
BEIS,UKRI - BBSRC,18/08/2020,Research Institutes - Competitive Strategic Grant,IFR,Quadram Institute Bioscience,98790505,23130.89,Research Institutes - Competitive Strategic Grant
BEIS,UKRI - BBSRC,18/08/2020,Research Institutes - Competitive Strategic Grant,IFR,Quadram Institute Bioscience,98790505,344143.33,Research Institutes - Competitive Strategic Grant
BEIS,UKRI - BBSRC,18/08/2020,Research Institutes - Competitive Strategic Grant,IFR,Quadram Institute Bioscience,98790505,46083.29,Research Institutes - Competitive Strategic Grant
BEIS,UKRI - BBSRC,18/08/2020,Research Institutes - Competitive Strategic Grant,IFR,Quadram Institute Bioscience,98790505,265775.16,Research Institutes - Competitive Strategic Grant
BEIS,UKRI - BBSRC,18/08/2020,Research Institutes - Competitive Strategic Grant,IFR,Quadram Institute Bioscience,98790505,5833.33,Research Institutes - Competitive Strategic Grant
BEIS,UKRI - BBSRC,18/08/2020,Research Institutes - Capital Grants: Major Works,IFR,Quadram Institute Bioscience,98790512,121433.25,Research Institutes - Capital Grants: Major Works
BEIS,UKRI - BBSRC,18/08/2020,Research Institutes - Competitive Strategic Grant,Babraham Institute,Babraham Institute,98790556,352459.91,Research Institutes - Competitive Strategic Grant
BEIS,UKRI - BBSRC,18/08/2020,Research Institutes - Competitive Strategic Grant,Babraham Institute,Babraham Institute,98790556,48750.01,Research Institutes - Competitive Strategic Grant
BEIS,UKRI - BBSRC,18/08/2020,Research Institutes - Competitive Strategic Grant,Babraham Institute,Babraham Institute,98790556,395666.75,Research Institutes - Competitive Strategic Grant
BEIS,UKRI - BBSRC,18/08/2020,Research Institutes - Competitive Strategic Grant,Babraham Institute,Babraham Institute,98790556,5833.33,Research Institutes - Competitive Strategic Grant
BEIS,UKRI - BBSRC,18/08/2020,Research Institutes - Competitive Strategic Grant,IBERS,Aberystwyth University,98791527,86360.99,Research Institutes - Competitive Strategic Grant
BEIS,UKRI - BBSRC,18/08/2020,Research Institutes - Competitive Strategic Grant,IBERS,Aberystwyth University,98791527,46980.67,Research Institutes - Competitive Strategic Grant
BEIS,UKRI - BBSRC,18/08/2020,Research Institutes - Competitive Strategic Grant,IBERS,Aberystwyth University,98791527,2916.67,Research Institutes - Competitive Strategic Grant
BEIS,UKRI - BBSRC,18/08/2020,Research Institutes - Competitive Strategic Grant,Pirbright,The Pirbright Institute,98791636,816143.92,Research Institutes - Competitive Strategic Grant
BEIS,UKRI - BBSRC,18/08/2020,Research Institutes - Competitive Strategic Grant,Pirbright,The Pirbright Institute,98791636,233969.59,Research Institutes - Competitive Strategic Grant
BEIS,UKRI - BBSRC,18/08/2020,Research Institutes - Competitive Strategic Grant,Pirbright,The Pirbright Institute,98791636,33329.00,Research Institutes - Competitive Strategic Grant
BEIS,UKRI - BBSRC,18/08/2020,Research Institutes - Competitive Strategic Grant,Pirbright,The Pirbright Institute,98791636,199807.36,Research Institutes - Competitive Strategic Grant
BEIS,UKRI - BBSRC,18/08/2020,Research Institutes - Competitive Strategic Grant,Pirbright,The Pirbright Institute,98791636,4166.13,Research Institutes - Competitive Strategic Grant
BEIS,UKRI - BBSRC,18/08/2020,Research Institutes - Competitive Strategic Grant,EBRC (Roslin),University of Edinburgh,98792547,277179.92,Research Institutes - Competitive Strategic Grant
BEIS,UKRI - BBSRC,18/08/2020,Research Institutes - Competitive Strategic Grant,EBRC (Roslin),University of Edinburgh,98792547,206087.50,Research Institutes - Competitive Strategic Grant
BEIS,UKRI - BBSRC,18/08/2020,Research Institutes - Competitive Strategic Grant,EBRC (Roslin),University of Edinburgh,98792547,5833.33,Research Institutes - Competitive Strategic Grant
BEIS,UKRI - BBSRC,18/08/2020,Institute Grant Expenditure,Rothamsted Research,Rothamsted Research Ltd,98796419,49250.00,Institute Grant Expenditure
BEIS,UKRI - BBSRC,18/08/2020,Research Institutes - Competitive Strategic Grant,Rothamsted Research,Rothamsted Research Ltd,98796420,111253.33,Research Institutes - Competitive Strategic Grant
BEIS,UKRI - BBSRC,18/08/2020,Research Institutes - Competitive Strategic Grant,Rothamsted Research,Rothamsted Research Ltd,98796420,418416.67,Research Institutes - Competitive Strategic Grant
BEIS,UKRI - BBSRC,18/08/2020,Research Institutes - Competitive Strategic Grant,Rothamsted Research,Rothamsted Research Ltd,98796420,64666.67,Research Institutes - Competitive Strategic Grant
BEIS,UKRI - BBSRC,18/08/2020,Research Institutes - Competitive Strategic Grant,Rothamsted Research,Rothamsted Research Ltd,98796420,197000.00,Research Institutes - Competitive Strategic Grant
BEIS,UKRI - BBSRC,18/08/2020,Research Institutes - Competitive Strategic Grant,Rothamsted Research,Rothamsted Research Ltd,98796420,7083.33,Research Institutes - Competitive Strategic Grant
BEIS,UKRI - BBSRC,18/08/2020,Recruitment Costs,PDG - Director,Onefix Recruitment Ltd,98797424,450.00,Recruitment Costs
BEIS,UKRI - BBSRC,19/08/2020,Rates,JBOS - Maintenance,Swindon Borough Council,98798579,64000.00,Rates
BEIS,UKRI - BBSRC,21/08/2020,Recruitment Costs,PDG - Director,Agenda Resource Management Ltd,98798769,153.91,Recruitment Costs
BEIS,UKRI - BBSRC,21/08/2020,Health & Safety (inc. Medicals & Opticians),Innovation and Skills Group,Unspecified,98799126,17.00,Health & Safety (inc. Medicals & Opticians)
BEIS,UKRI - BBSRC,24/08/2020,Other Programme Costs,FG - Estates,Rothamsted Research Ltd,98793097,96183.81,Other Programme Costs
BEIS,UKRI - BBSRC,24/08/2020,Research Institutes - Capital Grants: Minor Works,Pirbright,The Pirbright Institute,98794165,413012.84,Research Institutes - Capital Grants: Minor Works
BEIS,UKRI - BBSRC,24/08/2020,Research Grant Expenditure,SPF W1 EMBL EBI,EMBL (European Molecular Biology Laboratory),98796818,149850.00,Research Grant Expenditure
BEIS,UKRI - BBSRC,24/08/2020,Research Grant Expenditure,SPF W1 EMBL EBI,EMBL (European Molecular Biology Laboratory),98796913,7208.09,Research Grant Expenditure
BEIS,UKRI - BBSRC,24/08/2020,Research Institutes - Capital Grants: Major Works,Pirbright,The Pirbright Institute,98797142,94598.95,Research Institutes - Capital Grants: Major Works
BEIS,UKRI - BBSRC,24/08/2020,Research Institutes - Capital Grants: Major Works,Pirbright,The Pirbright Institute,98797543,1246583.31,Research Institutes - Capital Grants: Major Works
BEIS,UKRI - BBSRC,24/08/2020,Fees (Including College Members),Innovation and Skills Group CDSU,Unspecified,98800567,230.00,Fees (Including College Members)
BEIS,UKRI - BBSRC,24/08/2020,Fees (Including College Members),Innovation and Skills Group CDSU,Unspecified,98800568,170.00,Fees (Including College Members)
BEIS,UKRI - BBSRC,24/08/2020,Fees (Including College Members),Innovation and Skills Group CDSU,Unspecified,98800569,460.00,Fees (Including College Members)
BEIS,UKRI - BBSRC,24/08/2020,Fees (Including College Members),Innovation and Skills Group CDSU,Unspecified,98800570,170.00,Fees (Including College Members)
BEIS,UKRI - BBSRC,24/08/2020,Fees (Including College Members),Innovation and Skills Group CDSU,Unspecified,98800571,340.00,Fees (Including College Members)
BEIS,UKRI - BBSRC,24/08/2020,Fees (Including College Members),Innovation and Skills Group CDSU,Unspecified,98800572,340.00,Fees (Including College Members)
BEIS,UKRI - BBSRC,24/08/2020,Fees (Including College Members),Innovation and Skills Group CDSU,Unspecified,98800573,510.00,Fees (Including College Members)
BEIS,UKRI - BBSRC,24/08/2020,Fees (Including College Members),Innovation and Skills Group CDSU,Unspecified,98800574,170.00,Fees (Including College Members)
BEIS,UKRI - BBSRC,24/08/2020,Fees (Including College Members),Innovation and Skills Group CDSU,Unspecified,98800575,340.00,Fees (Including College Members)
BEIS,UKRI - BBSRC,24/08/2020,Fees (Including College Members),Innovation and Skills Group CDSU,Unspecified,98800576,170.00,Fees (Including College Members)
BEIS,UKRI - BBSRC,24/08/2020,Fees (Including College Members),Innovation and Skills Group CDSU,Unspecified,98800577,340.00,Fees (Including College Members)
BEIS,UKRI - BBSRC,24/08/2020,Fees (Including College Members),Innovation and Skills Group CDSU,Unspecified,98800578,170.00,Fees (Including College Members)
BEIS,UKRI - BBSRC,24/08/2020,Fees (Including College Members),Innovation and Skills Group CDSU,Unspecified,98800579,340.00,Fees (Including College Members)
BEIS,UKRI - BBSRC,24/08/2020,Fees (Including College Members),Innovation and Skills Group CDSU,Unspecified,98800580,340.00,Fees (Including College Members)
BEIS,UKRI - BBSRC,24/08/2020,Fees (Including College Members),Innovation and Skills Group CDSU,Unspecified,98800581,340.00,Fees (Including College Members)
BEIS,UKRI - BBSRC,24/08/2020,Fees (Including College Members),Innovation and Skills Group CDSU,Unspecified,98800582,340.00,Fees (Including College Members)
BEIS,UKRI - BBSRC,24/08/2020,Fees (Including College Members),Innovation and Skills Group CDSU,Unspecified,98800583,170.00,Fees (Including College Members)
BEIS,UKRI - BBSRC,24/08/2020,Fees (Including College Members),Innovation and Skills Group CDSU,Unspecified,98800584,460.00,Fees (Including College Members)
BEIS,UKRI - BBSRC,24/08/2020,Fees (Including College Members),Innovation and Skills Group CDSU,Unspecified,98800585,170.00,Fees (Including College Members)
BEIS,UKRI - BBSRC,24/08/2020,Fees (Including College Members),Innovation and Skills Group CDSU,Unspecified,98800586,340.00,Fees (Including College Members)
BEIS,UKRI - BBSRC,24/08/2020,Fees (Including College Members),Innovation and Skills Group CDSU,Unspecified,98800587,340.00,Fees (Including College Members)
BEIS,UKRI - BBSRC,24/08/2020,Fees (Including College Members),Innovation and Skills Group CDSU,Unspecified,98800588,170.00,Fees (Including College Members)
BEIS,UKRI - BBSRC,24/08/2020,Fees (Including College Members),Innovation and Skills Group CDSU,Unspecified,98800589,170.00,Fees (Including College Members)
BEIS,UKRI - BBSRC,24/08/2020,Fees (Including College Members),Innovation and Skills Group CDSU,Unspecified,98800590,340.00,Fees (Including College Members)
BEIS,UKRI - BBSRC,24/08/2020,Fees (Including College Members),CE - CPS,Unspecified,98801462,170.00,Fees (Including College Members)
BEIS,UKRI - BBSRC,25/08/2020,Voluntary Deductions,Balance Sheet,Swindon Office Sports and Social Club,98792264,54.00,Voluntary Deductions
BEIS,UKRI - BBSRC,25/08/2020,Recruitment Costs,PDG - Director,Onefix Recruitment Ltd,98797735,1758.00,Recruitment Costs
BEIS,UKRI - BBSRC,25/08/2020,T&S UK - Vehicle Hire,FG - Estates,Enterprise Rent-A-Car UK Ltd,98801920,28.83,T&S UK - Vehicle Hire
BEIS,UKRI - BBSRC,25/08/2020,T&S UK - Vehicle Hire,FG - Estates,Enterprise Rent-A-Car UK Ltd,98801920,144.16,T&S UK - Vehicle Hire
BEIS,UKRI - BBSRC,25/08/2020,T&S UK - Subsistence,FG - Estates,Unspecified,98802030,25.00,T&S UK - Subsistence
BEIS,UKRI - BBSRC,25/08/2020,T&S UK - Subsistence,FG - Estates,Unspecified,98802030,16.50,T&S UK - Subsistence
BEIS,UKRI - BBSRC,25/08/2020,T&S UK - Subsistence,FG - Estates,Unspecified,98802030,5.00,T&S UK - Subsistence
BEIS,UKRI - BBSRC,26/08/2020,Research Grant Expenditure,CE - IRU,Unspecified,98801616,3530.87,Research Grant Expenditure
BEIS,UKRI - BBSRC,27/08/2020,Research Grant Expenditure,SPF W1 EMBL EBI,EMBL (European Molecular Biology Laboratory),98801303,10000.00,Research Grant Expenditure
BEIS,UKRI - BBSRC,27/08/2020,T&S UK - Public Transport,CIMG - Director,Unspecified,98801385,12.80,T&S UK - Public Transport
BEIS,UKRI - BBSRC,27/08/2020,T&S UK - Subsistence,CIMG - Director,Unspecified,98801385,19.45,T&S UK - Subsistence
BEIS,UKRI - BBSRC,27/08/2020,T&S UK - Subsistence,CIMG - Director,Unspecified,98801385,5.00,T&S UK - Subsistence
BEIS,UKRI - BBSRC,27/08/2020,T&S UK - Subsistence,CIMG - Director,Unspecified,98801385,2.60,T&S UK - Subsistence
BEIS,UKRI - BBSRC,27/08/2020,T&S UK - Vehicle Hire,CIMG - Director,Unspecified,98801385,51.39,T&S UK - Vehicle Hire
BEIS,UKRI - BBSRC,28/08/2020,Research Grant Expenditure,FG - Accounts & Business Planning,Imperial College London,98793031,7527.26,Research Grant Expenditure
BEIS,UKRI - BBSRC,28/08/2020,Research Grant Expenditure,FG - Accounts & Business Planning,University of Glasgow,98793320,7763.91,Research Grant Expenditure
BEIS,UKRI - BBSRC,28/08/2020,Unspecified,PDG - Director,Reward Connected,98802678,900.00,Legal & Professional Services
BEIS,UKRI - BBSRC,28/08/2020,T&S UK - Other Charges,FG - Estates,Unspecified,98802780,41.98,T&S UK - Other Charges
BEIS,UKRI - UKRI,03/08/2020,Unspecified,UKRI - Private Office,Department for Business Energy & Industrial Strategy,98450672,7056.79,Secondments
BEIS,UKRI - UKRI,03/08/2020,Unspecified,UKRI - Private Office,Department for Business Energy & Industrial Strategy,98450672,68400.01,Secondments
BEIS,UKRI - UKRI,03/08/2020,T&S UK - Other Charges,UKRI - PSU IT Costs/BAU,Unspecified,98729842,199.18,T&S UK - Other Charges
BEIS,UKRI - UKRI,03/08/2020,T&S UK - Other Charges,UKRI - Research Funding Support,Unspecified,98733099,108.97,T&S UK - Other Charges
BEIS,UKRI - UKRI,03/08/2020,Unspecified,UKRI - Internal Communications,Rachel Everington Marketing Ltd,98744686,87.50,Contract Staff
BEIS,UKRI - UKRI,03/08/2020,Unspecified,UKRI - Internal Communications,Rachel Everington Marketing Ltd,98744686,3762.50,Contract Staff
BEIS,UKRI - UKRI,03/08/2020,Unspecified,UKRI - Digital Data and Technology BAU Costs,Objective Corporation Ltd,98778408,10129.19,Legal & Professional Services
BEIS,UKRI - UKRI,03/08/2020,Unspecified,UKRI - Digital Data and Technology Project Costs,Alexander Mann Solutions Ltd,98784586,20017.80,Contract Staff
BEIS,UKRI - UKRI,03/08/2020,Recruitment Costs,UKRI - Financial Accounting,Onefix Recruitment Ltd,98785353,150.00,Recruitment Costs
BEIS,UKRI - UKRI,03/08/2020,T&S UK - Other Charges,UKRI - Research Funding Support,Unspecified,98786404,164.99,T&S UK - Other Charges
BEIS,UKRI - UKRI,03/08/2020,Unspecified,UKRI - Digital Data and Technology Project Costs,Alexander Mann Solutions Ltd,98786444,9423.76,Contract Staff
BEIS,UKRI - UKRI,03/08/2020,Recruitment Costs,UKRI - Funding Service,Alexander Mann Solutions Ltd,98786446,4619.52,Recruitment Costs
BEIS,UKRI - UKRI,03/08/2020,Unspecified,UKRI - Internal Communications,Rachel Everington Marketing Ltd,98787264,-3762.50,Contract Staff
BEIS,UKRI - UKRI,03/08/2020,Unspecified,UKRI - Internal Communications,Rachel Everington Marketing Ltd,98787264,-87.50,Contract Staff
BEIS,UKRI - UKRI,03/08/2020,Postage & Courier Services,UKRI - JBOS,Fedex Express UK Transportation Ltd,98788235,901.72,Postage & Courier Services
BEIS,UKRI - UKRI,03/08/2020,Purchase of non capital equipment,UKRI - Financial Accounting,RS Components,98788398,16.32,Purchase of non capital equipment
BEIS,UKRI - UKRI,03/08/2020,Recruitment Costs,UKRI People and Organisation Development,PERRETT LAVER LTD,98788683,20160.00,Recruitment Costs
BEIS,UKRI - UKRI,03/08/2020,Recruitment Costs,UKRI - Executive Group,Alexander Mann Solutions Ltd,98788952,32767.49,Recruitment Costs
BEIS,UKRI - UKRI,03/08/2020,Recruitment Costs,UKRI - Funding Service,Alexander Mann Solutions Ltd,98788958,4619.52,Recruitment Costs
BEIS,UKRI - UKRI,03/08/2020,Unspecified,UKRI - Project Management Office,Alexander Mann Solutions Ltd,98788970,4410.36,Agency Staff
BEIS,UKRI - UKRI,03/08/2020,Consultancy Services,UKRI - Governance,Alexander Mann Solutions Ltd,98788972,2520.24,Consultancy Services
BEIS,UKRI - UKRI,03/08/2020,Unspecified,UKRI - Financial Accounting,Alexander Mann Solutions Ltd,98788973,7391.16,Contract Staff
BEIS,UKRI - UKRI,03/08/2020,Unspecified,UKRI - Financial Accounting,Alexander Mann Solutions Ltd,98788982,2771.70,Contract Staff
BEIS,UKRI - UKRI,03/08/2020,Meetings & Catering,UKRI - Estates,ISS Mediclean Ltd,98789010,10967.10,Meetings & Catering
BEIS,UKRI - UKRI,03/08/2020,Unspecified,UKRI - Assurance,Cambridge Risk Solutions Ltd,98789037,2520.00,Legal & Professional Services
BEIS,UKRI - EPSRC,03/08/2020,Fees (Including College Members),Materials OpEx,Unspecified,98789038,160.00,Fees (Including College Members)
BEIS,UKRI - UKRI,03/08/2020,Recruitment Costs,UKRI People and Organisation Development,Agenda Resource Management Ltd,98789084,56.11,Recruitment Costs
BEIS,UKRI - UKRI,03/08/2020,Recruitment Costs,UKRI People and Organisation Development,Agenda Resource Management Ltd,98789089,56.11,Recruitment Costs
BEIS,UKRI - UKRI,03/08/2020,Recruitment Costs,UKRI People and Organisation Development,Agenda Resource Management Ltd,98789090,56.11,Recruitment Costs
BEIS,UKRI - UKRI,03/08/2020,Recruitment Costs,UKRI People and Organisation Development,Agenda Resource Management Ltd,98789095,56.11,Recruitment Costs
BEIS,UKRI - UKRI,03/08/2020,Recruitment Costs,UKRI People and Organisation Development,Agenda Resource Management Ltd,98789099,56.11,Recruitment Costs
BEIS,UKRI - EPSRC,03/08/2020,T&S UK - Other Charges,Programme Delivery Manufacturing,Unspecified,98789186,110.93,T&S UK - Other Charges
BEIS,UKRI - Research England,03/08/2020,Meetings & Catering,RE - Research,Main Events Products Ltd,98789473,607.80,Meetings & Catering
BEIS,UKRI - UKRI,03/08/2020,Meetings & Catering,UKRI - Estates,Nisbets PLC,98789529,-12.42,Meetings & Catering
BEIS,UKRI - UKRI,03/08/2020,Meetings & Catering,UKRI - Estates,Nisbets PLC,98789529,124.20,Meetings & Catering
BEIS,UKRI - UKRI,03/08/2020,Other Bought In Services,UKRI - Estates,Nisbets PLC,98789531,158.25,Other Bought In Services
BEIS,UKRI - UKRI,04/08/2020,T&S UK - Public Transport,UKRI - Communication and Engagement,Unspecified,98688433,22.50,T&S UK - Public Transport
BEIS,UKRI - UKRI,04/08/2020,Purchase of non capital equipment,UKRI - JBOS,Premier Farnell UK Ltd T/A Farnell Onecall,98690086,6.74,Purchase of non capital equipment
BEIS,UKRI - UKRI,04/08/2020,Purchase of non capital equipment,UKRI - JBOS,Premier Farnell UK Ltd T/A Farnell Onecall,98690086,1.77,Purchase of non capital equipment
BEIS,UKRI - UKRI,04/08/2020,Purchase of non capital equipment,UKRI - JBOS,Premier Farnell UK Ltd T/A Farnell Onecall,98690086,0.35,Purchase of non capital equipment
BEIS,UKRI - UKRI,04/08/2020,Computer Hardware,UKRI - Digital Data and Technology Recharges,Software Box Ltd,98755080,111.60,Computer Hardware
BEIS,UKRI - UKRI,04/08/2020,IT / Computing Support Services,UKRI - Digital Data and Technology BAU Costs,Vyopta Incorporated,98766731,47066.10,IT / Computing Support Services
BEIS,UKRI - UKRI,04/08/2020,T&S UK - Other Charges,UKRI - Communication and Engagement,Unspecified,98766886,42.83,T&S UK - Other Charges
BEIS,UKRI - UKRI,04/08/2020,Computer Hardware,UKRI - Digital Data and Technology Recharges,Bechtle Direct Ltd,98776169,44.59,Computer Hardware
BEIS,UKRI - UKRI,04/08/2020,Computing Consumables,UKRI - Digital Data and Technology BAU Costs,UK Shared Business Services Ltd,98780388,92740.09,Computing Consumables
BEIS,UKRI - UKRI,04/08/2020,IT / Computing Support Services,UKRI - Digital Data and Technology Project Costs,UK Shared Business Services Ltd,98780390,112989.64,IT / Computing Support Services
BEIS,UKRI - UKRI,04/08/2020,Recharges From Councils - General,UKRI - UKRO,UKRI - Science & Technology Facilities Council,98781930,14339.10,Recharges From Councils - General
BEIS,UKRI - UKRI,04/08/2020,General Building Maintenance,UKRI - JBOS,Interior Design And Developments,98785191,3540.00,General Building Maintenance
BEIS,UKRI - UKRI,04/08/2020,Computer Software Licences,UKRI - Digital Data and Technology BAU Costs,Softcat plc,98785905,196.34,Computer Software Licences
BEIS,UKRI - UKRI,04/08/2020,Telecoms - Non Capital Hardware Costs,UKRI - Digital Data and Technology Recharges,Telefonica UK Ltd (O2),98786531,123.60,Telecoms - Non Capital Hardware Costs
BEIS,UKRI - UKRI,04/08/2020,Telecoms - Non Capital Hardware Costs,UKRI - Digital Data and Technology Recharges,Telefonica UK Ltd (O2),98786533,2779.20,Telecoms - Non Capital Hardware Costs
BEIS,UKRI - UKRI,04/08/2020,Telecoms - Non Capital Hardware Costs,UKRI - Digital Data and Technology BAU Costs,Telefonica UK Ltd (O2),98786673,706.80,Telecoms - Non Capital Hardware Costs
BEIS,UKRI - UKRI,04/08/2020,Advertising & Promotion,UKRI - Communications Projects and Services,Andrew Lloyd T/A: Andy Lloyd Photography,98787556,450.00,Advertising & Promotion
BEIS,UKRI - UKRI,04/08/2020,Fees (Including College Members),UKRI - GCRF Delivery,Unspecified,98787626,161.30,Fees (Including College Members)
BEIS,UKRI - UKRI,04/08/2020,Safety Materials & Equipment,UKRI - Estates,RS Components,98787972,19.99,Safety Materials & Equipment
BEIS,UKRI - UKRI,04/08/2020,Non-staff travel and subsistance,UKRI - Global Engagement,Unspecified,98788189,311.90,Non-staff travel and subsistance
BEIS,UKRI - UKRI,04/08/2020,General Building Maintenance,UKRI - Estates,Wernick Refurbished Buildings Ltd,98788192,35565.60,General Building Maintenance
BEIS,UKRI - UKRI,04/08/2020,Recruitment Costs,UKRI People and Organisation Development,Agenda Resource Management Ltd,98789083,153.91,Recruitment Costs
BEIS,UKRI - Research England,04/08/2020,Recruitment Costs,RE - Operations and Private Office,Agenda Resource Management Ltd,98789085,153.91,Recruitment Costs
BEIS,UKRI - UKRI,04/08/2020,Recruitment Costs,UKRI People and Organisation Development,Agenda Resource Management Ltd,98789087,153.91,Recruitment Costs
BEIS,UKRI - UKRI,04/08/2020,Recruitment Costs,UKRI People and Organisation Development,Agenda Resource Management Ltd,98789088,153.91,Recruitment Costs
BEIS,UKRI - UKRI,04/08/2020,Recruitment Costs,UKRI People and Organisation Development,Agenda Resource Management Ltd,98789091,71.95,Recruitment Costs
BEIS,UKRI - UKRI,04/08/2020,Recruitment Costs,UKRI People and Organisation Development,Agenda Resource Management Ltd,98789091,155.36,Recruitment Costs
BEIS,UKRI - EPSRC,04/08/2020,Recruitment Costs,EPSRC Corporate Services,Agenda Resource Management Ltd,98789093,153.91,Recruitment Costs
BEIS,UKRI - UKRI,04/08/2020,Recruitment Costs,UKRI People and Organisation Development,Agenda Resource Management Ltd,98789094,153.91,Recruitment Costs
BEIS,UKRI - UKRI,04/08/2020,Recruitment Costs,UKRI People and Organisation Development,Agenda Resource Management Ltd,98789096,153.91,Recruitment Costs
BEIS,UKRI - UKRI,04/08/2020,Recruitment Costs,UKRI People and Organisation Development,Agenda Resource Management Ltd,98789097,153.91,Recruitment Costs
BEIS,UKRI - UKRI,04/08/2020,Recruitment Costs,UKRI People and Organisation Development,Agenda Resource Management Ltd,98789098,153.91,Recruitment Costs
BEIS,UKRI - UKRI,04/08/2020,Consumables,UKRI - JRS,Antalis Ltd t/a Antalis Document Supplies,98789332,0.01,Consumables
BEIS,UKRI - UKRI,04/08/2020,Consumables,UKRI - JRS,Antalis Ltd t/a Antalis Document Supplies,98789332,248.52,Consumables
BEIS,UKRI - UKRI,04/08/2020,Marketing & PR,UKRI - Communications Content,McDaid Public Relations Ltd,98789356,840.00,Marketing & PR
BEIS,UKRI - UKRI,04/08/2020,Purchase of non capital equipment,UKRI - JBOS,Premier Farnell UK Ltd T/A Farnell Onecall,98789464,-2.14,Purchase of non capital equipment
BEIS,UKRI - UKRI,04/08/2020,Advertising & Promotion,UKRI - Communications Content,CASS Productions Ltd,98789669,240.00,Advertising & Promotion
BEIS,UKRI - UKRI,04/08/2020,Consultancy Services,UKRI - Strategy,Butler Meridian Ltd,98789741,420.00,Consultancy Services
BEIS,UKRI - UKRI,04/08/2020,Unspecified,UKRI - Digital Data and Technology Project Costs,TMI Systems Ltd,98789756,1494.00,Legal & Professional Services
BEIS,UKRI - UKRI,04/08/2020,Consumables,UKRI - JRS,Antalis Ltd t/a Antalis Document Supplies,98789962,395.64,Consumables
BEIS,UKRI - UKRI,04/08/2020,Consumables,UKRI - JRS,Antalis Ltd t/a Antalis Document Supplies,98789962,0.01,Consumables
BEIS,UKRI - UKRI,04/08/2020,T&S UK - Other Charges,UKRI - Strategic Finance Business Partners,Unspecified,98790036,8.77,T&S UK - Other Charges
BEIS,UKRI - UKRI,04/08/2020,T&S UK - Public Transport,UKRI - Digital Data and Technology BAU Costs,Unspecified,98790038,27.20,T&S UK - Public Transport
BEIS,UKRI - UKRI,04/08/2020,T&S UK - Subsistence,UKRI - Digital Data and Technology BAU Costs,Unspecified,98790038,5.75,T&S UK - Subsistence
BEIS,UKRI - UKRI,04/08/2020,T&S UK - Other Charges,UKRI - Communications Content,Unspecified,98790040,22.80,T&S UK - Other Charges
BEIS,UKRI - EPSRC,04/08/2020,T&S UK - Other Charges,Programme Delivery Energy,Unspecified,98790041,184.37,T&S UK - Other Charges
BEIS,UKRI - UKRI,05/08/2020,Cleaning & Sterilisation,UKRI - JBOS,Premier Farnell UK Ltd T/A Farnell Onecall,98766842,109.04,Cleaning & Sterilisation
BEIS,UKRI - UKRI,05/08/2020,Electricity,UKRI - JBOS,EDF Energy,98766870,28021.09,Electricity
BEIS,UKRI - UKRI,05/08/2020,Cleaning Services,UKRI - JBOS,Premier Farnell UK Ltd T/A Farnell Onecall,98771966,284.87,Cleaning Services
BEIS,UKRI - UKRI,05/08/2020,Cleaning & Sterilisation,UKRI - JBOS,Premier Farnell UK Ltd T/A Farnell Onecall,98772141,84.90,Cleaning & Sterilisation
BEIS,UKRI - UKRI,05/08/2020,Unspecified,UKRI - Funding Service,Alexander Mann Solutions Ltd,98785921,2543.88,Contract Staff
BEIS,UKRI - UKRI,05/08/2020,Unspecified,UKRI - Digital Data and Technology Project Costs,Alexander Mann Solutions Ltd,98785930,2205.18,Contract Staff
BEIS,UKRI - UKRI,05/08/2020,Unspecified,UKRI - Digital Data and Technology BAU Costs,Alexander Mann Solutions Ltd,98786445,2494.54,Contract Staff
BEIS,UKRI - UKRI,05/08/2020,Unspecified,UKRI - Digital Data and Technology BAU Costs,Alexander Mann Solutions Ltd,98786458,1260.12,Contract Staff
BEIS,UKRI - UKRI,05/08/2020,Unspecified,UKRI - Digital Data and Technology Project Costs,Alexander Mann Solutions Ltd,98786463,4003.56,Contract Staff
BEIS,UKRI - UKRI,05/08/2020,Unspecified,UKRI - Funding Service,Alexander Mann Solutions Ltd,98786464,3911.16,Contract Staff
BEIS,UKRI - UKRI,05/08/2020,Unspecified,UKRI - Digital Data and Technology BAU Costs,Alexander Mann Solutions Ltd,98786468,1847.77,Contract Staff
BEIS,UKRI - UKRI,05/08/2020,Unspecified,UKRI - Digital Data and Technology Project Costs,Alexander Mann Solutions Ltd,98786469,4095.36,Contract Staff
BEIS,UKRI - UKRI,05/08/2020,Unspecified,UKRI - Funding Service,Alexander Mann Solutions Ltd,98786471,3150.30,Contract Staff
BEIS,UKRI - UKRI,05/08/2020,Unspecified,UKRI - Digital Data and Technology BAU Costs,Alexander Mann Solutions Ltd,98786473,3150.30,Contract Staff
BEIS,UKRI - UKRI,05/08/2020,Unspecified,UKRI - Funding Service,Alexander Mann Solutions Ltd,98786475,3150.30,Contract Staff
BEIS,UKRI - UKRI,05/08/2020,Unspecified,UKRI - Digital Data and Technology BAU Costs,Alexander Mann Solutions Ltd,98786477,2586.89,Contract Staff
BEIS,UKRI - UKRI,05/08/2020,Unspecified,UKRI - Funding Service,Alexander Mann Solutions Ltd,98786478,2833.30,Contract Staff
BEIS,UKRI - UKRI,05/08/2020,Unspecified,UKRI - Digital Data and Technology Project Costs,Alexander Mann Solutions Ltd,98786480,1847.77,Contract Staff
BEIS,UKRI - UKRI,05/08/2020,Unspecified,UKRI - Digital Data and Technology Project Costs,Alexander Mann Solutions Ltd,98786514,4465.50,Contract Staff
BEIS,UKRI - UKRI,05/08/2020,Unspecified,UKRI - Funding Service,Alexander Mann Solutions Ltd,98788275,3128.93,Contract Staff
BEIS,UKRI - UKRI,05/08/2020,Unspecified,UKRI - Funding Service,Alexander Mann Solutions Ltd,98788283,2992.80,Contract Staff
BEIS,UKRI - UKRI,05/08/2020,Unspecified,UKRI - Digital Data and Technology Project Costs,Alexander Mann Solutions Ltd,98788292,4095.36,Contract Staff
BEIS,UKRI - UKRI,05/08/2020,Unspecified,UKRI - Digital Data and Technology Project Costs,Alexander Mann Solutions Ltd,98788305,1764.14,Contract Staff
BEIS,UKRI - UKRI,05/08/2020,Unspecified,UKRI - Funding Service,Alexander Mann Solutions Ltd,98788393,3150.30,Contract Staff
BEIS,UKRI - UKRI,05/08/2020,Unspecified,UKRI - Funding Service,Alexander Mann Solutions Ltd,98788397,3541.62,Contract Staff
BEIS,UKRI - UKRI,05/08/2020,Computer Hardware,UKRI - Digital Data and Technology Recharges,Dell Corporation Ltd,98788798,978.84,Computer Hardware
BEIS,UKRI - UKRI,05/08/2020,Recruitment Costs,UKRI - Funding Service,Alexander Mann Solutions Ltd,98788950,4927.39,Recruitment Costs
BEIS,UKRI - UKRI,05/08/2020,Unspecified,UKRI - Digital Data and Technology BAU Costs,Alexander Mann Solutions Ltd,98788956,2771.70,Contract Staff
BEIS,UKRI - UKRI,05/08/2020,Unspecified,UKRI - Digital Data and Technology BAU Costs,Alexander Mann Solutions Ltd,98788963,2463.70,Contract Staff
BEIS,UKRI - UKRI,05/08/2020,Unspecified,UKRI - Digital Data and Technology Project Costs,Alexander Mann Solutions Ltd,98788965,4465.50,Contract Staff
BEIS,UKRI - UKRI,05/08/2020,Unspecified,UKRI - Digital Data and Technology BAU Costs,Alexander Mann Solutions Ltd,98788975,1260.12,Contract Staff
BEIS,UKRI - UKRI,05/08/2020,Unspecified,UKRI - Digital Data and Technology BAU Costs,Alexander Mann Solutions Ltd,98788976,3150.30,Contract Staff
BEIS,UKRI - UKRI,05/08/2020,Unspecified,UKRI - Funding Service,Alexander Mann Solutions Ltd,98788984,3150.30,Contract Staff
BEIS,UKRI - UKRI,05/08/2020,Unspecified,UKRI - Digital Data and Technology Project Costs,Alexander Mann Solutions Ltd,98788985,1847.77,Contract Staff
BEIS,UKRI - UKRI,05/08/2020,Unspecified,UKRI - Digital Data and Technology Project Costs,Alexander Mann Solutions Ltd,98788986,3202.84,Contract Staff
BEIS,UKRI - UKRI,05/08/2020,Unspecified,UKRI - Digital Data and Technology Project Costs,Alexander Mann Solutions Ltd,98788993,4003.56,Contract Staff
BEIS,UKRI - UKRI,05/08/2020,Computer Software Licences,UKRI - Digital Data and Technology Recharges,Phoenix Software Ltd,98789176,34812.00,Computer Software Licences
BEIS,UKRI - UKRI,05/08/2020,IT / Computing Support Services,UKRI - Digital Data and Technology BAU Costs,Sanderson Government and Defence Ltd,98789178,9360.00,IT / Computing Support Services
BEIS,UKRI - UKRI,05/08/2020,Advertising & Promotion,UKRI - Communications Content,Stephen Lawson T/A Constructive Coaching,98789206,4950.00,Advertising & Promotion
BEIS,UKRI - UKRI,05/08/2020,Unspecified,UKRI - Digital Data and Technology BAU Costs,Alexander Mann Solutions Ltd,98789423,4311.48,Contract Staff
BEIS,UKRI - UKRI,05/08/2020,Unspecified,UKRI - Digital Data and Technology BAU Costs,Highplaces Consulting Ltd,98789706,14400.00,Contract Staff
BEIS,UKRI - UKRI,05/08/2020,Computer Software Licences,UKRI - Digital Data and Technology BAU Costs,Softcat plc,98789894,182160.65,Computer Software Licences
BEIS,UKRI - Research England,05/08/2020,Recruitment Costs,RE - Operations and Private Office,Swindon Occupational Medical Services Ltd,98790056,350.00,Recruitment Costs
BEIS,UKRI - UKRI,05/08/2020,Unspecified,UKRI - Strategy,Department for Business Energy & Industrial Strategy,98790057,16227.29,Secondments
BEIS,UKRI - EPSRC,05/08/2020,Other Staff Benefits,EPSRC Corporate Services,Swindon Occupational Medical Services Ltd,98790058,700.00,Other Staff Benefits
BEIS,UKRI - UKRI,05/08/2020,Computer Software Licences,UKRI - Digital Data and Technology BAU Costs,Canon (UK) Ltd,98790076,720.00,Computer Software Licences
BEIS,UKRI - UKRI,05/08/2020,Catering Contracts,UKRI - Estates,BFS Group Ltd t/a Bidfood,98790084,128.81,Catering Contracts
BEIS,UKRI - UKRI,05/08/2020,Health & Safety (inc. Medicals & Opticians),UKRI - Health and Safety,High Speed Training Ltd,98790124,297.00,Health & Safety (inc. Medicals & Opticians)
BEIS,UKRI - UKRI,05/08/2020,Postage & Courier Services,UKRI - JBOS,Unspecified,98790141,81.69,Postage & Courier Services
BEIS,UKRI - UKRI,05/08/2020,Corporate Events,UKRI - GCRF Challenge Leaders,Development Studies Association,98790195,575.00,Corporate Events
BEIS,UKRI - UKRI,05/08/2020,Corporate Events,UKRI - Human Resources Support,Baxter Storey Ltd,98790202,229.72,Corporate Events
BEIS,UKRI - UKRI,05/08/2020,Computer Software Licences,UKRI - Digital Data and Technology BAU Costs,SCREENREACH INTERACTIVE LTD,98790218,480.00,Computer Software Licences
BEIS,UKRI - UKRI,05/08/2020,Other Staff Benefits,"UKRI People, Policies and Management",EDENRED (UK GROUP) LTD,98790238,6715.36,Other Staff Benefits
BEIS,UKRI - UKRI,05/08/2020,Telecoms - Non Capital Hardware Costs,UKRI - Digital Data and Technology BAU Costs,Telefonica UK Ltd (O2),98790269,410.40,Telecoms - Non Capital Hardware Costs
BEIS,UKRI - UKRI,05/08/2020,T&S UK - Other Charges,UKRI - Information Governance,Unspecified,98790298,25.00,T&S UK - Other Charges
BEIS,UKRI - UKRI,05/08/2020,UK - Professional Memberships & Subscriptions,UKRI Strategic HR Business Partners,Unspecified,98790301,163.00,UK - Professional Memberships & Subscriptions
BEIS,UKRI - UKRI,05/08/2020,T&S UK - Mileage,UKRI People and Organisation Development,Unspecified,98790302,31.50,T&S UK - Mileage
BEIS,UKRI - UKRI,05/08/2020,Consultancy Services,UKRI - Public Engagement,LIMINAL SPACE ASSOCIATES LTD,98790487,5970.00,Consultancy Services
BEIS,UKRI - UKRI,05/08/2020,UK - Professional Memberships & Subscriptions,UKRI - Estates,Institute of Workplace and Facilities Management,98790520,89.00,UK - Professional Memberships & Subscriptions
BEIS,UKRI - UKRI,05/08/2020,UK - Professional Memberships & Subscriptions,UKRI - Estates,Institute of Workplace and Facilities Management,98790520,205.00,UK - Professional Memberships & Subscriptions
BEIS,UKRI - UKRI,05/08/2020,Provisions ( Food etc),UKRI - Estates,Nisbets PLC,98790522,6.13,Provisions ( Food etc)
BEIS,UKRI - UKRI,05/08/2020,Provisions ( Food etc),UKRI - Estates,Nisbets PLC,98790522,6.13,Provisions ( Food etc)
BEIS,UKRI - UKRI,05/08/2020,Provisions ( Food etc),UKRI - Estates,Nisbets PLC,98790522,6.13,Provisions ( Food etc)
BEIS,UKRI - UKRI,05/08/2020,Provisions ( Food etc),UKRI - Estates,Nisbets PLC,98790522,-0.36,Provisions ( Food etc)
BEIS,UKRI - UKRI,05/08/2020,Provisions ( Food etc),UKRI - Estates,Nisbets PLC,98790522,131.09,Provisions ( Food etc)
BEIS,UKRI - UKRI,05/08/2020,Provisions ( Food etc),UKRI - Estates,Nisbets PLC,98790522,-14.60,Provisions ( Food etc)
BEIS,UKRI - UKRI,05/08/2020,Computer Software Licences,UKRI - Digital Data and Technology BAU Costs,Affinity Digital (Technology) Ltd,98790584,11352.60,Computer Software Licences
BEIS,UKRI - UKRI,06/08/2020,Postage & Courier Services,UKRI - JBOS,Unspecified,98731449,43.60,Postage & Courier Services
BEIS,UKRI - UKRI,06/08/2020,Unspecified,UKRI - Digital Data and Technology BAU Costs,Capita Business Services Ltd,98769770,-17780.40,IT Cloud Services
BEIS,UKRI - UKRI,06/08/2020,Unspecified,UKRI - Digital Data and Technology BAU Costs,Capita Business Services Ltd,98778648,11000.40,IT Cloud Services
BEIS,UKRI - UKRI,06/08/2020,Computer Software,UKRI - Overseas Office China,Foreign & Commonwealth Office,98783306,-0.24,Computer Software
BEIS,UKRI - UKRI,06/08/2020,Computing Consumables,UKRI - Overseas Office China,Foreign & Commonwealth Office,98783306,-0.23,Computing Consumables
BEIS,UKRI - UKRI,06/08/2020,Conferences & Seminars,UKRI - Overseas Office China,Foreign & Commonwealth Office,98783306,-9.43,Conferences & Seminars
BEIS,UKRI - UKRI,06/08/2020,Unspecified,UKRI - Overseas Office China,Foreign & Commonwealth Office,98783306,-0.24,Legal & Professional Services
BEIS,UKRI - UKRI,06/08/2020,Marketing & PR,UKRI - Overseas Office China,Foreign & Commonwealth Office,98783306,-46.93,Marketing & PR
BEIS,UKRI - UKRI,06/08/2020,Meetings & Catering,UKRI - Overseas Office China,Foreign & Commonwealth Office,98783306,-0.24,Meetings & Catering
BEIS,UKRI - UKRI,06/08/2020,Mobile Phone Costs,UKRI - Overseas Office China,Foreign & Commonwealth Office,98783306,-0.94,Mobile Phone Costs
BEIS,UKRI - UKRI,06/08/2020,Non-staff travel and subsistance,UKRI - Overseas Office China,Foreign & Commonwealth Office,98783306,-0.24,Non-staff travel and subsistance
BEIS,UKRI - UKRI,06/08/2020,Other Bought In Services,UKRI - Overseas Office China,Foreign & Commonwealth Office,98783306,-0.71,Other Bought In Services
BEIS,UKRI - UKRI,06/08/2020,Other Staff Benefits,UKRI - Overseas Office China,Foreign & Commonwealth Office,98783306,-0.24,Other Staff Benefits
BEIS,UKRI - UKRI,06/08/2020,Postage & Courier Services,UKRI - Overseas Office China,Foreign & Commonwealth Office,98783306,-0.24,Postage & Courier Services
BEIS,UKRI - UKRI,06/08/2020,Printing & Stationery,UKRI - Overseas Office China,Foreign & Commonwealth Office,98783306,-0.24,Printing & Stationery
BEIS,UKRI - UKRI,06/08/2020,Unspecified,UKRI - Overseas Office China,Foreign & Commonwealth Office,98783306,-141.46,Secondments
BEIS,UKRI - UKRI,06/08/2020,Staff Training,UKRI - Overseas Office China,Foreign & Commonwealth Office,98783306,-0.47,Staff Training
BEIS,UKRI - UKRI,06/08/2020,T&S Overseas - Subsistence,UKRI - Overseas Office China,Foreign & Commonwealth Office,98783306,-9.43,T&S Overseas - Subsistence
BEIS,UKRI - UKRI,06/08/2020,T&S UK - Subsistence,UKRI - Overseas Office China,Foreign & Commonwealth Office,98783306,-0.24,T&S UK - Subsistence
BEIS,UKRI - UKRI,06/08/2020,Translation Services,UKRI - Overseas Office China,Foreign & Commonwealth Office,98783306,-0.24,Translation Services
BEIS,UKRI - UKRI,06/08/2020,Telecoms - Non Capital Hardware Costs,UKRI - Digital Data and Technology BAU Costs,Telefonica UK Ltd (O2),98786549,410.40,Telecoms - Non Capital Hardware Costs
BEIS,UKRI - UKRI,06/08/2020,Recruitment Costs,UKRI People and Organisation Development,Onefix Recruitment Ltd,98789348,150.00,Recruitment Costs
BEIS,UKRI - UKRI,06/08/2020,Recruitment Costs,UKRI - Procurement and Commercial,Onefix Recruitment Ltd,98789835,150.00,Recruitment Costs
BEIS,UKRI - UKRI,06/08/2020,Recruitment Costs,UKRI - Procurement and Commercial,Onefix Recruitment Ltd,98789837,150.00,Recruitment Costs
BEIS,UKRI - UKRI,06/08/2020,Recruitment Costs,UKRI People and Organisation Development,Onefix Recruitment Ltd,98789841,510.00,Recruitment Costs
BEIS,UKRI - UKRI,06/08/2020,Unspecified,UKRI - JRS,The Accessible Digital Documents Company Ltd,98790378,1338.00,Patents/ Non Computer Licences
BEIS,UKRI - UKRI,06/08/2020,Photocopy Costs,UKRI - JRS,Kodak Ltd,98790395,1586.52,Photocopy Costs
BEIS,UKRI - UKRI,06/08/2020,Unspecified,UKRI - Digital Data and Technology BAU Costs,Capita Business Services Ltd,98790412,11000.40,IT Cloud Services
BEIS,UKRI - UKRI,06/08/2020,Unspecified,UKRI - Digital Data and Technology BAU Costs,Chakray UK Ltd,98790532,3000.00,IT Cloud Services
BEIS,UKRI - UKRI,06/08/2020,Advertising & Promotion,UKRI - Communications Content,CG Shortcuts Ltd,98790582,1600.00,Advertising & Promotion
BEIS,UKRI - UKRI,06/08/2020,Computer Software Licences,UKRI - Digital Data and Technology BAU Costs,Softcat plc,98790607,92938.66,Computer Software Licences
BEIS,UKRI - EPSRC,06/08/2020,Non-staff travel and subsistance,Business Improvement,Unspecified,98790650,15.00,Non-staff travel and subsistance
BEIS,UKRI - EPSRC,06/08/2020,Fees (Including College Members),Business Improvement,Unspecified,98790651,320.00,Fees (Including College Members)
BEIS,UKRI - UKRI,06/08/2020,Unspecified,UKRI - JRS,A2i Transcription Services Ltd,98790709,1137.24,Patents/ Non Computer Licences
BEIS,UKRI - UKRI,06/08/2020,Computer Software Licences,UKRI - Digital Data and Technology BAU Costs,JISC,98790743,5917.20,Computer Software Licences
BEIS,UKRI - UKRI,06/08/2020,Advertising & Promotion,UKRI - Communications Strategy and Planning,Unspecified,98790759,900.00,Advertising & Promotion
BEIS,UKRI - UKRI,06/08/2020,Computing Consumables,UKRI - Overseas Office China,Foreign & Commonwealth Office,98790774,84.42,Computing Consumables
BEIS,UKRI - UKRI,06/08/2020,Mobile Phone Costs,UKRI - Overseas Office China,Foreign & Commonwealth Office,98790774,100.94,Mobile Phone Costs
BEIS,UKRI - UKRI,06/08/2020,Unspecified,UKRI - Digital Data and Technology BAU Costs,Capita Business Services Ltd,98791417,6000.00,IT Cloud Services
BEIS,UKRI - UKRI,06/08/2020,Telecoms - Non Capital Hardware Costs,UKRI - Digital Data and Technology BAU Costs,Telefonica UK Ltd (O2),98791431,-410.40,Telecoms - Non Capital Hardware Costs
BEIS,UKRI - UKRI,06/08/2020,Telecoms - Non Capital Hardware Costs,UKRI - Digital Data and Technology BAU Costs,Telefonica UK Ltd (O2),98791432,410.40,Telecoms - Non Capital Hardware Costs
BEIS,UKRI - UKRI,06/08/2020,Mobile Phone Costs,UKRI - Overseas Office China,Foreign & Commonwealth Office,98791436,211.76,Mobile Phone Costs
BEIS,UKRI - UKRI,06/08/2020,Unspecified,UKRI - Overseas Office China,Foreign & Commonwealth Office,98791436,23739.52,Secondments
BEIS,UKRI - UKRI,06/08/2020,Storage & Archiving Costs,UKRI - Information Governance,Iron Mountain (UK) PLC,98791441,43020.72,Storage & Archiving Costs
BEIS,UKRI - UKRI,06/08/2020,Consultancy Services,UKRI - Digital Data and Technology BAU Costs,Unspecified,98791445,8736.00,Consultancy Services
BEIS,UKRI - UKRI,06/08/2020,Consultancy Services,UKRI - Funding Service,Unspecified,98791445,30000.00,Consultancy Services
BEIS,UKRI - UKRI,06/08/2020,IT / Computing Support Services,UKRI - Digital Data and Technology BAU Costs,MAYTECH COMMUNICATIONS LTD,98791451,2071.20,IT / Computing Support Services
BEIS,UKRI - UKRI,06/08/2020,Other Staff Benefits,UKRI - Overseas Office USA,Foreign & Commonwealth Office,98791461,27.92,Other Staff Benefits
BEIS,UKRI - UKRI,06/08/2020,Unspecified,UKRI - Overseas Office USA,Foreign & Commonwealth Office,98791461,2166.56,Secondments
BEIS,UKRI - UKRI,06/08/2020,Other Staff Benefits,UKRI - Overseas Office USA,Foreign & Commonwealth Office,98791470,33.13,Other Staff Benefits
BEIS,UKRI - UKRI,06/08/2020,Unspecified,UKRI - Overseas Office USA,Foreign & Commonwealth Office,98791470,2204.05,Secondments
BEIS,UKRI - UKRI,06/08/2020,Computing Consumables,UKRI - Overseas Office India,Foreign & Commonwealth Office,98791475,38.00,Computing Consumables
BEIS,UKRI - UKRI,06/08/2020,Unspecified,UKRI - Overseas Office India,Foreign & Commonwealth Office,98791475,4615.46,Secondments
BEIS,UKRI - UKRI,06/08/2020,Unspecified,UKRI - Overseas Office USA,Foreign & Commonwealth Office,98791482,2641.52,Secondments
BEIS,UKRI - UKRI,06/08/2020,Unspecified,UKRI - Overseas Office USA,Foreign & Commonwealth Office,98791487,643.59,Secondments
BEIS,UKRI - UKRI,06/08/2020,Postage & Courier Services,UKRI - JBOS,Unspecified,98791509,130.67,Postage & Courier Services
BEIS,UKRI - EPSRC,06/08/2020,Fees (Including College Members),Governance and Planning,Unspecified,98791564,160.00,Fees (Including College Members)
BEIS,UKRI - EPSRC,06/08/2020,Fees (Including College Members),Governance and Planning,Unspecified,98791565,160.00,Fees (Including College Members)
BEIS,UKRI - EPSRC,06/08/2020,Fees (Including College Members),Governance and Planning,Unspecified,98791566,160.00,Fees (Including College Members)
BEIS,UKRI - UKRI,06/08/2020,Staff Training,UKRI - Executive Group,Korn Ferry (UK) Ltd,98791596,1711.20,Staff Training
BEIS,UKRI - UKRI,06/08/2020,T&S UK - Other Charges,UKRI Strategic HR Business Partners,Unspecified,98791616,100.00,T&S UK - Other Charges
BEIS,UKRI - UKRI,07/08/2020,Unspecified,UKRI - Digital Data and Technology BAU Costs,Alexander Mann Solutions Ltd,98788307,2155.80,Contract Staff
BEIS,UKRI - UKRI,07/08/2020,Computer Hardware,UKRI People and Organisation Development,Dell Corporation Ltd,98789287,23.47,Computer Hardware
BEIS,UKRI - UKRI,07/08/2020,Computer Hardware,UKRI People and Organisation Development,Dell Corporation Ltd,98789287,1112.51,Computer Hardware
BEIS,UKRI - UKRI,07/08/2020,Computer Hardware,UKRI People and Organisation Development,Dell Corporation Ltd,98789287,171.90,Computer Hardware
BEIS,UKRI - UKRI,07/08/2020,Computer Hardware,UKRI People and Organisation Development,Dell Corporation Ltd,98789287,33.44,Computer Hardware
BEIS,UKRI - UKRI,07/08/2020,Non-staff travel and subsistance,UKRI - GCRF Challenge Leaders,Corporate Travel Management (North) Ltd,98790887,3.42,Non-staff travel and subsistance
BEIS,UKRI - UKRI,07/08/2020,Non-staff travel and subsistance,UKRI - GCRF Challenge Leaders,Corporate Travel Management (North) Ltd,98790887,828.74,Non-staff travel and subsistance
BEIS,UKRI - UKRI,07/08/2020,Non-staff travel and subsistance,"UKRI People, Policies and Management",Corporate Travel Management (North) Ltd,98790887,5.00,Non-staff travel and subsistance
BEIS,UKRI - UKRI,07/08/2020,Non-staff travel and subsistance,"UKRI People, Policies and Management",Corporate Travel Management (North) Ltd,98790887,18.96,Non-staff travel and subsistance
BEIS,UKRI - UKRI,07/08/2020,Non-staff travel and subsistance,"UKRI People, Policies and Management",Corporate Travel Management (North) Ltd,98790887,9.60,Non-staff travel and subsistance
BEIS,UKRI - UKRI,07/08/2020,Non-staff travel and subsistance,"UKRI People, Policies and Management",Corporate Travel Management (North) Ltd,98790887,1.00,Non-staff travel and subsistance
BEIS,UKRI - UKRI,07/08/2020,T&S Overseas - Accommodation,UKRI - GCRF Challenge Leaders,Corporate Travel Management (North) Ltd,98790887,0.80,T&S Overseas - Accommodation
BEIS,UKRI - UKRI,07/08/2020,T&S Overseas - Accommodation,UKRI - GCRF Challenge Leaders,Corporate Travel Management (North) Ltd,98790887,123.92,T&S Overseas - Accommodation
BEIS,UKRI - UKRI,07/08/2020,T&S Overseas - Accommodation,UKRI - GCRF Challenge Leaders,Corporate Travel Management (North) Ltd,98790887,0.16,T&S Overseas - Accommodation
BEIS,UKRI - UKRI,07/08/2020,T&S Overseas - Flights,UKRI - GCRF Challenge Leaders,Corporate Travel Management (North) Ltd,98790887,66.00,T&S Overseas - Flights
BEIS,UKRI - UKRI,07/08/2020,T&S Overseas - Flights,UKRI - GCRF Delivery,Corporate Travel Management (North) Ltd,98790887,7.00,T&S Overseas - Flights
BEIS,UKRI - UKRI,07/08/2020,T&S Overseas - Flights,UKRI - GCRF Delivery,Corporate Travel Management (North) Ltd,98790887,683.90,T&S Overseas - Flights
BEIS,UKRI - UKRI,07/08/2020,T&S Overseas - Flights,UKRI - GCRF Delivery,Corporate Travel Management (North) Ltd,98790887,2.50,T&S Overseas - Flights
BEIS,UKRI - UKRI,07/08/2020,T&S Overseas - Flights,UKRI - GCRF Delivery,Corporate Travel Management (North) Ltd,98790887,353.24,T&S Overseas - Flights
BEIS,UKRI - UKRI,07/08/2020,T&S Overseas - Flights,UKRI - International,Corporate Travel Management (North) Ltd,98790887,2.50,T&S Overseas - Flights
BEIS,UKRI - UKRI,07/08/2020,T&S Overseas - Flights,UKRI - International,Corporate Travel Management (North) Ltd,98790887,438.90,T&S Overseas - Flights
BEIS,UKRI - UKRI,07/08/2020,T&S Overseas - Flights,UKRI - Newton Programme,Corporate Travel Management (North) Ltd,98790887,1.71,T&S Overseas - Flights
BEIS,UKRI - UKRI,07/08/2020,T&S Overseas - Flights,UKRI - Newton Programme,Corporate Travel Management (North) Ltd,98790887,939.07,T&S Overseas - Flights
BEIS,UKRI - UKRI,07/08/2020,T&S Overseas - Flights,UKRI - Overseas Office USA,Corporate Travel Management (North) Ltd,98790887,2.00,T&S Overseas - Flights
BEIS,UKRI - UKRI,07/08/2020,T&S Overseas - Flights,UKRI - Overseas Office USA,Corporate Travel Management (North) Ltd,98790887,349.05,T&S Overseas - Flights
BEIS,UKRI - EPSRC,07/08/2020,T&S Overseas - Public Transport,Programme Delivery Infrastructure,Corporate Travel Management (North) Ltd,98790887,50.00,T&S Overseas - Public Transport
BEIS,UKRI - Research England,07/08/2020,T&S UK - Accommodation,RE - Insight and Engagement,Corporate Travel Management (North) Ltd,98790887,1.00,T&S UK - Accommodation
BEIS,UKRI - Research England,07/08/2020,T&S UK - Accommodation,RE - Insight and Engagement,Corporate Travel Management (North) Ltd,98790887,28.50,T&S UK - Accommodation
BEIS,UKRI - Research England,07/08/2020,T&S UK - Accommodation,RE - Insight and Engagement,Corporate Travel Management (North) Ltd,98790887,0.20,T&S UK - Accommodation
BEIS,UKRI - Research England,07/08/2020,T&S UK - Accommodation,RE - Research,Corporate Travel Management (North) Ltd,98790887,0.80,T&S UK - Accommodation
BEIS,UKRI - Research England,07/08/2020,T&S UK - Accommodation,RE - Research,Corporate Travel Management (North) Ltd,98790887,0.16,T&S UK - Accommodation
BEIS,UKRI - UKRI,07/08/2020,T&S UK - Accommodation,UKRI - Risk and Counter Fraud,Corporate Travel Management (North) Ltd,98790887,2.40,T&S UK - Accommodation
BEIS,UKRI - UKRI,07/08/2020,T&S UK - Accommodation,UKRI - Risk and Counter Fraud,Corporate Travel Management (North) Ltd,98790887,1.00,T&S UK - Accommodation
BEIS,UKRI - UKRI,07/08/2020,T&S UK - Accommodation,UKRI - Risk and Counter Fraud,Corporate Travel Management (North) Ltd,98790887,7.50,T&S UK - Accommodation
BEIS,UKRI - UKRI,07/08/2020,T&S UK - Accommodation,UKRI - Risk and Counter Fraud,Corporate Travel Management (North) Ltd,98790887,0.80,T&S UK - Accommodation
BEIS,UKRI - UKRI,07/08/2020,T&S UK - Accommodation,UKRI - Risk and Counter Fraud,Corporate Travel Management (North) Ltd,98790887,89.00,T&S UK - Accommodation
BEIS,UKRI - UKRI,07/08/2020,T&S UK - Accommodation,UKRI - Risk and Counter Fraud,Corporate Travel Management (North) Ltd,98790887,2.00,T&S UK - Accommodation
BEIS,UKRI - UKRI,07/08/2020,T&S UK - Accommodation,UKRI - Risk and Counter Fraud,Corporate Travel Management (North) Ltd,98790887,79.00,T&S UK - Accommodation
BEIS,UKRI - UKRI,07/08/2020,T&S UK - Accommodation,UKRI - Risk and Counter Fraud,Corporate Travel Management (North) Ltd,98790887,1.24,T&S UK - Accommodation
BEIS,UKRI - UKRI,07/08/2020,T&S UK - Accommodation,UKRI - Funding Assurance,Corporate Travel Management (North) Ltd,98790887,270.00,T&S UK - Accommodation
BEIS,UKRI - UKRI,07/08/2020,T&S UK - Accommodation,UKRI - Funding Assurance,Corporate Travel Management (North) Ltd,98790887,270.00,T&S UK - Accommodation
BEIS,UKRI - UKRI,07/08/2020,T&S UK - Accommodation,UKRI - Funding Assurance,Corporate Travel Management (North) Ltd,98790887,270.00,T&S UK - Accommodation
BEIS,UKRI - UKRI,07/08/2020,T&S UK - Accommodation,UKRI - Funding Assurance,Corporate Travel Management (North) Ltd,98790887,270.00,T&S UK - Accommodation
BEIS,UKRI - UKRI,07/08/2020,T&S UK - Accommodation,UKRI - International,Corporate Travel Management (North) Ltd,98790887,0.80,T&S UK - Accommodation
BEIS,UKRI - UKRI,07/08/2020,T&S UK - Accommodation,UKRI - International,Corporate Travel Management (North) Ltd,98790887,169.50,T&S UK - Accommodation
BEIS,UKRI - UKRI,07/08/2020,T&S UK - Accommodation,UKRI - International,Corporate Travel Management (North) Ltd,98790887,0.16,T&S UK - Accommodation
BEIS,UKRI - EPSRC,07/08/2020,T&S UK - Flights,Programme Delivery Engineering,Corporate Travel Management (North) Ltd,98790887,5.00,T&S UK - Flights
BEIS,UKRI - EPSRC,07/08/2020,T&S UK - Flights,Programme Delivery Engineering,Corporate Travel Management (North) Ltd,98790887,117.74,T&S UK - Flights
BEIS,UKRI - UKRI,07/08/2020,T&S UK - Flights,UKRI - Strategy,Corporate Travel Management (North) Ltd,98790887,0.80,T&S UK - Flights
BEIS,UKRI - UKRI,07/08/2020,T&S UK - Flights,UKRI - Strategy,Corporate Travel Management (North) Ltd,98790887,268.20,T&S UK - Flights
BEIS,UKRI - UKRI,07/08/2020,T&S UK - Flights,UKRI - Strategy,Corporate Travel Management (North) Ltd,98790887,2.50,T&S UK - Flights
BEIS,UKRI - UKRI,07/08/2020,T&S UK - Flights,UKRI - Strategy,Corporate Travel Management (North) Ltd,98790887,186.44,T&S UK - Flights
BEIS,UKRI - UKRI,07/08/2020,T&S UK - Flights,UKRI - Strategy,Corporate Travel Management (North) Ltd,98790887,0.16,T&S UK - Flights
BEIS,UKRI - UKRI,07/08/2020,T&S UK - Other Charges,UKRI - International,Corporate Travel Management (North) Ltd,98790887,2.50,T&S UK - Other Charges
BEIS,UKRI - UKRI,07/08/2020,T&S UK - Other Charges,UKRI - International,Corporate Travel Management (North) Ltd,98790887,9.66,T&S UK - Other Charges
BEIS,UKRI - UKRI,07/08/2020,T&S UK - Other Charges,UKRI - International,Corporate Travel Management (North) Ltd,98790887,0.50,T&S UK - Other Charges
BEIS,UKRI - UKRI,07/08/2020,T&S UK - Other Charges,UKRI - Overseas Office India,Corporate Travel Management (North) Ltd,98790887,5.00,T&S UK - Other Charges
BEIS,UKRI - UKRI,07/08/2020,T&S UK - Other Charges,UKRI - Overseas Office India,Corporate Travel Management (North) Ltd,98790887,117.45,T&S UK - Other Charges
BEIS,UKRI - UKRI,07/08/2020,T&S UK - Other Charges,UKRI - Overseas Office India,Corporate Travel Management (North) Ltd,98790887,61.92,T&S UK - Other Charges
BEIS,UKRI - UKRI,07/08/2020,T&S UK - Other Charges,UKRI - Overseas Office India,Corporate Travel Management (North) Ltd,98790887,1.00,T&S UK - Other Charges
BEIS,UKRI - EPSRC,07/08/2020,T&S UK - Public Transport,Governance and Planning,Corporate Travel Management (North) Ltd,98790887,-143.00,T&S UK - Public Transport
BEIS,UKRI - EPSRC,07/08/2020,T&S UK - Public Transport,Programme Delivery Engineering,Corporate Travel Management (North) Ltd,98790887,-68.40,T&S UK - Public Transport
BEIS,UKRI - EPSRC,07/08/2020,T&S UK - Public Transport,Programme Delivery Engineering,Corporate Travel Management (North) Ltd,98790887,-59.00,T&S UK - Public Transport
BEIS,UKRI - UKRI,07/08/2020,T&S UK - Public Transport,UKRI - UKRO,Corporate Travel Management (North) Ltd,98790887,-132.00,T&S UK - Public Transport
BEIS,UKRI - UKRI,07/08/2020,Telecoms - Maintenance & Repairs,UKRI - Digital Data and Technology BAU Costs,Vodafone Ltd,98791743,9186.36,Telecoms - Maintenance & Repairs
BEIS,UKRI - UKRI,07/08/2020,Telecoms - Maintenance & Repairs,UKRI - Digital Data and Technology BAU Costs,Vodafone Ltd,98791744,9186.36,Telecoms - Maintenance & Repairs
BEIS,UKRI - UKRI,07/08/2020,Telecoms - Maintenance & Repairs,UKRI - Digital Data and Technology BAU Costs,Vodafone Ltd,98791746,20313.71,Telecoms - Maintenance & Repairs
BEIS,UKRI - UKRI,07/08/2020,Telecoms - Maintenance & Repairs,UKRI - Digital Data and Technology BAU Costs,Vodafone Ltd,98791749,9186.36,Telecoms - Maintenance & Repairs
BEIS,UKRI - UKRI,07/08/2020,Telecoms - Maintenance & Repairs,UKRI - Digital Data and Technology BAU Costs,Vodafone Ltd,98791750,9186.36,Telecoms - Maintenance & Repairs
BEIS,UKRI - UKRI,07/08/2020,Telecoms - Maintenance & Repairs,UKRI - Digital Data and Technology BAU Costs,Vodafone Ltd,98791751,26586.28,Telecoms - Maintenance & Repairs
BEIS,UKRI - UKRI,07/08/2020,Telecoms - Maintenance & Repairs,UKRI - Digital Data and Technology BAU Costs,Vodafone Ltd,98791751,640.10,Telecoms - Maintenance & Repairs
BEIS,UKRI - UKRI,07/08/2020,Telecoms - Maintenance & Repairs,UKRI - Digital Data and Technology BAU Costs,Vodafone Ltd,98791753,22311.55,Telecoms - Maintenance & Repairs
BEIS,UKRI - UKRI,07/08/2020,Telecoms - Maintenance & Repairs,UKRI - Digital Data and Technology BAU Costs,Vodafone Ltd,98791754,13991.68,Telecoms - Maintenance & Repairs
BEIS,UKRI - UKRI,07/08/2020,Telecoms - Maintenance & Repairs,UKRI - Digital Data and Technology BAU Costs,Vodafone Ltd,98791755,7848.07,Telecoms - Maintenance & Repairs
BEIS,UKRI - UKRI,07/08/2020,Telecoms - Maintenance & Repairs,UKRI - Digital Data and Technology BAU Costs,Vodafone Ltd,98791756,7730.71,Telecoms - Maintenance & Repairs
BEIS,UKRI - UKRI,07/08/2020,Telecoms - Maintenance & Repairs,UKRI - Digital Data and Technology BAU Costs,Vodafone Ltd,98791758,7564.75,Telecoms - Maintenance & Repairs
BEIS,UKRI - EPSRC,07/08/2020,T&S UK - Other Charges,Programme Delivery Maths,Unspecified,98791802,110.00,T&S UK - Other Charges
BEIS,UKRI - EPSRC,07/08/2020,T&S UK - Other Charges,Programme Delivery Healthcare,Unspecified,98791804,61.39,T&S UK - Other Charges
BEIS,UKRI - UKRI,07/08/2020,UK - Professional Memberships & Subscriptions,"UKRI People, Policies and Management",Unspecified,98791805,163.00,UK - Professional Memberships & Subscriptions
BEIS,UKRI - UKRI,10/08/2020,Advertising & Promotion,UKRI - Communications Content,Rather Nice Design Ltd,98785468,4140.00,Advertising & Promotion
BEIS,UKRI - UKRI,10/08/2020,Advertising & Promotion,UKRI - Communications Themes and Partnerships,MSQ Partners Group Ltd,98786332,39196.85,Advertising & Promotion
BEIS,UKRI - UKRI,10/08/2020,Unspecified,Open Access,JISC,98787045,35641.94,Secondments
BEIS,UKRI - UKRI,10/08/2020,Unspecified,Sciencewise,The Involve Foundation,98787757,23493.00,Legal & Professional Services
BEIS,UKRI - UKRI,10/08/2020,Unspecified,UKRI - Digital Data and Technology BAU Costs,Alexander Mann Solutions Ltd,98788968,1293.48,Contract Staff
BEIS,UKRI - UKRI,10/08/2020,Computer Hardware,UKRI - Digital Data and Technology Project Costs,Essential Computing,98788979,6255.60,Computer Hardware
BEIS,UKRI - UKRI,10/08/2020,Unspecified,UKRI - Digital Data and Technology Project Costs,Alexander Mann Solutions Ltd,98788987,2808.67,Contract Staff
BEIS,UKRI - UKRI,10/08/2020,Computer Hardware,UKRI - Digital Data and Technology BAU Costs,Banner Group Ltd,98789341,4379.43,Computer Hardware
BEIS,UKRI - UKRI,10/08/2020,Computer Hardware,UKRI - Digital Data and Technology BAU Costs,Banner Group Ltd,98789341,3745.14,Computer Hardware
BEIS,UKRI - UKRI,10/08/2020,Computer Hardware,UKRI - Digital Data and Technology BAU Costs,Banner Group Ltd,98789341,-0.34,Computer Hardware
BEIS,UKRI - UKRI,10/08/2020,Computer Hardware,UKRI - Digital Data and Technology BAU Costs,Banner Group Ltd,98789343,-4379.43,Computer Hardware
BEIS,UKRI - UKRI,10/08/2020,Computer Hardware,UKRI - Digital Data and Technology BAU Costs,Banner Group Ltd,98789343,-3745.14,Computer Hardware
BEIS,UKRI - UKRI,10/08/2020,Computer Hardware,UKRI - Digital Data and Technology BAU Costs,Banner Group Ltd,98789343,0.34,Computer Hardware
BEIS,UKRI - UKRI,10/08/2020,Computer Hardware,UKRI - Digital Data and Technology Project Costs,Dell Corporation Ltd,98789449,3311.28,Computer Hardware
BEIS,UKRI - UKRI,10/08/2020,Computer Hardware,UKRI - Digital Data and Technology Project Costs,Dell Corporation Ltd,98789449,14696.40,Computer Hardware
BEIS,UKRI - UKRI,10/08/2020,Computer Hardware,UKRI - Digital Data and Technology Project Costs,Dell Corporation Ltd,98789449,900.12,Computer Hardware
BEIS,UKRI - UKRI,10/08/2020,Computer Hardware,UKRI - Digital Data and Technology Project Costs,Dell Corporation Ltd,98789449,708.24,Computer Hardware
BEIS,UKRI - UKRI,10/08/2020,Computer Hardware,UKRI - Digital Data and Technology Project Costs,Dell Corporation Ltd,98789449,11028.42,Computer Hardware
BEIS,UKRI - UKRI,10/08/2020,Advertising & Promotion,UKRI - Communications Themes and Partnerships,MSQ Partners Group Ltd,98790090,31996.85,Advertising & Promotion
BEIS,UKRI - UKRI,10/08/2020,Advertising & Promotion,UKRI - Communications Themes and Partnerships,MSQ Partners Group Ltd,98790372,-39196.85,Advertising & Promotion
BEIS,UKRI - UKRI,10/08/2020,Advertising & Promotion,UKRI - Communications Themes and Partnerships,MSQ Partners Group Ltd,98790388,-31996.85,Advertising & Promotion
BEIS,UKRI - EPSRC,10/08/2020,Other Programme Costs,Archer,University of Edinburgh,98790555,180687.07,Other Programme Costs
BEIS,UKRI - UKRI,10/08/2020,Removal Services,UKRI - Estates,Harrow Green Ltd T/A Restore Harrow Green,98791023,124.80,Removal Services
BEIS,UKRI - UKRI,10/08/2020,Recruitment Costs,UKRI People and Organisation Development,Agenda Resource Management Ltd,98791053,153.91,Recruitment Costs
BEIS,UKRI - UKRI,10/08/2020,Recruitment Costs,UKRI People and Organisation Development,Agenda Resource Management Ltd,98791069,56.11,Recruitment Costs
BEIS,UKRI - UKRI,10/08/2020,Recruitment Costs,UKRI People and Organisation Development,Agenda Resource Management Ltd,98791074,56.11,Recruitment Costs
BEIS,UKRI - EPSRC,10/08/2020,Fees (Including College Members),EDI and People,Unspecified,98791111,160.00,Fees (Including College Members)
BEIS,UKRI - UKRI,10/08/2020,Mobile Phone Costs,UKRI - Digital Data and Technology BAU Costs,Telefonica UK Ltd (O2),98791144,100.64,Mobile Phone Costs
BEIS,UKRI - UKRI,10/08/2020,Staff Training,"UKRI People, Policies and Management",ADSUM Consulting Ltd,98791145,1800.00,Staff Training
BEIS,UKRI - UKRI,10/08/2020,Mobile Phone Costs,UKRI - Digital Data and Technology BAU Costs,Telefonica UK Ltd (O2),98791149,114.46,Mobile Phone Costs
BEIS,UKRI - UKRI,10/08/2020,Staff Training,"UKRI People, Policies and Management",ADSUM Consulting Ltd,98791150,600.00,Staff Training
BEIS,UKRI - UKRI,10/08/2020,Mobile Phone Costs,UKRI - Digital Data and Technology BAU Costs,Telefonica UK Ltd (O2),98791167,8905.75,Mobile Phone Costs
BEIS,UKRI - UKRI,10/08/2020,Mobile Phone Costs,UKRI - Digital Data and Technology BAU Costs,Telefonica UK Ltd (O2),98791172,1841.83,Mobile Phone Costs
BEIS,UKRI - UKRI,10/08/2020,IT / Computing Support Services,UKRI - Funding Service,Nomensa Ltd,98791181,50310.00,IT / Computing Support Services
BEIS,UKRI - UKRI,10/08/2020,Mobile Phone Costs,UKRI - Digital Data and Technology BAU Costs,Telefonica UK Ltd (O2),98791183,82.67,Mobile Phone Costs
BEIS,UKRI - UKRI,10/08/2020,Mobile Phone Costs,UKRI - Digital Data and Technology BAU Costs,Telefonica UK Ltd (O2),98791186,23.46,Mobile Phone Costs
BEIS,UKRI - UKRI,10/08/2020,Mobile Phone Costs,UKRI - Digital Data and Technology BAU Costs,Telefonica UK Ltd (O2),98791189,14.40,Mobile Phone Costs
BEIS,UKRI - UKRI,10/08/2020,Mobile Phone Costs,UKRI - Digital Data and Technology BAU Costs,Telefonica UK Ltd (O2),98791191,14.40,Mobile Phone Costs
BEIS,UKRI - UKRI,10/08/2020,Mobile Phone Costs,UKRI - Digital Data and Technology BAU Costs,Telefonica UK Ltd (O2),98791199,3869.29,Mobile Phone Costs
BEIS,UKRI - UKRI,10/08/2020,Mobile Phone Costs,UKRI - Digital Data and Technology BAU Costs,Telefonica UK Ltd (O2),98791202,3469.87,Mobile Phone Costs
BEIS,UKRI - UKRI,10/08/2020,Mobile Phone Costs,UKRI - Digital Data and Technology BAU Costs,Telefonica UK Ltd (O2),98791207,260.42,Mobile Phone Costs
BEIS,UKRI - UKRI,10/08/2020,Unspecified,"UKRI People, Policies and Management",Alexander Mann Solutions Ltd,98791247,4200.00,Agency Staff
BEIS,UKRI - UKRI,10/08/2020,Unspecified,UKRI - Transformation,Alexander Mann Solutions Ltd,98791247,1800.00,Contract Staff
BEIS,UKRI - UKRI,10/08/2020,Unspecified,UKRI - Project Management Office,Alexander Mann Solutions Ltd,98791252,2205.18,Agency Staff
BEIS,UKRI - UKRI,10/08/2020,Recruitment Costs,UKRI - Funding Service,Alexander Mann Solutions Ltd,98791281,4619.52,Recruitment Costs
BEIS,UKRI - UKRI,10/08/2020,Unspecified,"UKRI People, Policies and Management",Alexander Mann Solutions Ltd,98791283,4312.62,Agency Staff
BEIS,UKRI - UKRI,10/08/2020,Consumables,UKRI - JRS,Signgeer Ltd,98791290,5.64,Consumables
BEIS,UKRI - UKRI,10/08/2020,Consumables,UKRI - JRS,Signgeer Ltd,98791290,6.14,Consumables
BEIS,UKRI - UKRI,10/08/2020,Printing & Stationery,UKRI - JBOS,Premier Farnell UK Ltd T/A Farnell Onecall,98791320,97.97,Printing & Stationery
BEIS,UKRI - UKRI,10/08/2020,Recruitment Costs,UKRI People and Organisation Development,Warwick University Services Ltd,98791473,250.00,Recruitment Costs
BEIS,UKRI - UKRI,10/08/2020,Unspecified,Sciencewise,The Involve Foundation,98791628,23189.26,Legal & Professional Services
BEIS,UKRI - UKRI,10/08/2020,Recruitment Costs,UKRI People and Organisation Development,Agenda Resource Management Ltd,98791811,56.11,Recruitment Costs
BEIS,UKRI - UKRI,10/08/2020,Unspecified,UKRI - Digital Data and Technology BAU Costs,Experian PLC,98791824,27874.46,IT Cloud Services
BEIS,UKRI - EPSRC,10/08/2020,Recruitment Costs,EPSRC Corporate Services,Alexander Mann Solutions Ltd,98791853,643.80,Recruitment Costs
BEIS,UKRI - UKRI,10/08/2020,Computer Software Licences,UKRI - Digital Data and Technology Project Costs,Softcat plc,98791861,7872.00,Computer Software Licences
BEIS,UKRI - UKRI,10/08/2020,Computer Software Licences,UKRI - Digital Data and Technology Project Costs,Softcat plc,98791863,3936.00,Computer Software Licences
BEIS,UKRI - UKRI,10/08/2020,Unspecified,UKRI - Digital Data and Technology BAU Costs,Alexander Mann Solutions Ltd,98791880,1293.48,Contract Staff
BEIS,UKRI - UKRI,10/08/2020,Consultancy Services,UKRI - Governance,Alexander Mann Solutions Ltd,98791892,2520.24,Consultancy Services
BEIS,UKRI - UKRI,10/08/2020,Unspecified,UKRI - Digital Data and Technology Project Costs,Alexander Mann Solutions Ltd,98791949,3510.84,Contract Staff
BEIS,UKRI - UKRI,10/08/2020,Unspecified,UKRI - JRS,Alexander Mann Solutions Ltd,98791951,3423.12,Contract Staff
BEIS,UKRI - UKRI,10/08/2020,Unspecified,UKRI - Financial Accounting,Alexander Mann Solutions Ltd,98791969,2771.70,Contract Staff
BEIS,UKRI - UKRI,10/08/2020,Unspecified,UKRI - Digital Data and Technology BAU Costs,Alexander Mann Solutions Ltd,98791970,1005.00,Contract Staff
BEIS,UKRI - UKRI,10/08/2020,Unspecified,UKRI - Management Reporting,Alexander Mann Solutions Ltd,98791974,1127.94,Agency Staff
BEIS,UKRI - UKRI,10/08/2020,Unspecified,UKRI - Financial Accounting,Alexander Mann Solutions Ltd,98791980,3695.58,Contract Staff
BEIS,UKRI - UKRI,10/08/2020,Tax Advice,UKRI - Financial Accounting,Unspecified,98792035,45000.00,Tax Advice
BEIS,UKRI - UKRI,10/08/2020,T&S UK - Other Charges,UKRI - Research Funding Support,Unspecified,98792086,79.99,T&S UK - Other Charges
BEIS,UKRI - UKRI,10/08/2020,T&S UK - Mileage,"UKRI People, Policies and Management",Unspecified,98792088,40.50,T&S UK - Mileage
BEIS,UKRI - UKRI,10/08/2020,UK - Professional Memberships & Subscriptions,UKRI - Information Governance,Unspecified,98792089,117.00,UK - Professional Memberships & Subscriptions
BEIS,UKRI - UKRI,10/08/2020,T&S UK - Other Charges,UKRI - Project Management Office,Unspecified,98792090,34.97,T&S UK - Other Charges
BEIS,UKRI - Research England,10/08/2020,Health & Safety (inc. Medicals & Opticians),RE - Knowledge Exchange,Unspecified,98792091,35.00,Health & Safety (inc. Medicals & Opticians)
BEIS,UKRI - Research England,10/08/2020,T&S UK - Other Charges,RE - Knowledge Exchange,Unspecified,98792091,43.45,T&S UK - Other Charges
BEIS,UKRI - UKRI,11/08/2020,Unspecified,UKRI - Funding Service,Alexander Mann Solutions Ltd,98767126,8315.14,Contract Staff
BEIS,UKRI - UKRI,11/08/2020,Unspecified,UKRI - Digital Data and Technology BAU Costs,Alexander Mann Solutions Ltd,98776680,1005.00,Contract Staff
BEIS,UKRI - UKRI,11/08/2020,Unspecified,UKRI - Strategic Finance Business Partners,Alexander Mann Solutions Ltd,98780496,809.41,Agency Staff
BEIS,UKRI - UKRI,11/08/2020,Unspecified,"UKRI People, Policies and Management",Alexander Mann Solutions Ltd,98780561,4312.62,Agency Staff
BEIS,UKRI - UKRI,11/08/2020,Unspecified,UKRI - Digital Data and Technology BAU Costs,Alexander Mann Solutions Ltd,98780567,1005.00,Contract Staff
BEIS,UKRI - UKRI,11/08/2020,Asset Clearing,UKRI - JBOS,Alert Cascade Ltd,98783155,3600.00,Asset Clearing
BEIS,UKRI - UKRI,11/08/2020,Unspecified,UKRI - Funding Service,Alexander Mann Solutions Ltd,98783859,4619.52,Contract Staff
BEIS,UKRI - UKRI,11/08/2020,Recruitment Costs,UKRI - Funding Service,Alexander Mann Solutions Ltd,98783861,4619.52,Recruitment Costs
BEIS,UKRI - UKRI,11/08/2020,Unspecified,UKRI - Digital Data and Technology BAU Costs,Alexander Mann Solutions Ltd,98783864,1005.00,Contract Staff
BEIS,UKRI - UKRI,11/08/2020,Unspecified,UKRI - Human Resources Support,Alexander Mann Solutions Ltd,98784529,5543.40,Contract Staff
BEIS,UKRI - UKRI,11/08/2020,T&S UK - Other Charges,UKRI - Communication and Engagement,Unspecified,98786401,61.77,T&S UK - Other Charges
BEIS,UKRI - UKRI,11/08/2020,Unspecified,UKRI - Strategic Finance Business Partners,Alexander Mann Solutions Ltd,98786447,328.14,Agency Staff
BEIS,UKRI - UKRI,11/08/2020,Unspecified,UKRI - Digital Data and Technology BAU Costs,Alexander Mann Solutions Ltd,98786449,1005.00,Contract Staff
BEIS,UKRI - UKRI,11/08/2020,Unspecified,UKRI - Digital Data and Technology Project Costs,Alexander Mann Solutions Ltd,98786450,6775.32,Contract Staff
BEIS,UKRI - UKRI,11/08/2020,Unspecified,UKRI - Human Resources Support,Alexander Mann Solutions Ltd,98786456,2771.70,Contract Staff
BEIS,UKRI - UKRI,11/08/2020,Unspecified,UKRI - Management Reporting,Alexander Mann Solutions Ltd,98786465,1260.12,Agency Staff
BEIS,UKRI - UKRI,11/08/2020,Unspecified,UKRI - Project Management Office,Alexander Mann Solutions Ltd,98786470,2205.18,Agency Staff
BEIS,UKRI - UKRI,11/08/2020,Unspecified,UKRI - Strategic Finance Business Partners,Alexander Mann Solutions Ltd,98788277,656.28,Agency Staff
BEIS,UKRI - UKRI,11/08/2020,Unspecified,UKRI - Management Reporting,Alexander Mann Solutions Ltd,98788287,1127.94,Agency Staff
BEIS,UKRI - UKRI,11/08/2020,Unspecified,UKRI - Funding Service,Alexander Mann Solutions Ltd,98788295,4619.52,Contract Staff
BEIS,UKRI - UKRI,11/08/2020,Unspecified,UKRI - Digital Data and Technology BAU Costs,Alexander Mann Solutions Ltd,98788301,1005.00,Contract Staff
BEIS,UKRI - UKRI,11/08/2020,Unspecified,UKRI - Human Resources Support,Alexander Mann Solutions Ltd,98788309,2217.36,Contract Staff
BEIS,UKRI - UKRI,11/08/2020,Unspecified,UKRI - Management Reporting,Alexander Mann Solutions Ltd,98788960,1260.12,Agency Staff
BEIS,UKRI - Research England,11/08/2020,T&S UK - Other Charges,RE - Research Excellence Framework (REF),Unspecified,98789144,24.95,T&S UK - Other Charges
BEIS,UKRI - EPSRC,11/08/2020,Capital Grants & Equipment to HEIs,National Quantum Computing Centre - NQCC,UKRI - Science & Technology Facilities Council,98790063,177315.00,Capital Grants & Equipment to HEIs
BEIS,UKRI - EPSRC,11/08/2020,Research Grant Expenditure,National Quantum Computing Centre - NQCC,UKRI - Science & Technology Facilities Council,98790063,17674.17,Research Grant Expenditure
BEIS,UKRI - EPSRC,11/08/2020,Capital Grants & Equipment to HEIs,National Quantum Computing Centre - NQCC,UKRI - Science & Technology Facilities Council,98790064,142906.86,Capital Grants & Equipment to HEIs
BEIS,UKRI - EPSRC,11/08/2020,Research Grant Expenditure,National Quantum Computing Centre - NQCC,UKRI - Science & Technology Facilities Council,98790064,7395.93,Research Grant Expenditure
BEIS,UKRI - UKRI,11/08/2020,IT / Computing Support Services,UKRI - Digital Data and Technology BAU Costs,AMAZON WEB SERVICES INC,98790121,182.63,IT / Computing Support Services
BEIS,UKRI - EPSRC,11/08/2020,Recruitment Costs,EPSRC Corporate Services,Agenda Resource Management Ltd,98791067,71.95,Recruitment Costs
BEIS,UKRI - EPSRC,11/08/2020,Recruitment Costs,EPSRC Corporate Services,Agenda Resource Management Ltd,98791067,155.36,Recruitment Costs
BEIS,UKRI - UKRI,11/08/2020,Recruitment Costs,UKRI People and Organisation Development,Agenda Resource Management Ltd,98791068,153.91,Recruitment Costs
BEIS,UKRI - UKRI,11/08/2020,Recruitment Costs,UKRI People and Organisation Development,Agenda Resource Management Ltd,98791070,153.91,Recruitment Costs
BEIS,UKRI - UKRI,11/08/2020,Recruitment Costs,UKRI People and Organisation Development,Agenda Resource Management Ltd,98791072,153.91,Recruitment Costs
BEIS,UKRI - UKRI,11/08/2020,Recruitment Costs,UKRI - Human Resources Support,Agenda Resource Management Ltd,98791073,153.91,Recruitment Costs
BEIS,UKRI - UKRI,11/08/2020,Unspecified,UKRI - Funding Service,Alexander Mann Solutions Ltd,98791276,2992.80,Contract Staff
BEIS,UKRI - UKRI,11/08/2020,Recruitment Costs,UKRI - Funding Service,Alexander Mann Solutions Ltd,98791282,3079.62,Recruitment Costs
BEIS,UKRI - UKRI,11/08/2020,Computer Software Licences,UKRI - Project Management Office,Cabinet Office,98791354,1418.04,Computer Software Licences
BEIS,UKRI - EPSRC,11/08/2020,Fees (Including College Members),Business Improvement,Unspecified,98791363,320.00,Fees (Including College Members)
BEIS,UKRI - EPSRC,11/08/2020,Fees (Including College Members),Business Improvement,Unspecified,98791364,160.00,Fees (Including College Members)
BEIS,UKRI - EPSRC,11/08/2020,Fees (Including College Members),Business Improvement,Unspecified,98791365,160.00,Fees (Including College Members)
BEIS,UKRI - EPSRC,11/08/2020,Fees (Including College Members),Business Improvement,Unspecified,98791366,160.00,Fees (Including College Members)
BEIS,UKRI - UKRI,11/08/2020,Non-staff travel and subsistance,UKRI - GCRF Delivery,Unspecified,98791392,1964.60,Non-staff travel and subsistance
BEIS,UKRI - EPSRC,11/08/2020,Fees (Including College Members),Programme Delivery Manufacturing,Unspecified,98791397,1360.00,Fees (Including College Members)
BEIS,UKRI - EPSRC,11/08/2020,Fees (Including College Members),Business Improvement,Unspecified,98791398,160.00,Fees (Including College Members)
BEIS,UKRI - EPSRC,11/08/2020,Fees (Including College Members),Business Improvement,Unspecified,98791399,160.00,Fees (Including College Members)
BEIS,UKRI - EPSRC,11/08/2020,Fees (Including College Members),Circular Economy OpEx,Unspecified,98791400,80.00,Fees (Including College Members)
BEIS,UKRI - UKRI,11/08/2020,Unspecified,UKRI - Digital Data and Technology BAU Costs,Highplaces Consulting Ltd,98791864,8400.00,Contract Staff
BEIS,UKRI - UKRI,11/08/2020,Unspecified,UKRI - Digital Data and Technology BAU Costs,Highplaces Consulting Ltd,98791864,4800.00,Contract Staff
BEIS,UKRI - UKRI,11/08/2020,Unspecified,UKRI - Digital Data and Technology Project Costs,Alexander Mann Solutions Ltd,98791967,2710.13,Contract Staff
BEIS,UKRI - UKRI,11/08/2020,Unspecified,UKRI - Digital Data and Technology Project Costs,Alexander Mann Solutions Ltd,98791967,4065.19,Contract Staff
BEIS,UKRI - UKRI,11/08/2020,Unspecified,UKRI - Strategic Finance Business Partners,Alexander Mann Solutions Ltd,98791968,656.28,Agency Staff
BEIS,UKRI - UKRI,11/08/2020,Unspecified,UKRI - Funding Service,Alexander Mann Solutions Ltd,98791971,3911.16,Contract Staff
BEIS,UKRI - UKRI,11/08/2020,Unspecified,UKRI - Digital Data and Technology BAU Costs,Alexander Mann Solutions Ltd,98791973,1663.02,Contract Staff
BEIS,UKRI - UKRI,11/08/2020,Unspecified,UKRI - Funding Service,Alexander Mann Solutions Ltd,98791977,2833.30,Contract Staff
BEIS,UKRI - UKRI,11/08/2020,Recruitment Costs,UKRI People and Organisation Development,Onefix Recruitment Ltd,98792013,648.00,Recruitment Costs
BEIS,UKRI - UKRI,11/08/2020,Printing & Stationery,UKRI - JBOS,Unspecified,98792106,93.10,Printing & Stationery
BEIS,UKRI - UKRI,11/08/2020,Telecoms - Non Capital Hardware Costs,UKRI - Digital Data and Technology BAU Costs,Telefonica UK Ltd (O2),98792248,-2.88,Telecoms - Non Capital Hardware Costs
BEIS,UKRI - UKRI,11/08/2020,Telecoms - Non Capital Hardware Costs,UKRI - Digital Data and Technology BAU Costs,Telefonica UK Ltd (O2),98792248,427.67,Telecoms - Non Capital Hardware Costs
BEIS,UKRI - UKRI,11/08/2020,Telecoms - Non Capital Hardware Costs,UKRI - Digital Data and Technology BAU Costs,Telefonica UK Ltd (O2),98792248,-14.39,Telecoms - Non Capital Hardware Costs
BEIS,UKRI - UKRI,11/08/2020,Gas,UKRI - JBOS,Corona Energy,98792335,1142.19,Gas
BEIS,UKRI - UKRI,11/08/2020,Staff Training,UKRI - Overseas Office China,Impact Factory,98792367,960.00,Staff Training
BEIS,UKRI - UKRI,11/08/2020,Staff Training,UKRI - Overseas Office India,Impact Factory,98792367,960.00,Staff Training
BEIS,UKRI - UKRI,11/08/2020,Mobile Phone Costs,UKRI - Digital Data and Technology Recharges,Telefonica UK Ltd (O2),98792372,-690.97,Mobile Phone Costs
BEIS,UKRI - UKRI,11/08/2020,Mobile Phone Costs,UKRI - Digital Data and Technology Recharges,Telefonica UK Ltd (O2),98792373,-133.73,Mobile Phone Costs
BEIS,UKRI - UKRI,11/08/2020,Mobile Phone Costs,UKRI - Digital Data and Technology Recharges,Telefonica UK Ltd (O2),98792374,5826.65,Mobile Phone Costs
BEIS,UKRI - UKRI,11/08/2020,Mobile Phone Costs,UKRI - Digital Data and Technology BAU Costs,Telefonica UK Ltd (O2),98792376,-587.80,Mobile Phone Costs
BEIS,UKRI - UKRI,11/08/2020,Mobile Phone Costs,UKRI - Digital Data and Technology BAU Costs,Telefonica UK Ltd (O2),98792377,-121.27,Mobile Phone Costs
BEIS,UKRI - UKRI,11/08/2020,Mobile Phone Costs,UKRI - Digital Data and Technology BAU Costs,Telefonica UK Ltd (O2),98792378,-2.38,Mobile Phone Costs
BEIS,UKRI - UKRI,11/08/2020,Mobile Phone Costs,UKRI - Digital Data and Technology BAU Costs,Telefonica UK Ltd (O2),98792379,-299.74,Mobile Phone Costs
BEIS,UKRI - UKRI,11/08/2020,Mobile Phone Costs,UKRI - Digital Data and Technology BAU Costs,Telefonica UK Ltd (O2),98792380,3104.59,Mobile Phone Costs
BEIS,UKRI - EPSRC,11/08/2020,T&S UK - Other Charges,Programme Delivery ICT,Unspecified,98793420,150.79,T&S UK - Other Charges
BEIS,UKRI - UKRI,11/08/2020,T&S UK - Subsistence,UKRI - Risk and Counter Fraud,Unspecified,98793423,14.90,T&S UK - Subsistence
BEIS,UKRI - UKRI,11/08/2020,T&S UK - Subsistence,UKRI - Risk and Counter Fraud,Unspecified,98793423,2.40,T&S UK - Subsistence
BEIS,UKRI - UKRI,11/08/2020,T&S UK - Accommodation,UKRI - Risk and Counter Fraud,Unspecified,98793424,79.00,T&S UK - Accommodation
BEIS,UKRI - UKRI,11/08/2020,T&S UK - Subsistence,UKRI - Risk and Counter Fraud,Unspecified,98793424,7.50,T&S UK - Subsistence
BEIS,UKRI - UKRI,11/08/2020,T&S UK - Subsistence,UKRI - Risk and Counter Fraud,Unspecified,98793424,3.20,T&S UK - Subsistence
BEIS,UKRI - UKRI,11/08/2020,T&S UK - Accommodation,UKRI - Risk and Counter Fraud,Unspecified,98793425,89.00,T&S UK - Accommodation
BEIS,UKRI - UKRI,11/08/2020,T&S UK - Subsistence,UKRI - Risk and Counter Fraud,Unspecified,98793425,15.00,T&S UK - Subsistence
BEIS,UKRI - UKRI,11/08/2020,T&S UK - Subsistence,UKRI - Risk and Counter Fraud,Unspecified,98793425,14.60,T&S UK - Subsistence
BEIS,UKRI - UKRI,11/08/2020,T&S UK - Other Charges,UKRI - Research Funding Support,Unspecified,98793426,288.47,T&S UK - Other Charges
BEIS,UKRI - EPSRC,11/08/2020,T&S UK - Other Charges,Programme Delivery Physical Sciences,Unspecified,98793427,289.18,T&S UK - Other Charges
BEIS,UKRI - UKRI,12/08/2020,Health & Safety (inc. Medicals & Opticians),UKRI - Health and Safety,Posturite Ltd,98747115,101.94,Health & Safety (inc. Medicals & Opticians)
BEIS,UKRI - UKRI,12/08/2020,Health & Safety (inc. Medicals & Opticians),UKRI - Health and Safety,Posturite Ltd,98747115,131.94,Health & Safety (inc. Medicals & Opticians)
BEIS,UKRI - UKRI,12/08/2020,Health & Safety (inc. Medicals & Opticians),UKRI - Health and Safety,Posturite Ltd,98747115,33.19,Health & Safety (inc. Medicals & Opticians)
BEIS,UKRI - UKRI,12/08/2020,Health & Safety (inc. Medicals & Opticians),UKRI - Health and Safety,Posturite Ltd,98747115,89.99,Health & Safety (inc. Medicals & Opticians)
BEIS,UKRI - UKRI,12/08/2020,Health & Safety (inc. Medicals & Opticians),UKRI - Health and Safety,Posturite Ltd,98747115,1192.80,Health & Safety (inc. Medicals & Opticians)
BEIS,UKRI - UKRI,12/08/2020,Cleaning & Sterilisation,UKRI - JBOS,Premier Farnell UK Ltd T/A Farnell Onecall,98773554,113.95,Cleaning & Sterilisation
BEIS,UKRI - UKRI,12/08/2020,Advertising & Promotion,UKRI - Communications Projects and Services,Tightype (trading division of 3x3 Project GmbH),98782679,1017.45,Advertising & Promotion
BEIS,UKRI - UKRI,12/08/2020,Advertising & Promotion,UKRI - Communications Projects and Services,Dragon Rouge Ltd,98784336,2640.00,Advertising & Promotion
BEIS,UKRI - UKRI,12/08/2020,Unspecified,UKRI - Strategy,JISC,98785887,14622.34,Secondments
BEIS,UKRI - UKRI,12/08/2020,Advertising & Promotion,UKRI - Communications Projects and Services,Dragon Rouge Ltd,98788647,4338.00,Advertising & Promotion
BEIS,UKRI - UKRI,12/08/2020,Advertising & Promotion,UKRI - Communications Projects and Services,Dragon Rouge Ltd,98788650,3000.00,Advertising & Promotion
BEIS,UKRI - UKRI,12/08/2020,Unspecified,Horizon Europe Short Term Transitions Arrangement,Alexander Mann Solutions Ltd,98788989,2154.82,Agency Staff
BEIS,UKRI - UKRI,12/08/2020,Computer Hardware,UKRI - Digital Data and Technology Project Costs,Logicalis Uk Ltd,98790240,219212.04,Computer Hardware
BEIS,UKRI - EPSRC,12/08/2020,Unspecified,Balance Sheet,HM Revenue & Customs,98791235,3542.60,PAYE Payable Salaries
BEIS,UKRI - EPSRC,12/08/2020,Unspecified,Balance Sheet,HM Revenue & Customs,98791236,699.54,NI Payable Salaries
BEIS,UKRI - EPSRC,12/08/2020,Unspecified,EPSRC Corporate Services,HM Revenue & Customs,98791237,40.00,Apprenticeship Levy
BEIS,UKRI - EPSRC,12/08/2020,Other Programme Costs,Business Partnerships Fund,University of Surrey,98792254,11985.12,Other Programme Costs
BEIS,UKRI - EPSRC,12/08/2020,Other Programme Costs,Energy Energy,University of Surrey,98792254,26650.59,Other Programme Costs
BEIS,UKRI - EPSRC,12/08/2020,Other Programme Costs,ISCF Skills,University of Surrey,98792254,3118.09,Other Programme Costs
BEIS,UKRI - EPSRC,12/08/2020,Other Programme Costs,Manufacturing Manufacturing,University of Surrey,98792254,152.24,Other Programme Costs
BEIS,UKRI - EPSRC,12/08/2020,Other Programme Costs,NC Engineering,University of Surrey,98792254,2126.40,Other Programme Costs
BEIS,UKRI - EPSRC,12/08/2020,Other Programme Costs,NC ICT,University of Surrey,98792254,66307.35,Other Programme Costs
BEIS,UKRI - EPSRC,12/08/2020,Other Programme Costs,NC ICT,University of Surrey,98792254,2894.50,Other Programme Costs
BEIS,UKRI - EPSRC,12/08/2020,Other Programme Costs,NC Physical Sciences,University of Surrey,98792254,66307.34,Other Programme Costs
BEIS,UKRI - EPSRC,12/08/2020,Other Programme Costs,NC Physical Sciences,University of Surrey,98792254,44388.98,Other Programme Costs
BEIS,UKRI - UKRI,12/08/2020,Postage & Courier Services,UKRI - JBOS,Fedex Express UK Transportation Ltd,98792579,787.70,Postage & Courier Services
BEIS,UKRI - UKRI,12/08/2020,Unspecified,UKRI - JRS,Min Of Des Ltd,98792645,2190.00,Patents/ Non Computer Licences
BEIS,UKRI - EPSRC,12/08/2020,Non-staff travel and subsistance,Programme Delivery ICT,Unspecified,98792659,266.56,Non-staff travel and subsistance
BEIS,UKRI - EPSRC,12/08/2020,Fees (Including College Members),Programme Delivery ICT,Unspecified,98792660,160.00,Fees (Including College Members)
BEIS,UKRI - EPSRC,12/08/2020,Fees (Including College Members),Programme Delivery ICT,Unspecified,98792661,320.00,Fees (Including College Members)
BEIS,UKRI - EPSRC,12/08/2020,Fees (Including College Members),Business Improvement,Unspecified,98792662,320.00,Fees (Including College Members)
BEIS,UKRI - UKRI,12/08/2020,Postage & Courier Services,UKRI - Estates,Unspecified,98792664,521.95,Postage & Courier Services
BEIS,UKRI - UKRI,12/08/2020,Recruitment Costs,UKRI - Strategic Finance Business Partners,Onefix Recruitment Ltd,98792701,150.00,Recruitment Costs
BEIS,UKRI - EPSRC,12/08/2020,Unspecified,Executive Chair and Deputy Exec Chairs,University of Oxford,98792787,34681.59,Secondments
BEIS,UKRI - EPSRC,12/08/2020,Unspecified,Balance Sheet,HM Revenue & Customs,98792931,1882.85,PAYE Payable Salaries
BEIS,UKRI - EPSRC,12/08/2020,Unspecified,EPSRC Corporate Services,HM Revenue & Customs,98792932,25.00,Apprenticeship Levy
BEIS,UKRI - EPSRC,12/08/2020,Fees (Including College Members),Programme Delivery Infrastructure,Unspecified,98793852,80.00,Fees (Including College Members)
BEIS,UKRI - EPSRC,12/08/2020,Fees (Including College Members),Programme Delivery Energy,Unspecified,98793853,80.00,Fees (Including College Members)
BEIS,UKRI - EPSRC,12/08/2020,Fees (Including College Members),Programme Delivery Energy,Unspecified,98793854,80.00,Fees (Including College Members)
BEIS,UKRI - EPSRC,12/08/2020,Fees (Including College Members),Materials OpEx,Unspecified,98793855,160.00,Fees (Including College Members)
BEIS,UKRI - UKRI,12/08/2020,Unspecified,UKRI People and Organisation Development,Allen Lane Ltd,98793865,3000.00,Contract Staff
BEIS,UKRI - UKRI,12/08/2020,Unspecified,UKRI People and Organisation Development,Allen Lane Ltd,98793866,25098.00,Contract Staff
BEIS,UKRI - UKRI,12/08/2020,Unspecified,UKRI People and Organisation Development,Allen Lane Ltd,98793867,27000.00,Contract Staff
BEIS,UKRI - UKRI,12/08/2020,Unspecified,UKRI People and Organisation Development,Allen Lane Ltd,98793868,2136.00,Contract Staff
BEIS,UKRI - UKRI,12/08/2020,Computer Software Licences,UKRI - Digital Data and Technology BAU Costs,Softcat plc,98793884,210.72,Computer Software Licences
BEIS,UKRI - UKRI,12/08/2020,Unspecified,UKRI - Risk and Counter Fraud,Marsh Ltd,98793956,58500.00,Legal & Professional Services
BEIS,UKRI - UKRI,12/08/2020,Purchase of non capital equipment,UKRI - Estates,Abbey Business Interiors Ltd,98793957,407.60,Purchase of non capital equipment
BEIS,UKRI - Research England,12/08/2020,Staff Training,RE - Operations and Private Office,Unspecified,98793973,720.00,Staff Training
BEIS,UKRI - UKRI,12/08/2020,UK - Professional Memberships & Subscriptions,UKRI - Strategic Finance Business Partners,Unspecified,98794029,159.00,UK - Professional Memberships & Subscriptions
BEIS,UKRI - UKRI,12/08/2020,UK - Professional Memberships & Subscriptions,UKRI - Funding Assurance,Unspecified,98794030,200.00,UK - Professional Memberships & Subscriptions
BEIS,UKRI - UKRI,12/08/2020,UK - Professional Memberships & Subscriptions,UKRI Strategic HR Business Partners,Unspecified,98794031,163.00,UK - Professional Memberships & Subscriptions
BEIS,UKRI - UKRI,12/08/2020,T&S UK - Other Charges,UKRI - Information Governance,Unspecified,98794032,58.50,T&S UK - Other Charges
BEIS,UKRI - EPSRC,12/08/2020,T&S UK - Other Charges,Programme Delivery Manufacturing,Unspecified,98794033,438.00,T&S UK - Other Charges
BEIS,UKRI - UKRI,13/08/2020,T&S UK - Public Transport,UKRI - Governance,Unspecified,98690372,2.00,T&S UK - Public Transport
BEIS,UKRI - UKRI,13/08/2020,T&S UK - Public Transport,UKRI - Governance,Unspecified,98690372,12.00,T&S UK - Public Transport
BEIS,UKRI - UKRI,13/08/2020,Consumables,UKRI - JRS,Premier Paper Group Ltd,98719394,398.10,Consumables
BEIS,UKRI - UKRI,13/08/2020,Consumables,UKRI - JRS,Premier Paper Group Ltd,98719394,672.00,Consumables
BEIS,UKRI - UKRI,13/08/2020,Consumables,UKRI - JRS,Premier Paper Group Ltd,98719394,0.05,Consumables
BEIS,UKRI - UKRI,13/08/2020,Consumables,UKRI - JRS,Premier Paper Group Ltd,98719394,0.25,Consumables
BEIS,UKRI - UKRI,13/08/2020,T&S UK - Other Charges,UKRI - Research Funding Support,Unspecified,98750748,365.56,T&S UK - Other Charges
BEIS,UKRI - Research England,13/08/2020,T&S UK - Other Charges,RE - Research,Unspecified,98776844,64.95,T&S UK - Other Charges
BEIS,UKRI - UKRI,13/08/2020,Consumables,UKRI - JRS,Premier Paper Group Ltd,98785750,-2.10,Consumables
BEIS,UKRI - UKRI,13/08/2020,Telecoms - Non Capital Hardware Costs,UKRI - Digital Data and Technology Recharges,Telefonica UK Ltd (O2),98786525,774.00,Telecoms - Non Capital Hardware Costs
BEIS,UKRI - UKRI,13/08/2020,Telecoms - Non Capital Hardware Costs,UKRI - Digital Data and Technology BAU Costs,Telefonica UK Ltd (O2),98786670,4863.10,Telecoms - Non Capital Hardware Costs
BEIS,UKRI - EPSRC,13/08/2020,Marketing & PR,Programme Delivery Quantum Technology,Syndicut Communications Ltd,98787797,5760.00,Marketing & PR
BEIS,UKRI - UKRI,13/08/2020,Unspecified,UKRI - Digital Data and Technology Project Costs,Alexander Mann Solutions Ltd,98791239,4003.56,Contract Staff
BEIS,UKRI - UKRI,13/08/2020,Unspecified,UKRI - Digital Data and Technology Project Costs,Alexander Mann Solutions Ltd,98791244,1847.77,Contract Staff
BEIS,UKRI - UKRI,13/08/2020,Unspecified,UKRI - Digital Data and Technology Project Costs,Alexander Mann Solutions Ltd,98791284,3969.32,Contract Staff
BEIS,UKRI - UKRI,13/08/2020,Unspecified,UKRI - Funding Service,Alexander Mann Solutions Ltd,98791287,3150.30,Contract Staff
BEIS,UKRI - UKRI,13/08/2020,Unspecified,UKRI - Digital Data and Technology BAU Costs,Alexander Mann Solutions Ltd,98791297,1260.12,Contract Staff
BEIS,UKRI - UKRI,13/08/2020,Unspecified,UKRI - Digital Data and Technology Project Costs,Alexander Mann Solutions Ltd,98791886,18901.80,Contract Staff
BEIS,UKRI - UKRI,13/08/2020,Unspecified,UKRI - Digital Data and Technology Project Costs,Alexander Mann Solutions Ltd,98791888,4095.36,Contract Staff
BEIS,UKRI - UKRI,13/08/2020,Unspecified,UKRI - Digital Data and Technology BAU Costs,Alexander Mann Solutions Ltd,98791947,2155.80,Contract Staff
BEIS,UKRI - UKRI,13/08/2020,Unspecified,UKRI - Digital Data and Technology BAU Costs,Alexander Mann Solutions Ltd,98791954,2520.24,Contract Staff
BEIS,UKRI - UKRI,13/08/2020,Unspecified,UKRI - Digital Data and Technology Project Costs,Alexander Mann Solutions Ltd,98791972,9423.76,Contract Staff
BEIS,UKRI - UKRI,13/08/2020,Unspecified,UKRI - Funding Service,Alexander Mann Solutions Ltd,98791978,3150.30,Contract Staff
BEIS,UKRI - UKRI,13/08/2020,Conferences & Seminars,UKRI - Communications Projects and Services,McCann Synergy Ltd,98792232,2400.00,Conferences & Seminars
BEIS,UKRI - UKRI,13/08/2020,Staff Training,"UKRI People, Policies and Management",Pearn Kandola LLP,98792947,1560.00,Staff Training
BEIS,UKRI - UKRI,13/08/2020,IT / Computing Support Services,UKRI - Digital Data and Technology BAU Costs,Networthnet Ltd T/A Worth Internet Systems,98792950,1012.50,IT / Computing Support Services
BEIS,UKRI - UKRI,13/08/2020,Unspecified,Open Access,Alma Economics Ltd,98792983,42000.00,Legal & Professional Services
BEIS,UKRI - EPSRC,13/08/2020,Fees (Including College Members),Business Improvement,Unspecified,98793009,320.00,Fees (Including College Members)
BEIS,UKRI - EPSRC,13/08/2020,Fees (Including College Members),Business Improvement,Unspecified,98793010,320.00,Fees (Including College Members)
BEIS,UKRI - EPSRC,13/08/2020,Non-staff travel and subsistance,Programme Delivery ICT,Unspecified,98793011,169.43,Non-staff travel and subsistance
BEIS,UKRI - EPSRC,13/08/2020,Fees (Including College Members),Programme Delivery ICT,Unspecified,98793012,160.00,Fees (Including College Members)
BEIS,UKRI - EPSRC,13/08/2020,Nursery Deductions,Balance Sheet,UKRI - Natural Environment Research Council,98793078,243.00,Nursery Deductions
BEIS,UKRI - EPSRC,13/08/2020,Nursery Deductions,Balance Sheet,UKRI - Natural Environment Research Council,98793091,25.00,Nursery Deductions
BEIS,UKRI - EPSRC,13/08/2020,Nursery Deductions,Balance Sheet,UKRI - Natural Environment Research Council,98793092,243.00,Nursery Deductions
BEIS,UKRI - UKRI,13/08/2020,T&S UK - Subsistence,UKRI - Risk and Counter Fraud,Unspecified,98793099,31.80,T&S UK - Subsistence
BEIS,UKRI - UKRI,13/08/2020,T&S UK - Subsistence,UKRI - Risk and Counter Fraud,Unspecified,98793099,10.27,T&S UK - Subsistence
BEIS,UKRI - UKRI,13/08/2020,T&S UK - Other Charges,UKRI - Communications Business Partners,Unspecified,98793103,75.00,T&S UK - Other Charges
BEIS,UKRI - UKRI,13/08/2020,T&S UK - Mileage,"UKRI People, Policies and Management",Unspecified,98793104,40.50,T&S UK - Mileage
BEIS,UKRI - UKRI,13/08/2020,Health & Safety (inc. Medicals & Opticians),UKRI - Digital Data and Technology BAU Costs,Unspecified,98793105,124.00,Health & Safety (inc. Medicals & Opticians)
BEIS,UKRI - UKRI,13/08/2020,T&S UK - Other Charges,UKRI - Digital Data and Technology BAU Costs,Unspecified,98793105,45.99,T&S UK - Other Charges
BEIS,UKRI - EPSRC,13/08/2020,Unspecified,Balance Sheet,HM Revenue & Customs,98793138,595870.26,PAYE Payable Salaries
BEIS,UKRI - EPSRC,13/08/2020,Unspecified,Balance Sheet,HM Revenue & Customs,98793139,738459.13,NI Payable Salaries
BEIS,UKRI - EPSRC,13/08/2020,Unspecified,Balance Sheet,HM Revenue & Customs,98793140,30477.00,Student Loans
BEIS,UKRI - EPSRC,13/08/2020,Unspecified,EPSRC Corporate Services,HM Revenue & Customs,98793141,19052.00,Apprenticeship Levy
BEIS,UKRI - EPSRC,13/08/2020,Union Deductions,Balance Sheet,PCS Union,98793142,762.43,Union Deductions
BEIS,UKRI - EPSRC,13/08/2020,Unspecified,Balance Sheet,Unspecified,98793143,471204.29,Ers Pension Deductions - JSS
BEIS,UKRI - EPSRC,13/08/2020,Unspecified,Balance Sheet,Unspecified,98793144,112722.59,Ees Pension Deductions - JSS
BEIS,UKRI - EPSRC,13/08/2020,Voluntary Deductions,Balance Sheet,Civil Service Benevolent Fund,98793145,27.33,Voluntary Deductions
BEIS,UKRI - EPSRC,13/08/2020,Unspecified,Balance Sheet,Cabinet Office RM Shared Services,98793146,80157.97,Ees Pension Deductions - MyCSP
BEIS,UKRI - EPSRC,13/08/2020,Unspecified,Balance Sheet,Cabinet Office RM Shared Services,98793147,615.89,Ees Pension Deductions - JSS
BEIS,UKRI - EPSRC,13/08/2020,Unspecified,Balance Sheet,Cabinet Office RM Shared Services,98793148,2518.99,Ers Pension Deductions - JSS
BEIS,UKRI - EPSRC,13/08/2020,Unspecified,Balance Sheet,Cabinet Office RM Shared Services,98793149,206.79,Ers Pension Deductions - JSS
BEIS,UKRI - EPSRC,13/08/2020,Unspecified,Balance Sheet,Scottish Widows,98793150,255.39,Other Pension Deductions
BEIS,UKRI - EPSRC,13/08/2020,Unspecified,Balance Sheet,Scottish Widows,98793151,4745.91,Partnership Pension Deductions
BEIS,UKRI - EPSRC,13/08/2020,Ees Pension Deductions - MRC,Balance Sheet,UKRI - Medical Research Council,98793152,18797.15,Ees Pension Deductions - MRC
BEIS,UKRI - EPSRC,13/08/2020,Ers Pension Deductions - MRC,Balance Sheet,UKRI - Medical Research Council,98793153,41846.23,Ers Pension Deductions - MRC
BEIS,UKRI - EPSRC,13/08/2020,Union Deductions,Balance Sheet,Prospect Union,98793154,36.52,Union Deductions
BEIS,UKRI - EPSRC,13/08/2020,Voluntary Deductions,Balance Sheet,Harwell Rec Soc,98793155,9.00,Voluntary Deductions
BEIS,UKRI - EPSRC,13/08/2020,Voluntary Deductions,Balance Sheet,Charities Aid Foundation - GAYE,98793156,11.00,Voluntary Deductions
BEIS,UKRI - EPSRC,13/08/2020,Unspecified,Balance Sheet,Equiniti Ltd,98793157,2254.09,Other Pension Deductions
BEIS,UKRI - EPSRC,13/08/2020,Voluntary Deductions,Balance Sheet,Hercules Health and Fitness Centre,98793158,15.00,Voluntary Deductions
BEIS,UKRI - EPSRC,13/08/2020,Voluntary Deductions,Balance Sheet,UKRI - Science & Technology Facilities Council,98793159,46.00,Voluntary Deductions
BEIS,UKRI - UKRI,13/08/2020,Staff Training,UKRI - Project Management Office,QA Ltd,98794106,1755.36,Staff Training
BEIS,UKRI - UKRI,13/08/2020,Unspecified,Sciencewise,The Involve Foundation,98794112,22124.26,Legal & Professional Services
BEIS,UKRI - UKRI,13/08/2020,Staff Training,UKRI - Global Engagement,Pearn Kandola LLP,98794146,3600.00,Staff Training
BEIS,UKRI - UKRI,13/08/2020,Other Staff Benefits,UKRI - Overseas Office USA,Foreign & Commonwealth Office,98794175,14.15,Other Staff Benefits
BEIS,UKRI - UKRI,13/08/2020,Unspecified,UKRI - Overseas Office USA,Foreign & Commonwealth Office,98794175,2327.95,Secondments
BEIS,UKRI - UKRI,13/08/2020,Other Staff Benefits,UKRI - Overseas Office USA,Foreign & Commonwealth Office,98794189,33.27,Other Staff Benefits
BEIS,UKRI - UKRI,13/08/2020,Unspecified,UKRI - Overseas Office USA,Foreign & Commonwealth Office,98794189,347.45,Secondments
BEIS,UKRI - UKRI,13/08/2020,Unspecified,UKRI - Overseas Office China,Foreign & Commonwealth Office,98794192,34639.72,Secondments
BEIS,UKRI - UKRI,13/08/2020,Unspecified,UKRI - Overseas Office India,Foreign & Commonwealth Office,98794195,4639.37,Secondments
BEIS,UKRI - UKRI,13/08/2020,Mobile Phone Costs,UKRI - Overseas Office USA,Foreign & Commonwealth Office,98794198,178.20,Mobile Phone Costs
BEIS,UKRI - UKRI,13/08/2020,Unspecified,UKRI - Overseas Office USA,Foreign & Commonwealth Office,98794198,2975.45,Secondments
BEIS,UKRI - EPSRC,13/08/2020,Employee Overpayments,Balance Sheet,UKRI - Natural Environment Research Council,98794222,395.44,Employee Overpayments
BEIS,UKRI - EPSRC,13/08/2020,Reward & Recognition Team Advances,Balance Sheet,UKRI - Natural Environment Research Council,98794223,614.00,Reward & Recognition Team Advances
BEIS,UKRI - EPSRC,13/08/2020,Unspecified,Balance Sheet,HM Revenue & Customs,98794234,51969.60,PAYE Payable Salaries
BEIS,UKRI - EPSRC,13/08/2020,Unspecified,Balance Sheet,HM Revenue & Customs,98794235,56895.93,NI Payable Salaries
BEIS,UKRI - EPSRC,13/08/2020,Unspecified,Balance Sheet,HM Revenue & Customs,98794236,5514.00,Student Loans
BEIS,UKRI - EPSRC,13/08/2020,Unspecified,EPSRC Corporate Services,HM Revenue & Customs,98794237,1446.00,Apprenticeship Levy
BEIS,UKRI - EPSRC,13/08/2020,Union Deductions,Balance Sheet,PCS Union,98794238,72.56,Union Deductions
BEIS,UKRI - EPSRC,13/08/2020,Voluntary Deductions,Balance Sheet,The Office for Students,98794239,29.00,Voluntary Deductions
BEIS,UKRI - EPSRC,13/08/2020,Unspecified,Balance Sheet,Cabinet Office RM Shared Services,98794240,604.42,Ees Pension Deductions - JSS
BEIS,UKRI - EPSRC,13/08/2020,Unspecified,Balance Sheet,Cabinet Office RM Shared Services,98794241,2491.72,Ers Pension Deductions - JSS
BEIS,UKRI - EPSRC,13/08/2020,Unspecified,Balance Sheet,Cabinet Office RM Shared Services,98794242,33.25,Ers Pension Deductions - JSS
BEIS,UKRI - EPSRC,13/08/2020,Voluntary Deductions,Balance Sheet,Civil Service Benevolent Fund,98794243,2.50,Voluntary Deductions
BEIS,UKRI - EPSRC,13/08/2020,Unspecified,Balance Sheet,Cabinet Office RM Shared Services,98794244,15052.31,Ees Pension Deductions - MyCSP
BEIS,UKRI - EPSRC,13/08/2020,Unspecified,Balance Sheet,Cabinet Office RM Shared Services,98794245,68067.75,Ers Pension Deductions - MyCSP
BEIS,UKRI - EPSRC,13/08/2020,Unspecified,Balance Sheet,Unspecified,98794246,6281.29,Ers Pension Deductions - JSS
BEIS,UKRI - EPSRC,13/08/2020,Unspecified,Balance Sheet,Unspecified,98794247,1414.04,Ees Pension Deductions - JSS
BEIS,UKRI - EPSRC,13/08/2020,Unspecified,Balance Sheet,HM Revenue & Customs,98794249,125228.26,PAYE Payable Salaries
BEIS,UKRI - EPSRC,13/08/2020,Unspecified,Balance Sheet,HM Revenue & Customs,98794250,161862.74,NI Payable Salaries
BEIS,UKRI - EPSRC,13/08/2020,Unspecified,Balance Sheet,HM Revenue & Customs,98794251,13335.00,Student Loans
BEIS,UKRI - EPSRC,13/08/2020,Unspecified,EPSRC Corporate Services,HM Revenue & Customs,98794252,4186.00,Apprenticeship Levy
BEIS,UKRI - EPSRC,13/08/2020,Unspecified,Balance Sheet,Scottish Widows,98794253,35.69,Other Pension Deductions
BEIS,UKRI - EPSRC,13/08/2020,Unspecified,Balance Sheet,Scottish Widows,98794254,421.82,Partnership Pension Deductions
BEIS,UKRI - EPSRC,13/08/2020,Union Deductions,Balance Sheet,PCS Union,98794255,104.55,Union Deductions
BEIS,UKRI - EPSRC,13/08/2020,Unspecified,Balance Sheet,Unspecified,98794257,133666.77,Ers Pension Deductions - JSS
BEIS,UKRI - EPSRC,13/08/2020,Unspecified,Balance Sheet,Unspecified,98794258,31055.22,Ees Pension Deductions - JSS
BEIS,UKRI - EPSRC,13/08/2020,Unspecified,Balance Sheet,Cabinet Office RM Shared Services,98794259,28.06,Ers Pension Deductions - JSS
BEIS,UKRI - EPSRC,13/08/2020,Unspecified,Balance Sheet,Cabinet Office RM Shared Services,98794260,13744.77,Ees Pension Deductions - MyCSP
BEIS,UKRI - EPSRC,13/08/2020,Unspecified,Balance Sheet,Cabinet Office RM Shared Services,98794261,68076.18,Ers Pension Deductions - MyCSP
BEIS,UKRI - EPSRC,13/08/2020,Ees Pension Deductions - MRC,Balance Sheet,UKRI - Medical Research Council,98794262,324.70,Ees Pension Deductions - MRC
BEIS,UKRI - EPSRC,13/08/2020,Ers Pension Deductions - MRC,Balance Sheet,UKRI - Medical Research Council,98794263,749.30,Ers Pension Deductions - MRC
BEIS,UKRI - UKRI,13/08/2020,Unspecified,UKRI - Secretariat,Department for Education,98794326,23891.16,Secondments
BEIS,UKRI - EPSRC,13/08/2020,Unspecified,Balance Sheet,Standard Life Assurance Ltd,98794328,3276.90,Partnership Pension Deductions
BEIS,UKRI - EPSRC,13/08/2020,Unspecified,Balance Sheet,Cabinet Office RM Shared Services,98794329,368437.65,Ers Pension Deductions - MyCSP
BEIS,UKRI - EPSRC,13/08/2020,Unspecified,Balance Sheet,Equitable Life Assurance Society,98794330,1.74,Other Pension Deductions
BEIS,UKRI - EPSRC,13/08/2020,Voluntary Deductions,Balance Sheet,Civil Service Sports Council,98794331,106.55,Voluntary Deductions
BEIS,UKRI - EPSRC,13/08/2020,Voluntary Deductions,Balance Sheet,Simplyhealth,98794332,13.87,Voluntary Deductions
BEIS,UKRI - EPSRC,13/08/2020,Payroll Clearing,Balance Sheet,UKRI - Science & Technology Facilities Council,98794333,388.10,Payroll Clearing
BEIS,UKRI - UKRI,14/08/2020,Consumables,UKRI - JRS,Premier Paper Group Ltd,98702014,142.02,Consumables
BEIS,UKRI - UKRI,14/08/2020,Printing & Stationery,UKRI - JRS,Premier Paper Group Ltd,98702014,43.20,Printing & Stationery
BEIS,UKRI - UKRI,14/08/2020,Computer Software Licences,UKRI - Digital Data and Technology BAU Costs,Phoenix Software Ltd,98774825,3343.80,Computer Software Licences
BEIS,UKRI - UKRI,14/08/2020,T&S UK - Other Charges,UKRI - Digital Data and Technology BAU Costs,Unspecified,98780109,66.48,T&S UK - Other Charges
BEIS,UKRI - UKRI,14/08/2020,Telecoms - Non Capital Hardware Costs,UKRI - Digital Data and Technology BAU Costs,Telefonica UK Ltd (O2),98783662,292.80,Telecoms - Non Capital Hardware Costs
BEIS,UKRI - UKRI,14/08/2020,Telecoms - Non Capital Hardware Costs,UKRI - Digital Data and Technology BAU Costs,Telefonica UK Ltd (O2),98786723,292.80,Telecoms - Non Capital Hardware Costs
BEIS,UKRI - UKRI,14/08/2020,T&S UK - Other Charges,UKRI - Communications Business Partners,Unspecified,98787329,215.99,T&S UK - Other Charges
BEIS,UKRI - UKRI,14/08/2020,Cleaning & Sterilisation,UKRI - Financial Accounting,Banner Group Ltd,98788379,32.06,Cleaning & Sterilisation
BEIS,UKRI - UKRI,14/08/2020,Printing & Stationery,UKRI - Financial Accounting,Banner Group Ltd,98788380,9.55,Printing & Stationery
BEIS,UKRI - UKRI,14/08/2020,Printing & Stationery,UKRI - Financial Accounting,Banner Group Ltd,98788382,21.86,Printing & Stationery
BEIS,UKRI - UKRI,14/08/2020,Printing & Stationery,UKRI - Financial Accounting,Banner Group Ltd,98788383,16.90,Printing & Stationery
BEIS,UKRI - UKRI,14/08/2020,Printing & Stationery,UKRI - Financial Accounting,RS Components,98789418,24.94,Printing & Stationery
BEIS,UKRI - UKRI,14/08/2020,Printing & Stationery,UKRI - Financial Accounting,RS Components,98789418,11.18,Printing & Stationery
BEIS,UKRI - UKRI,14/08/2020,Unspecified,UKRI - Project Management Office,Butler Meridian Ltd,98789758,7980.00,Contract Staff
BEIS,UKRI - UKRI,14/08/2020,Printing & Stationery,UKRI - Financial Accounting,Banner Group Ltd,98790479,21.86,Printing & Stationery
BEIS,UKRI - UKRI,14/08/2020,Printing & Stationery,UKRI - Financial Accounting,VWR International Ltd,98791718,29.47,Printing & Stationery
BEIS,UKRI - UKRI,14/08/2020,Printing & Stationery,UKRI - Financial Accounting,VWR International Ltd,98791718,-8.50,Printing & Stationery
BEIS,UKRI - UKRI,14/08/2020,Printing & Stationery,UKRI - Financial Accounting,VWR International Ltd,98791718,-1.70,Printing & Stationery
BEIS,UKRI - UKRI,14/08/2020,Cleaning & Sterilisation,UKRI - Financial Accounting,VWR International Ltd,98792310,48.06,Cleaning & Sterilisation
BEIS,UKRI - UKRI,14/08/2020,Cleaning & Sterilisation,UKRI - Financial Accounting,Banner Group Ltd,98793229,26.06,Cleaning & Sterilisation
BEIS,UKRI - EPSRC,14/08/2020,Nursery Deductions,Balance Sheet,EDENRED (UK GROUP) LTD,98793297,52875.27,Nursery Deductions
BEIS,UKRI - UKRI,14/08/2020,Other Staff Benefits,"UKRI People, Policies and Management",EDENRED (UK GROUP) LTD,98793300,114.22,Other Staff Benefits
BEIS,UKRI - UKRI,14/08/2020,Design services,UKRI - JRS,Bla Translation Ltd,98793308,624.00,Design services
BEIS,UKRI - UKRI,14/08/2020,Recruitment Costs,UKRI People and Organisation Development,Onefix Recruitment Ltd,98794271,2683.20,Recruitment Costs
BEIS,UKRI - UKRI,14/08/2020,Recruitment Costs,UKRI - Procurement and Commercial,Onefix Recruitment Ltd,98794275,300.00,Recruitment Costs
BEIS,UKRI - EPSRC,14/08/2020,Fees (Including College Members),Programme Delivery ICT,Unspecified,98794362,320.00,Fees (Including College Members)
BEIS,UKRI - EPSRC,14/08/2020,Fees (Including College Members),Programme Delivery ICT,Unspecified,98794363,320.00,Fees (Including College Members)
BEIS,UKRI - EPSRC,14/08/2020,Fees (Including College Members),Programme Delivery ICT,Unspecified,98794364,320.00,Fees (Including College Members)
BEIS,UKRI - EPSRC,14/08/2020,Fees (Including College Members),Programme Delivery ICT,Unspecified,98794365,320.00,Fees (Including College Members)
BEIS,UKRI - EPSRC,14/08/2020,Fees (Including College Members),Programme Delivery ICT,Unspecified,98794366,320.00,Fees (Including College Members)
BEIS,UKRI - EPSRC,14/08/2020,Fees (Including College Members),Programme Delivery ICT,Unspecified,98794367,320.00,Fees (Including College Members)
BEIS,UKRI - EPSRC,14/08/2020,Fees (Including College Members),Programme Delivery Energy,Unspecified,98794368,80.00,Fees (Including College Members)
BEIS,UKRI - EPSRC,14/08/2020,Fees (Including College Members),Business Improvement,Unspecified,98794369,160.00,Fees (Including College Members)
BEIS,UKRI - EPSRC,14/08/2020,Fees (Including College Members),Business Improvement,Unspecified,98794370,160.00,Fees (Including College Members)
BEIS,UKRI - EPSRC,14/08/2020,Fees (Including College Members),Business Improvement,Unspecified,98794371,160.00,Fees (Including College Members)
BEIS,UKRI - UKRI,14/08/2020,Telecoms - Non Capital Hardware Costs,UKRI - Digital Data and Technology BAU Costs,Telefonica UK Ltd (O2),98794472,410.40,Telecoms - Non Capital Hardware Costs
BEIS,UKRI - Research England,14/08/2020,T&S UK - Other Charges,RE - Knowledge Exchange,Unspecified,98794556,34.50,T&S UK - Other Charges
BEIS,UKRI - UKRI,17/08/2020,Books Professional Journals & Guides,UKRI - Digital Data and Technology Library Services,Jisc Services Ltd,98783655,186952.96,Books Professional Journals & Guides
BEIS,UKRI - UKRI,17/08/2020,Health & Safety (inc. Medicals & Opticians),UKRI - Health and Safety,Abbey Business Interiors Ltd,98788229,657.54,Health & Safety (inc. Medicals & Opticians)
BEIS,UKRI - UKRI,17/08/2020,Unspecified,UKRI - Digital Data and Technology BAU Costs,Alexander Mann Solutions Ltd,98788967,3079.62,Agency Staff
BEIS,UKRI - UKRI,17/08/2020,Unspecified,UKRI - Digital Data and Technology BAU Costs,Alexander Mann Solutions Ltd,98788980,1970.98,Contract Staff
BEIS,UKRI - UKRI,17/08/2020,Computer Hardware,UKRI - Digital Data and Technology BAU Costs,Dell Corporation Ltd,98790139,123190.80,Computer Hardware
BEIS,UKRI - UKRI,17/08/2020,Unspecified,UKRI - Digital Data and Technology BAU Costs,Alexander Mann Solutions Ltd,98791285,3079.62,Agency Staff
BEIS,UKRI - UKRI,17/08/2020,Unspecified,UKRI - Digital Data and Technology BAU Costs,Alexander Mann Solutions Ltd,98791976,1970.98,Contract Staff
BEIS,UKRI - UKRI,17/08/2020,Recruitment Costs,UKRI - Procurement and Commercial,Onefix Recruitment Ltd,98793024,150.00,Recruitment Costs
BEIS,UKRI - UKRI,17/08/2020,Recruitment Costs,UKRI People and Organisation Development,Onefix Recruitment Ltd,98794272,670.80,Recruitment Costs
BEIS,UKRI - UKRI,17/08/2020,Conferences & Seminars,UKRI - Communications Projects and Services,BLR Estates Ltd,98794621,5.42,Conferences & Seminars
BEIS,UKRI - UKRI,17/08/2020,Postage & Courier Services,UKRI - JBOS,Fedex Express UK Transportation Ltd,98794636,377.38,Postage & Courier Services
BEIS,UKRI - EPSRC,17/08/2020,Recruitment Costs,EPSRC Corporate Services,Alexander Mann Solutions Ltd,98794664,1035.30,Recruitment Costs
BEIS,UKRI - UKRI,17/08/2020,Recruitment Costs,UKRI People and Organisation Development,Agenda Resource Management Ltd,98794680,56.11,Recruitment Costs
BEIS,UKRI - UKRI,17/08/2020,Fees (Including College Members),UKRI - GCRF Delivery,Unspecified,98794690,160.00,Fees (Including College Members)
BEIS,UKRI - UKRI,17/08/2020,Fees (Including College Members),UKRI - GCRF Delivery,Unspecified,98794691,160.00,Fees (Including College Members)
BEIS,UKRI - UKRI,17/08/2020,Unspecified,UKRI - Digital Data and Technology BAU Costs,Alexander Mann Solutions Ltd,98794696,1293.48,Contract Staff
BEIS,UKRI - UKRI,17/08/2020,Mobile Phone Costs,UKRI - Digital Data and Technology Recharges,Vodafone Ltd,98794698,32.40,Mobile Phone Costs
BEIS,UKRI - Research England,17/08/2020,Non-staff travel and subsistance,RE - Research Excellence Framework (REF),Lancaster University,98794706,237.14,Non-staff travel and subsistance
BEIS,UKRI - UKRI,17/08/2020,Books Professional Journals & Guides,UKRI - Digital Data and Technology Library Services,Jisc Services Ltd,98795459,-14645.19,Books Professional Journals & Guides
BEIS,UKRI - UKRI,17/08/2020,Rates,UKRI - Estates,Stamford Street Tenant Ltd T/A Weework,98795462,55344.00,Rates
BEIS,UKRI - EPSRC,17/08/2020,Fees (Including College Members),Business Improvement,Unspecified,98795505,320.00,Fees (Including College Members)
BEIS,UKRI - EPSRC,17/08/2020,Fees (Including College Members),Business Improvement,Unspecified,98795506,320.00,Fees (Including College Members)
BEIS,UKRI - UKRI,17/08/2020,Unspecified,UKRI - Management Reporting,Alexander Mann Solutions Ltd,98795510,1260.12,Agency Staff
BEIS,UKRI - UKRI,17/08/2020,Recruitment Costs,UKRI - Funding Service,Alexander Mann Solutions Ltd,98795515,3079.62,Recruitment Costs
BEIS,UKRI - UKRI,17/08/2020,Unspecified,UKRI - Digital Data and Technology BAU Costs,Alexander Mann Solutions Ltd,98795516,3079.62,Agency Staff
BEIS,UKRI - UKRI,17/08/2020,Recruitment Costs,UKRI - Funding Service,Alexander Mann Solutions Ltd,98795518,4619.52,Recruitment Costs
BEIS,UKRI - UKRI,17/08/2020,Unspecified,UKRI - Project Management Office,Alexander Mann Solutions Ltd,98795520,2205.18,Agency Staff
BEIS,UKRI - UKRI,17/08/2020,Unspecified,UKRI - Digital Data and Technology Project Costs,Alexander Mann Solutions Ltd,98795526,3510.84,Contract Staff
BEIS,UKRI - Research England,17/08/2020,IT / Computing Support Services,RE - Research Excellence Framework (REF),Connect Internet Solutions Ltd,98795539,360.00,IT / Computing Support Services
BEIS,UKRI - UKRI,17/08/2020,Unspecified,"UKRI People, Policies and Management",Alexander Mann Solutions Ltd,98795541,3000.00,Agency Staff
BEIS,UKRI - UKRI,17/08/2020,Unspecified,UKRI - Digital Data and Technology BAU Costs,Alexander Mann Solutions Ltd,98795542,1200.18,Contract Staff
BEIS,UKRI - UKRI,17/08/2020,Consultancy Services,UKRI - Governance,Alexander Mann Solutions Ltd,98795546,2520.24,Consultancy Services
BEIS,UKRI - UKRI,17/08/2020,Unspecified,UKRI - Financial Accounting,Alexander Mann Solutions Ltd,98795552,2771.70,Contract Staff
BEIS,UKRI - UKRI,17/08/2020,Unspecified,"UKRI People, Policies and Management",Alexander Mann Solutions Ltd,98795560,3000.00,Agency Staff
BEIS,UKRI - UKRI,17/08/2020,Staff Training,"Corporate Strategy, Governance and Performance",Hazel Bees Consulting Ltd,98795632,1440.00,Staff Training
BEIS,UKRI - EPSRC,17/08/2020,T&S UK - Other Charges,Directors and Deputy Directors,Unspecified,98795646,207.44,T&S UK - Other Charges
BEIS,UKRI - EPSRC,17/08/2020,T&S UK - Other Charges,Programme Delivery Energy,Unspecified,98795647,417.77,T&S UK - Other Charges
BEIS,UKRI - EPSRC,17/08/2020,T&S UK - Other Charges,Programme Delivery Engineering,Unspecified,98795648,50.87,T&S UK - Other Charges
BEIS,UKRI - UKRI,17/08/2020,T&S UK - Other Charges,UKRI - Public Engagement,Unspecified,98795649,147.95,T&S UK - Other Charges
BEIS,UKRI - UKRI,17/08/2020,T&S UK - Other Charges,UKRI - UKRO,Unspecified,98795651,561.96,T&S UK - Other Charges
BEIS,UKRI - UKRI,18/08/2020,T&S UK - Other Charges,UKRI - Public Engagement,Unspecified,98767892,16.73,T&S UK - Other Charges
BEIS,UKRI - UKRI,18/08/2020,Unspecified,UKRI - Human Resources Support,Alexander Mann Solutions Ltd,98773665,4410.42,Contract Staff
BEIS,UKRI - EPSRC,18/08/2020,Institute Grant Expenditure,Rosalind Franklin Institute,UKRI - Science & Technology Facilities Council,98774547,2216182.69,Institute Grant Expenditure
BEIS,UKRI - UKRI,18/08/2020,T&S UK - Other Charges,"UKRI - Data Policy, Governance and MI",Unspecified,98776140,198.96,T&S UK - Other Charges
BEIS,UKRI - UKRI,18/08/2020,Unspecified,UKRI - Human Resources Support,Alexander Mann Solutions Ltd,98776672,4410.42,Contract Staff
BEIS,UKRI - Research England,18/08/2020,Research Grant Expenditure,RE- HEIF,Guildhall School of Music & Drama,98777437,40946.55,Research Grant Expenditure
BEIS,UKRI - Research England,18/08/2020,Research Grant Expenditure,RE- Quality Research (QR),Guildhall School of Music & Drama,98777574,-52536.68,Research Grant Expenditure
BEIS,UKRI - UKRI,18/08/2020,Unspecified,UKRI - Human Resources Support,Alexander Mann Solutions Ltd,98780524,4410.42,Contract Staff
BEIS,UKRI - UKRI,18/08/2020,Telecoms - Non Capital Hardware Costs,UKRI - Digital Data and Technology BAU Costs,Telefonica UK Ltd (O2),98783667,410.40,Telecoms - Non Capital Hardware Costs
BEIS,UKRI - UKRI,18/08/2020,Unspecified,UKRI - JRS,Alexander Mann Solutions Ltd,98785405,2664.00,Contract Staff
BEIS,UKRI - UKRI,18/08/2020,Telecoms - Non Capital Hardware Costs,UKRI - Digital Data and Technology BAU Costs,Telefonica UK Ltd (O2),98786130,410.40,Telecoms - Non Capital Hardware Costs
BEIS,UKRI - UKRI,18/08/2020,Telecoms - Non Capital Hardware Costs,UKRI - Digital Data and Technology BAU Costs,Telefonica UK Ltd (O2),98786131,410.40,Telecoms - Non Capital Hardware Costs
BEIS,UKRI - UKRI,18/08/2020,Telecoms - Non Capital Hardware Costs,UKRI - Digital Data and Technology BAU Costs,Telefonica UK Ltd (O2),98786132,410.40,Telecoms - Non Capital Hardware Costs
BEIS,UKRI - UKRI,18/08/2020,Telecoms - Non Capital Hardware Costs,UKRI - Digital Data and Technology BAU Costs,Telefonica UK Ltd (O2),98786133,410.40,Telecoms - Non Capital Hardware Costs
BEIS,UKRI - UKRI,18/08/2020,Telecoms - Non Capital Hardware Costs,UKRI - Digital Data and Technology BAU Costs,Telefonica UK Ltd (O2),98786134,410.40,Telecoms - Non Capital Hardware Costs
BEIS,UKRI - UKRI,18/08/2020,Telecoms - Non Capital Hardware Costs,UKRI - Digital Data and Technology BAU Costs,Telefonica UK Ltd (O2),98786135,919.28,Telecoms - Non Capital Hardware Costs
BEIS,UKRI - UKRI,18/08/2020,Telecoms - Non Capital Hardware Costs,UKRI - Digital Data and Technology BAU Costs,Telefonica UK Ltd (O2),98786137,410.40,Telecoms - Non Capital Hardware Costs
BEIS,UKRI - UKRI,18/08/2020,Telecoms - Non Capital Hardware Costs,UKRI - Digital Data and Technology Project Costs,Telefonica UK Ltd (O2),98786138,12312.00,Telecoms - Non Capital Hardware Costs
BEIS,UKRI - UKRI,18/08/2020,Telecoms - Non Capital Hardware Costs,UKRI - Digital Data and Technology BAU Costs,Telefonica UK Ltd (O2),98786522,292.80,Telecoms - Non Capital Hardware Costs
BEIS,UKRI - UKRI,18/08/2020,Telecoms - Non Capital Hardware Costs,UKRI - Digital Data and Technology BAU Costs,Telefonica UK Ltd (O2),98786537,412.80,Telecoms - Non Capital Hardware Costs
BEIS,UKRI - UKRI,18/08/2020,Telecoms - Non Capital Hardware Costs,UKRI - Digital Data and Technology BAU Costs,Telefonica UK Ltd (O2),98786541,410.40,Telecoms - Non Capital Hardware Costs
BEIS,UKRI - UKRI,18/08/2020,Telecoms - Non Capital Hardware Costs,UKRI - Digital Data and Technology Recharges,Telefonica UK Ltd (O2),98786555,292.80,Telecoms - Non Capital Hardware Costs
BEIS,UKRI - UKRI,18/08/2020,Telecoms - Non Capital Hardware Costs,UKRI - Digital Data and Technology BAU Costs,Telefonica UK Ltd (O2),98786665,292.80,Telecoms - Non Capital Hardware Costs
BEIS,UKRI - UKRI,18/08/2020,Telecoms - Non Capital Hardware Costs,UKRI - Digital Data and Technology BAU Costs,Telefonica UK Ltd (O2),98786666,30.00,Telecoms - Non Capital Hardware Costs
BEIS,UKRI - UKRI,18/08/2020,Telecoms - Non Capital Hardware Costs,UKRI - Digital Data and Technology BAU Costs,Telefonica UK Ltd (O2),98786677,292.80,Telecoms - Non Capital Hardware Costs
BEIS,UKRI - UKRI,18/08/2020,Telecoms - Non Capital Hardware Costs,UKRI - Digital Data and Technology BAU Costs,Telefonica UK Ltd (O2),98786721,292.80,Telecoms - Non Capital Hardware Costs
BEIS,UKRI - UKRI,18/08/2020,Unspecified,UKRI - Communications Web and Intranet Service,Reed Specialist Recruitment Ltd,98786804,1205.72,Contract Staff
BEIS,UKRI - UKRI,18/08/2020,Unspecified,UKRI - Communications Web and Intranet Service,Reed Specialist Recruitment Ltd,98787188,1205.72,Contract Staff
BEIS,UKRI - UKRI,18/08/2020,Unspecified,UKRI - Communications Web and Intranet Service,Reed Specialist Recruitment Ltd,98787503,1205.72,Contract Staff
BEIS,UKRI - UKRI,18/08/2020,Unspecified,UKRI - Communications Web and Intranet Service,Reed Specialist Recruitment Ltd,98787506,1205.72,Contract Staff
BEIS,UKRI - UKRI,18/08/2020,Unspecified,UKRI - Communications Web and Intranet Service,Reed Specialist Recruitment Ltd,98787509,1205.72,Contract Staff
BEIS,UKRI - UKRI,18/08/2020,Unspecified,UKRI - Communications Web and Intranet Service,Reed Specialist Recruitment Ltd,98787512,1205.72,Contract Staff
BEIS,UKRI - UKRI,18/08/2020,Telecoms - Non Capital Hardware Costs,UKRI - Digital Data and Technology BAU Costs,Telefonica UK Ltd (O2),98787592,10.62,Telecoms - Non Capital Hardware Costs
BEIS,UKRI - UKRI,18/08/2020,Unspecified,UKRI - JRS,Alexander Mann Solutions Ltd,98788233,1776.00,Contract Staff
BEIS,UKRI - UKRI,18/08/2020,Unspecified,UKRI - Communications Web and Intranet Service,Reed Specialist Recruitment Ltd,98788557,1205.72,Contract Staff
BEIS,UKRI - UKRI,18/08/2020,Unspecified,UKRI - Human Resources Support,Alexander Mann Solutions Ltd,98788991,7938.76,Contract Staff
BEIS,UKRI - UKRI,18/08/2020,Unspecified,UKRI - Communications Web and Intranet Service,Reed Specialist Recruitment Ltd,98789751,1205.72,Contract Staff
BEIS,UKRI - UKRI,18/08/2020,Advertising & Promotion,UKRI - Communications Content,Martin Ince Communications Ltd,98790171,825.00,Advertising & Promotion
BEIS,UKRI - EPSRC,18/08/2020,Institute Grant Expenditure,Rosalind Franklin Institute,UKRI - Science & Technology Facilities Council,98790676,4198020.00,Institute Grant Expenditure
BEIS,UKRI - EPSRC,18/08/2020,Institute Grant Expenditure,Rosalind Franklin Institute,UKRI - Science & Technology Facilities Council,98790676,649787.53,Institute Grant Expenditure
BEIS,UKRI - UKRI,18/08/2020,Recruitment Costs,UKRI People and Organisation Development,Oryx Executive Search Ltd,98791243,12000.00,Recruitment Costs
BEIS,UKRI - UKRI,18/08/2020,SSC Service Charges,UKRI - Corporate Services,UK Shared Business Services Ltd,98791277,2052500.00,SSC Service Charges
BEIS,UKRI - UKRI,18/08/2020,Electricity,UKRI - JBOS,EDF Energy,98791403,-28976.12,Electricity
BEIS,UKRI - UKRI,18/08/2020,Computer Software Licences,UKRI - Digital Data and Technology BAU Costs,DATABARRACKS LTD,98791619,1200.00,Computer Software Licences
BEIS,UKRI - UKRI,18/08/2020,Unspecified,UKRI - JRS,Alexander Mann Solutions Ltd,98791859,2220.00,Contract Staff
BEIS,UKRI - Research England,18/08/2020,Capital Grants & Equipment to HEIs,RE - UK RPIF,University of Bristol,98792726,1000000.00,Capital Grants & Equipment to HEIs
BEIS,UKRI - Research England,18/08/2020,Capital Grants & Equipment to HEIs,RE - UK RPIF,University of Cambridge,98792727,2000000.00,Capital Grants & Equipment to HEIs
BEIS,UKRI - Research England,18/08/2020,Capital Grants & Equipment to HEIs,RE - UK RPIF,University of Exeter,98792728,184815.00,Capital Grants & Equipment to HEIs
BEIS,UKRI - Research England,18/08/2020,Capital Grants & Equipment to HEIs,RE - UK RPIF,Higher Education Funding Council for Wales,98792729,129649.00,Capital Grants & Equipment to HEIs
BEIS,UKRI - Research England,18/08/2020,Capital Grants & Equipment to HEIs,RE - UK RPIF,University of York,98792730,227649.00,Capital Grants & Equipment to HEIs
BEIS,UKRI - Research England,18/08/2020,Research Grant Expenditure,RE - Connecting Capability Fund,University of Bath,98792731,90000.00,Research Grant Expenditure
BEIS,UKRI - Research England,18/08/2020,Research Grant Expenditure,RE - Connecting Capability Fund,University of Essex,98792732,71352.00,Research Grant Expenditure
BEIS,UKRI - Research England,18/08/2020,Research Grant Expenditure,RE - Connecting Capability Fund,The University of Manchester,98792733,450000.00,Research Grant Expenditure
BEIS,UKRI - Research England,18/08/2020,Research Grant Expenditure,RE - Connecting Capability Fund,University of Oxford,98792734,319641.66,Research Grant Expenditure
BEIS,UKRI - Research England,18/08/2020,Research Grant Expenditure,RE - Connecting Capability Fund,King's College London,98792735,189707.50,Research Grant Expenditure
BEIS,UKRI - Research England,18/08/2020,Research Grant Expenditure,RE - Connecting Capability Fund,University of Leeds,98792736,140111.00,Research Grant Expenditure
BEIS,UKRI - Research England,18/08/2020,Research Grant Expenditure,RE - Connecting Capability Fund,University of York,98792737,149013.10,Research Grant Expenditure
BEIS,UKRI - Research England,18/08/2020,Research Grant Expenditure,RE - Connecting Capability Fund,Imperial College Science Tech & Med,98792738,129071.00,Research Grant Expenditure
BEIS,UKRI - Research England,18/08/2020,Research Grant Expenditure,RE - Connecting Capability Fund,University of the West of England,98792739,66627.00,Research Grant Expenditure
BEIS,UKRI - Research England,18/08/2020,Research Grant Expenditure,RE - Connecting Capability Fund,University of Cambridge,98792740,17993.00,Research Grant Expenditure
BEIS,UKRI - Research England,18/08/2020,Research Grant Expenditure,RE - Connecting Capability Fund,De Montfort University,98792741,145000.00,Research Grant Expenditure
BEIS,UKRI - Research England,18/08/2020,Research Grant Expenditure,RE - Connecting Capability Fund,University of Durham,98792742,55298.00,Research Grant Expenditure
BEIS,UKRI - Research England,18/08/2020,Research Grant Expenditure,RE - Connecting Capability Fund,University of Sheffield,98792743,304477.00,Research Grant Expenditure
BEIS,UKRI - Research England,18/08/2020,Research Grant Expenditure,RE - Connecting Capability Fund,Royal Veterinary College,98792744,284000.00,Research Grant Expenditure
BEIS,UKRI - Research England,18/08/2020,Research Grant Expenditure,RE - SIPF,Cardiff University,98792745,25000.00,Research Grant Expenditure
BEIS,UKRI - Research England,18/08/2020,Research Grant Expenditure,RE - SIPF,LUCIDEON LTD,98792746,25000.00,Research Grant Expenditure
BEIS,UKRI - Research England,18/08/2020,Research Grant Expenditure,RE - SIPF,MEDICINES DISCOVERY CATAPULT LTD,98792747,25000.00,Research Grant Expenditure
BEIS,UKRI - Research England,18/08/2020,Research Grant Expenditure,RE - SIPF,Northumbria University,98792748,25000.00,Research Grant Expenditure
BEIS,UKRI - Research England,18/08/2020,Research Grant Expenditure,RE - SIPF,Heriot Watt University,98792749,25000.00,Research Grant Expenditure
BEIS,UKRI - Research England,18/08/2020,Research Grant Expenditure,RE - SIPF,Manchester Metropolitan University,98792750,25000.00,Research Grant Expenditure
BEIS,UKRI - Research England,18/08/2020,Research Grant Expenditure,RE - SIPF,Coventry University,98792751,25000.00,Research Grant Expenditure
BEIS,UKRI - Research England,18/08/2020,Research Grant Expenditure,RE - SIPF,University of East Anglia,98792752,25000.00,Research Grant Expenditure
BEIS,UKRI - Research England,18/08/2020,Research Grant Expenditure,RE - SIPF,Queen Mary University of London,98792753,25000.00,Research Grant Expenditure
BEIS,UKRI - Research England,18/08/2020,Research Grant Expenditure,RE - SIPF,University of Nottingham,98792754,25000.00,Research Grant Expenditure
BEIS,UKRI - Research England,18/08/2020,Research Grant Expenditure,RE - SIPF,SRUC,98792755,25000.00,Research Grant Expenditure
BEIS,UKRI - Research England,18/08/2020,Research Grant Expenditure,RE - SIPF,NPL Management Ltd,98792756,25000.00,Research Grant Expenditure
BEIS,UKRI - Research England,18/08/2020,Research Grant Expenditure,RE - SIPF,Queen's University Belfast,98792757,25000.00,Research Grant Expenditure
BEIS,UKRI - Research England,18/08/2020,Research Grant Expenditure,RE - SIPF,University of Strathclyde,98792758,25000.00,Research Grant Expenditure
BEIS,UKRI - Research England,18/08/2020,Research Grant Expenditure,RE - RE Development fund (RED),London Business School,98792759,167000.00,Research Grant Expenditure
BEIS,UKRI - Research England,18/08/2020,Research Grant Expenditure,RE - RE Development fund (RED),University of Liverpool,98792760,220272.00,Research Grant Expenditure
BEIS,UKRI - Research England,18/08/2020,Research Grant Expenditure,RE - RE Development fund (RED),University of Oxford,98792761,230000.00,Research Grant Expenditure
BEIS,UKRI - Research England,18/08/2020,Capital Grants & Equipment to HEIs,RE - RE Development fund (RED),Cranfield University,98792762,25000.00,Capital Grants & Equipment to HEIs
BEIS,UKRI - Research England,18/08/2020,Research Grant Expenditure,RE - RE Development fund (RED),Cranfield University,98792763,23000.00,Research Grant Expenditure
BEIS,UKRI - Research England,18/08/2020,Research Grant Expenditure,RE - RE Development fund (RED),Keele University,98792764,51000.00,Research Grant Expenditure
BEIS,UKRI - Research England,18/08/2020,Capital Grants & Equipment to HEIs,RE - RE Development fund (RED),Oxford Brookes University,98792765,25500.00,Capital Grants & Equipment to HEIs
BEIS,UKRI - Research England,18/08/2020,Research Grant Expenditure,RE - RE Development fund (RED),Oxford Brookes University,98792766,154500.00,Research Grant Expenditure
BEIS,UKRI - Research England,18/08/2020,Research Grant Expenditure,RE - RE Development fund (RED),University College London,98792767,14600.00,Research Grant Expenditure
BEIS,UKRI - Research England,18/08/2020,Research Grant Expenditure,RE - RE Development fund (RED),University of Cambridge,98792768,41000.00,Research Grant Expenditure
BEIS,UKRI - Research England,18/08/2020,Research Grant Expenditure,RE - RE Development fund (RED),University of Cambridge,98792769,58657.00,Research Grant Expenditure
BEIS,UKRI - Research England,18/08/2020,Research Grant Expenditure,RE - RE Development fund (RED),University of Cambridge,98792770,128600.00,Research Grant Expenditure
BEIS,UKRI - Research England,18/08/2020,Research Grant Expenditure,RE - RE Development fund (RED),University of Hertfordshire,98792771,43750.00,Research Grant Expenditure
BEIS,UKRI - Research England,18/08/2020,Research Grant Expenditure,RE - Emerging priorities,The Conversation Trust (UK) Limited,98792772,15450.00,Research Grant Expenditure
BEIS,UKRI - Research England,18/08/2020,Research Grant Expenditure,RE - Emerging priorities,UK Council for Graduate Education,98792773,5700.00,Research Grant Expenditure
BEIS,UKRI - Research England,18/08/2020,Research Grant Expenditure,RE - Expanding Excellence in England (E3),Royal Northern College of Music,98792774,20557.83,Research Grant Expenditure
BEIS,UKRI - Research England,18/08/2020,Research Grant Expenditure,RE - Expanding Excellence in England (E3),Sheffield Hallam University,98792775,63582.00,Research Grant Expenditure
BEIS,UKRI - Research England,18/08/2020,Research Grant Expenditure,RE - Expanding Excellence in England (E3),University of Portsmouth,98792776,110167.00,Research Grant Expenditure
BEIS,UKRI - Research England,18/08/2020,Research Grant Expenditure,RE - NCUB,National Centre for Universities and Business (NCUB),98792777,82820.00,Research Grant Expenditure
BEIS,UKRI - Research England,18/08/2020,Research Grant Expenditure,RE - NCUB,National Centre for Universities and Business (NCUB),98792778,248805.00,Research Grant Expenditure
BEIS,UKRI - UKRI,18/08/2020,Recruitment Costs,UKRI People and Organisation Development,Oryx Executive Search Ltd,98792910,8400.00,Recruitment Costs
BEIS,UKRI - EPSRC,18/08/2020,Fees (Including College Members),Business Improvement,Unspecified,98793013,321.54,Fees (Including College Members)
BEIS,UKRI - Research England,18/08/2020,Research Grant Expenditure,RE- HEIF,Anglia Ruskin University,98793442,396311.40,Research Grant Expenditure
BEIS,UKRI - Research England,18/08/2020,Research Grant Expenditure,RE- HEIF,University of the Arts London,98793443,408579.45,Research Grant Expenditure
BEIS,UKRI - Research England,18/08/2020,Research Grant Expenditure,RE- HEIF,Aston University,98793444,159585.45,Research Grant Expenditure
BEIS,UKRI - Research England,18/08/2020,Research Grant Expenditure,RE- HEIF,University of Bath,98793445,180545.40,Research Grant Expenditure
BEIS,UKRI - Research England,18/08/2020,Research Grant Expenditure,RE- HEIF,University of Bedfordshire,98793446,69423.60,Research Grant Expenditure
BEIS,UKRI - Research England,18/08/2020,Research Grant Expenditure,RE- HEIF,University of Birmingham,98793447,515346.00,Research Grant Expenditure
BEIS,UKRI - Research England,18/08/2020,Research Grant Expenditure,RE- HEIF,Birmingham City University,98793448,106844.85,Research Grant Expenditure
BEIS,UKRI - Research England,18/08/2020,Research Grant Expenditure,RE- HEIF,Bournemouth University,98793449,71358.60,Research Grant Expenditure
BEIS,UKRI - Research England,18/08/2020,Research Grant Expenditure,RE- HEIF,University of Bradford,98793450,74172.75,Research Grant Expenditure
BEIS,UKRI - Research England,18/08/2020,Research Grant Expenditure,RE- HEIF,University of Brighton,98793451,145839.90,Research Grant Expenditure
BEIS,UKRI - Research England,18/08/2020,Research Grant Expenditure,RE- HEIF,University of Bristol,98793452,515346.00,Research Grant Expenditure
BEIS,UKRI - Research England,18/08/2020,Research Grant Expenditure,RE- HEIF,Brunel University London,98793453,133228.35,Research Grant Expenditure
BEIS,UKRI - Research England,18/08/2020,Research Grant Expenditure,RE- HEIF,Buckinghamshire New University (Bucks New University),98793454,35434.95,Research Grant Expenditure
BEIS,UKRI - Research England,18/08/2020,Research Grant Expenditure,RE- HEIF,University of Cambridge,98793455,515346.00,Research Grant Expenditure
BEIS,UKRI - Research England,18/08/2020,Research Grant Expenditure,RE- HEIF,Canterbury Christ Church University,98793456,60156.30,Research Grant Expenditure
BEIS,UKRI - Research England,18/08/2020,Research Grant Expenditure,RE- HEIF,University of Central Lancashire,98793457,291268.35,Research Grant Expenditure
BEIS,UKRI - Research England,18/08/2020,Research Grant Expenditure,RE- HEIF,University of Chester,98793458,107194.50,Research Grant Expenditure
BEIS,UKRI - Research England,18/08/2020,Research Grant Expenditure,RE- HEIF,University of Chichester,98793459,31317.30,Research Grant Expenditure
BEIS,UKRI - Research England,18/08/2020,Research Grant Expenditure,RE- HEIF,"City, University of London",98793460,242043.15,Research Grant Expenditure
BEIS,UKRI - Research England,18/08/2020,Research Grant Expenditure,RE- HEIF,The Conservatoire for Dance and Drama,98793461,49005.45,Research Grant Expenditure
BEIS,UKRI - Research England,18/08/2020,Research Grant Expenditure,RE- HEIF,Coventry University,98793462,271783.20,Research Grant Expenditure
BEIS,UKRI - Research England,18/08/2020,Research Grant Expenditure,RE- HEIF,Cranfield University,98793463,485779.05,Research Grant Expenditure
BEIS,UKRI - Research England,18/08/2020,Research Grant Expenditure,RE- HEIF,De Montfort University,98793464,89718.30,Research Grant Expenditure
BEIS,UKRI - Research England,18/08/2020,Research Grant Expenditure,RE- HEIF,University of Derby,98793465,119910.30,Research Grant Expenditure
BEIS,UKRI - Research England,18/08/2020,Research Grant Expenditure,RE- HEIF,University of Durham,98793466,350393.55,Research Grant Expenditure
BEIS,UKRI - Research England,18/08/2020,Research Grant Expenditure,RE- HEIF,University of East Anglia,98793467,353422.50,Research Grant Expenditure
BEIS,UKRI - Research England,18/08/2020,Research Grant Expenditure,RE- HEIF,University of East London,98793468,31255.35,Research Grant Expenditure
BEIS,UKRI - Research England,18/08/2020,Research Grant Expenditure,RE- HEIF,Edge Hill University College,98793469,33493.20,Research Grant Expenditure
BEIS,UKRI - Research England,18/08/2020,Research Grant Expenditure,RE- HEIF,University of Essex,98793470,350424.60,Research Grant Expenditure
BEIS,UKRI - Research England,18/08/2020,Research Grant Expenditure,RE- HEIF,University of Exeter,98793471,433778.55,Research Grant Expenditure
BEIS,UKRI - Research England,18/08/2020,Research Grant Expenditure,RE- HEIF,University of Gloucestershire,98793472,54403.20,Research Grant Expenditure
BEIS,UKRI - Research England,18/08/2020,Research Grant Expenditure,RE- HEIF,Goldsmiths College University of London,98793473,58933.80,Research Grant Expenditure
BEIS,UKRI - Research England,18/08/2020,Research Grant Expenditure,RE- HEIF,University of Greenwich,98793474,251474.70,Research Grant Expenditure
BEIS,UKRI - Research England,18/08/2020,Research Grant Expenditure,RE- HEIF,Guildhall School of Music & Drama,98793475,62566.20,Research Grant Expenditure
BEIS,UKRI - Research England,18/08/2020,Research Grant Expenditure,RE- HEIF,Harper Adams University College,98793476,45981.00,Research Grant Expenditure
BEIS,UKRI - Research England,18/08/2020,Research Grant Expenditure,RE- HEIF,Hartpury University,98793477,28937.10,Research Grant Expenditure
BEIS,UKRI - Research England,18/08/2020,Research Grant Expenditure,RE- HEIF,University of Hertfordshire,98793478,435882.00,Research Grant Expenditure
BEIS,UKRI - Research England,18/08/2020,Research Grant Expenditure,RE- HEIF,University of Huddersfield,98793479,150811.50,Research Grant Expenditure
BEIS,UKRI - Research England,18/08/2020,Research Grant Expenditure,RE- HEIF,University of Hull,98793480,153779.70,Research Grant Expenditure
BEIS,UKRI - Research England,18/08/2020,Research Grant Expenditure,RE- HEIF,Imperial College Science Tech & Med,98793481,515346.00,Research Grant Expenditure
BEIS,UKRI - Research England,18/08/2020,Research Grant Expenditure,RE- HEIF,Institute of Cancer Research,98793482,332492.25,Research Grant Expenditure
BEIS,UKRI - Research England,18/08/2020,Research Grant Expenditure,RE- HEIF,Keele University,98793483,150710.85,Research Grant Expenditure
BEIS,UKRI - Research England,18/08/2020,Research Grant Expenditure,RE- HEIF,University of Kent,98793484,158535.60,Research Grant Expenditure
BEIS,UKRI - Research England,18/08/2020,Research Grant Expenditure,RE- HEIF,King's College London,98793485,515346.00,Research Grant Expenditure
BEIS,UKRI - Research England,18/08/2020,Research Grant Expenditure,RE- HEIF,Kingston University,98793486,55386.00,Research Grant Expenditure
BEIS,UKRI - Research England,18/08/2020,Research Grant Expenditure,RE- HEIF,Lamda Ltd (London Academy of Music & Dramatic Art),98793487,152455.65,Research Grant Expenditure
BEIS,UKRI - Research England,18/08/2020,Research Grant Expenditure,RE- HEIF,Lancaster University,98793488,396311.40,Research Grant Expenditure
BEIS,UKRI - Research England,18/08/2020,Research Grant Expenditure,RE- HEIF,University of Leeds,98793489,515346.00,Research Grant Expenditure
BEIS,UKRI - Research England,18/08/2020,Research Grant Expenditure,RE- HEIF,Leeds Beckett University,98793490,324014.25,Research Grant Expenditure
BEIS,UKRI - Research England,18/08/2020,Research Grant Expenditure,RE- HEIF,University of Leicester,98793491,488413.05,Research Grant Expenditure
BEIS,UKRI - Research England,18/08/2020,Research Grant Expenditure,RE- HEIF,University of Lincoln,98793492,137319.30,Research Grant Expenditure
BEIS,UKRI - Research England,18/08/2020,Research Grant Expenditure,RE- HEIF,University of Liverpool,98793493,513322.20,Research Grant Expenditure
BEIS,UKRI - Research England,18/08/2020,Research Grant Expenditure,RE- HEIF,Liverpool Hope University,98793494,45633.15,Research Grant Expenditure
BEIS,UKRI - Research England,18/08/2020,Research Grant Expenditure,RE- HEIF,Liverpool John Moores University,98793495,142898.85,Research Grant Expenditure
BEIS,UKRI - Research England,18/08/2020,Research Grant Expenditure,RE- HEIF,Liverpool School of Tropical Medicine,98793496,354461.70,Research Grant Expenditure
BEIS,UKRI - Research England,18/08/2020,Research Grant Expenditure,RE- HEIF,University College London,98793497,515346.00,Research Grant Expenditure
BEIS,UKRI - Research England,18/08/2020,Research Grant Expenditure,RE- HEIF,London Business School,98793498,500204.40,Research Grant Expenditure
BEIS,UKRI - Research England,18/08/2020,Research Grant Expenditure,RE- HEIF,London Metropolitan University,98793499,94505.10,Research Grant Expenditure
BEIS,UKRI - Research England,18/08/2020,Research Grant Expenditure,RE- HEIF,London School of Economics and Political Science,98793500,514108.50,Research Grant Expenditure
BEIS,UKRI - Research England,18/08/2020,Research Grant Expenditure,RE- HEIF,London School of Hygiene & Tropical Medicine,98793501,182693.85,Research Grant Expenditure
BEIS,UKRI - Research England,18/08/2020,Research Grant Expenditure,RE- HEIF,London South Bank University,98793502,70515.90,Research Grant Expenditure
BEIS,UKRI - Research England,18/08/2020,Research Grant Expenditure,RE- HEIF,Loughborough University,98793503,482390.25,Research Grant Expenditure
BEIS,UKRI - Research England,18/08/2020,Research Grant Expenditure,RE- HEIF,The University of Manchester,98793504,515346.00,Research Grant Expenditure
BEIS,UKRI - Research England,18/08/2020,Research Grant Expenditure,RE- HEIF,Manchester Metropolitan University,98793505,137945.85,Research Grant Expenditure
BEIS,UKRI - Research England,18/08/2020,Research Grant Expenditure,RE- HEIF,Middlesex University,98793506,202218.00,Research Grant Expenditure
BEIS,UKRI - Research England,18/08/2020,Research Grant Expenditure,RE- HEIF,The National Film & Television School,98793507,34834.20,Research Grant Expenditure
BEIS,UKRI - Research England,18/08/2020,Research Grant Expenditure,RE- HEIF,Newcastle University,98793508,496734.45,Research Grant Expenditure
BEIS,UKRI - Research England,18/08/2020,Research Grant Expenditure,RE- HEIF,University of Northampton,98793509,76656.15,Research Grant Expenditure
BEIS,UKRI - Research England,18/08/2020,Research Grant Expenditure,RE- HEIF,Northumbria University,98793510,71374.50,Research Grant Expenditure
BEIS,UKRI - Research England,18/08/2020,Research Grant Expenditure,RE- HEIF,Nottingham Trent University,98793511,206012.55,Research Grant Expenditure
BEIS,UKRI - Research England,18/08/2020,Research Grant Expenditure,RE- HEIF,University of Nottingham,98793512,515346.00,Research Grant Expenditure
BEIS,UKRI - Research England,18/08/2020,Research Grant Expenditure,RE- HEIF,Open University,98793513,123909.60,Research Grant Expenditure
BEIS,UKRI - Research England,18/08/2020,Research Grant Expenditure,RE- HEIF,"SOAS, University of London",98793514,59031.75,Research Grant Expenditure
BEIS,UKRI - Research England,18/08/2020,Research Grant Expenditure,RE- HEIF,University of Oxford,98793515,515346.00,Research Grant Expenditure
BEIS,UKRI - Research England,18/08/2020,Research Grant Expenditure,RE- HEIF,Oxford Brookes University,98793516,137241.45,Research Grant Expenditure
BEIS,UKRI - Research England,18/08/2020,Research Grant Expenditure,RE- HEIF,University of Plymouth,98793517,243205.35,Research Grant Expenditure
BEIS,UKRI - Research England,18/08/2020,Research Grant Expenditure,RE- HEIF,University of Portsmouth,98793518,212815.05,Research Grant Expenditure
BEIS,UKRI - Research England,18/08/2020,Research Grant Expenditure,RE- HEIF,Queen Mary University of London,98793519,488411.85,Research Grant Expenditure
BEIS,UKRI - Research England,18/08/2020,Research Grant Expenditure,RE- HEIF,University of Reading,98793520,307678.35,Research Grant Expenditure
BEIS,UKRI - Research England,18/08/2020,Research Grant Expenditure,RE- HEIF,Roehampton University (University of Roehampton),98793521,58522.20,Research Grant Expenditure
BEIS,UKRI - Research England,18/08/2020,Research Grant Expenditure,RE- HEIF,Royal Academy of Dramatic Arts,98793522,85224.60,Research Grant Expenditure
BEIS,UKRI - Research England,18/08/2020,Research Grant Expenditure,RE- HEIF,Royal Agricultural University,98793523,29860.95,Research Grant Expenditure
BEIS,UKRI - Research England,18/08/2020,Research Grant Expenditure,RE- HEIF,Royal College of Art,98793524,43261.35,Research Grant Expenditure
BEIS,UKRI - Research England,18/08/2020,Research Grant Expenditure,RE- HEIF,Royal College of Music,98793525,36167.10,Research Grant Expenditure
BEIS,UKRI - Research England,18/08/2020,Research Grant Expenditure,RE- HEIF,Royal Holloway & Bedford New C,98793526,88547.55,Research Grant Expenditure
BEIS,UKRI - Research England,18/08/2020,Research Grant Expenditure,RE- HEIF,Royal Northern College of Music,98793527,40364.10,Research Grant Expenditure
BEIS,UKRI - Research England,18/08/2020,Research Grant Expenditure,RE- HEIF,Royal Veterinary College,98793528,204280.80,Research Grant Expenditure
BEIS,UKRI - Research England,18/08/2020,Research Grant Expenditure,RE- HEIF,University of Salford,98793529,208037.25,Research Grant Expenditure
BEIS,UKRI - Research England,18/08/2020,Research Grant Expenditure,RE- HEIF,University of Sheffield,98793530,515346.00,Research Grant Expenditure
BEIS,UKRI - Research England,18/08/2020,Research Grant Expenditure,RE- HEIF,Sheffield Hallam University,98793531,131050.20,Research Grant Expenditure
BEIS,UKRI - Research England,18/08/2020,Research Grant Expenditure,RE- HEIF,Solent University Ltd,98793532,153735.60,Research Grant Expenditure
BEIS,UKRI - Research England,18/08/2020,Research Grant Expenditure,RE- HEIF,University of Southampton,98793533,515346.00,Research Grant Expenditure
BEIS,UKRI - Research England,18/08/2020,Research Grant Expenditure,RE- HEIF,St Marys University,98793534,49064.70,Research Grant Expenditure
BEIS,UKRI - Research England,18/08/2020,Research Grant Expenditure,RE- HEIF,St George's University of London,98793535,65156.10,Research Grant Expenditure
BEIS,UKRI - Research England,18/08/2020,Research Grant Expenditure,RE- HEIF,Staffordshire University,98793536,134682.00,Research Grant Expenditure
BEIS,UKRI - Research England,18/08/2020,Research Grant Expenditure,RE- HEIF,University of Sunderland,98793537,71154.30,Research Grant Expenditure
BEIS,UKRI - Research England,18/08/2020,Research Grant Expenditure,RE- HEIF,University of Surrey,98793538,486688.80,Research Grant Expenditure
BEIS,UKRI - Research England,18/08/2020,Research Grant Expenditure,RE- HEIF,University of Sussex,98793539,373350.90,Research Grant Expenditure
BEIS,UKRI - Research England,18/08/2020,Research Grant Expenditure,RE- HEIF,Teesside University,98793540,138926.70,Research Grant Expenditure
BEIS,UKRI - Research England,18/08/2020,Research Grant Expenditure,RE- HEIF,Trinity Laban Conservatoire of Music and Dance,98793541,51962.70,Research Grant Expenditure
BEIS,UKRI - Research England,18/08/2020,Research Grant Expenditure,RE- HEIF,University of Warwick,98793542,498709.50,Research Grant Expenditure
BEIS,UKRI - Research England,18/08/2020,Research Grant Expenditure,RE- HEIF,University of West London,98793543,45753.45,Research Grant Expenditure
BEIS,UKRI - Research England,18/08/2020,Research Grant Expenditure,RE- HEIF,University of the West of England,98793544,199786.65,Research Grant Expenditure
BEIS,UKRI - Research England,18/08/2020,Research Grant Expenditure,RE- HEIF,University of Westminster,98793545,114522.60,Research Grant Expenditure
BEIS,UKRI - Research England,18/08/2020,Research Grant Expenditure,RE- HEIF,University of Winchester,98793546,29054.85,Research Grant Expenditure
BEIS,UKRI - Research England,18/08/2020,Research Grant Expenditure,RE- HEIF,University of Wolverhampton,98793547,169885.35,Research Grant Expenditure
BEIS,UKRI - Research England,18/08/2020,Research Grant Expenditure,RE- HEIF,University of Worcester,98793548,49573.20,Research Grant Expenditure
BEIS,UKRI - Research England,18/08/2020,Research Grant Expenditure,RE- HEIF,University of York,98793549,489043.95,Research Grant Expenditure
BEIS,UKRI - Research England,18/08/2020,Research Grant Expenditure,RE- Quality Research (QR),AECC University College,98793550,545.63,Research Grant Expenditure
BEIS,UKRI - Research England,18/08/2020,Research Grant Expenditure,RE- Quality Research (QR),Anglia Ruskin University,98793551,375332.19,Research Grant Expenditure
BEIS,UKRI - Research England,18/08/2020,Research Grant Expenditure,RE- Quality Research (QR),Arts University Bournemouth,98793552,18945.47,Research Grant Expenditure
BEIS,UKRI - Research England,18/08/2020,Research Grant Expenditure,RE- Quality Research (QR),University of the Arts London,98793553,549519.69,Research Grant Expenditure
BEIS,UKRI - Research England,18/08/2020,Research Grant Expenditure,RE- Quality Research (QR),Aston University,98793554,981215.78,Research Grant Expenditure
BEIS,UKRI - Research England,18/08/2020,Research Grant Expenditure,RE- Quality Research (QR),University of Bath,98793555,2789780.78,Research Grant Expenditure
BEIS,UKRI - Research England,18/08/2020,Research Grant Expenditure,RE- Quality Research (QR),Bath Spa University,98793556,169296.72,Research Grant Expenditure
BEIS,UKRI - Research England,18/08/2020,Research Grant Expenditure,RE- Quality Research (QR),University of Bedfordshire,98793557,368301.56,Research Grant Expenditure
BEIS,UKRI - Research England,18/08/2020,Research Grant Expenditure,RE- Quality Research (QR),Birkbeck College,98793558,1566333.28,Research Grant Expenditure
BEIS,UKRI - Research England,18/08/2020,Research Grant Expenditure,RE- Quality Research (QR),University of Birmingham,98793559,6336277.66,Research Grant Expenditure
BEIS,UKRI - Research England,18/08/2020,Research Grant Expenditure,RE- Quality Research (QR),Birmingham City University,98793560,384384.84,Research Grant Expenditure
BEIS,UKRI - Research England,18/08/2020,Research Grant Expenditure,RE- Quality Research (QR),"Bishop Grosseteste University College, Lincoln",98793561,13006.25,Research Grant Expenditure
BEIS,UKRI - Research England,18/08/2020,Research Grant Expenditure,RE- Quality Research (QR),University of Bolton,98793562,76131.56,Research Grant Expenditure
BEIS,UKRI - Research England,18/08/2020,Research Grant Expenditure,RE- Quality Research (QR),Bournemouth University,98793563,498594.69,Research Grant Expenditure
BEIS,UKRI - Research England,18/08/2020,Research Grant Expenditure,RE- Quality Research (QR),University of Bradford,98793564,589052.50,Research Grant Expenditure
BEIS,UKRI - Research England,18/08/2020,Research Grant Expenditure,RE- Quality Research (QR),University of Brighton,98793565,785852.81,Research Grant Expenditure
BEIS,UKRI - Research England,18/08/2020,Research Grant Expenditure,RE- Quality Research (QR),University of Bristol,98793566,7400762.81,Research Grant Expenditure
BEIS,UKRI - Research England,18/08/2020,Research Grant Expenditure,RE- Quality Research (QR),Brunel University London,98793567,1779235.78,Research Grant Expenditure
BEIS,UKRI - Research England,18/08/2020,Research Grant Expenditure,RE- Quality Research (QR),Buckinghamshire New University (Bucks New University),98793568,35802.81,Research Grant Expenditure
BEIS,UKRI - Research England,18/08/2020,Research Grant Expenditure,RE- Quality Research (QR),University of Cambridge,98793569,19840474.53,Research Grant Expenditure
BEIS,UKRI - Research England,18/08/2020,Research Grant Expenditure,RE- Quality Research (QR),Canterbury Christ Church University,98793570,345836.09,Research Grant Expenditure
BEIS,UKRI - Research England,18/08/2020,Research Grant Expenditure,RE- Quality Research (QR),University of Central Lancashire,98793571,625329.38,Research Grant Expenditure
BEIS,UKRI - Research England,18/08/2020,Research Grant Expenditure,RE- Quality Research (QR),University of Chester,98793572,231265.78,Research Grant Expenditure
BEIS,UKRI - Research England,18/08/2020,Research Grant Expenditure,RE- Quality Research (QR),University of Chichester,98793573,133172.97,Research Grant Expenditure
BEIS,UKRI - Research England,18/08/2020,Research Grant Expenditure,RE- Quality Research (QR),"City, University of London",98793574,1651433.28,Research Grant Expenditure
BEIS,UKRI - Research England,18/08/2020,Research Grant Expenditure,RE- Quality Research (QR),Courtauld Institute of Art,98793575,248549.38,Research Grant Expenditure
BEIS,UKRI - Research England,18/08/2020,Research Grant Expenditure,RE- Quality Research (QR),Coventry University,98793576,581816.88,Research Grant Expenditure
BEIS,UKRI - Research England,18/08/2020,Research Grant Expenditure,RE- Quality Research (QR),Cranfield University,98793577,1588681.56,Research Grant Expenditure
BEIS,UKRI - Research England,18/08/2020,Research Grant Expenditure,RE- Quality Research (QR),University for the Creative Arts,98793578,65513.91,Research Grant Expenditure
BEIS,UKRI - Research England,18/08/2020,Research Grant Expenditure,RE- Quality Research (QR),University of Cumbria,98793579,41182.34,Research Grant Expenditure
BEIS,UKRI - Research England,18/08/2020,Research Grant Expenditure,RE- Quality Research (QR),De Montfort University,98793580,612258.44,Research Grant Expenditure
BEIS,UKRI - Research England,18/08/2020,Research Grant Expenditure,RE- Quality Research (QR),University of Derby,98793581,161958.75,Research Grant Expenditure
BEIS,UKRI - Research England,18/08/2020,Research Grant Expenditure,RE- Quality Research (QR),University of Durham,98793582,3916937.34,Research Grant Expenditure
BEIS,UKRI - Research England,18/08/2020,Research Grant Expenditure,RE- Quality Research (QR),University of East Anglia,98793583,2563356.09,Research Grant Expenditure
BEIS,UKRI - Research England,18/08/2020,Research Grant Expenditure,RE- Quality Research (QR),University of East London,98793584,425270.78,Research Grant Expenditure
BEIS,UKRI - Research England,18/08/2020,Research Grant Expenditure,RE- Quality Research (QR),Edge Hill University College,98793585,215839.22,Research Grant Expenditure
BEIS,UKRI - Research England,18/08/2020,Research Grant Expenditure,RE- Quality Research (QR),University of Essex,98793586,1371757.19,Research Grant Expenditure
BEIS,UKRI - Research England,18/08/2020,Research Grant Expenditure,RE- Quality Research (QR),University of Exeter,98793587,3928315.31,Research Grant Expenditure
BEIS,UKRI - Research England,18/08/2020,Research Grant Expenditure,RE- Quality Research (QR),Falmouth University,98793588,63212.34,Research Grant Expenditure
BEIS,UKRI - Research England,18/08/2020,Research Grant Expenditure,RE- Quality Research (QR),University of Gloucestershire,98793589,119214.84,Research Grant Expenditure
BEIS,UKRI - Research England,18/08/2020,Research Grant Expenditure,RE- Quality Research (QR),Goldsmiths College University of London,98793590,941341.41,Research Grant Expenditure
BEIS,UKRI - Research England,18/08/2020,Research Grant Expenditure,RE- Quality Research (QR),University of Greenwich,98793591,552734.38,Research Grant Expenditure
BEIS,UKRI - Research England,18/08/2020,Research Grant Expenditure,RE- Quality Research (QR),Guildhall School of Music & Drama,98793592,71792.19,Research Grant Expenditure
BEIS,UKRI - Research England,18/08/2020,Research Grant Expenditure,RE- Quality Research (QR),Harper Adams University College,98793593,75224.53,Research Grant Expenditure
BEIS,UKRI - Research England,18/08/2020,Research Grant Expenditure,RE- Quality Research (QR),University of Hertfordshire,98793594,622219.38,Research Grant Expenditure
BEIS,UKRI - Research England,18/08/2020,Research Grant Expenditure,RE- Quality Research (QR),University of Huddersfield,98793595,882284.06,Research Grant Expenditure
BEIS,UKRI - Research England,18/08/2020,Research Grant Expenditure,RE- Quality Research (QR),University of Hull,98793596,1197235.94,Research Grant Expenditure
BEIS,UKRI - Research England,18/08/2020,Research Grant Expenditure,RE- Quality Research (QR),Imperial College Science Tech & Med,98793597,14818088.75,Research Grant Expenditure
BEIS,UKRI - Research England,18/08/2020,Research Grant Expenditure,RE- Quality Research (QR),Institute of Cancer Research,98793598,2493016.88,Research Grant Expenditure
BEIS,UKRI - Research England,18/08/2020,Research Grant Expenditure,RE- Quality Research (QR),Keele University,98793599,1094084.38,Research Grant Expenditure
BEIS,UKRI - Research England,18/08/2020,Research Grant Expenditure,RE- Quality Research (QR),University of Kent,98793600,2264138.28,Research Grant Expenditure
BEIS,UKRI - Research England,18/08/2020,Research Grant Expenditure,RE- Quality Research (QR),King's College London,98793601,11194810.63,Research Grant Expenditure
BEIS,UKRI - Research England,18/08/2020,Research Grant Expenditure,RE- Quality Research (QR),Kingston University,98793602,505363.44,Research Grant Expenditure
BEIS,UKRI - Research England,18/08/2020,Research Grant Expenditure,RE- Quality Research (QR),Lancaster University,98793603,3191075.94,Research Grant Expenditure
BEIS,UKRI - Research England,18/08/2020,Research Grant Expenditure,RE- Quality Research (QR),University of Leeds,98793604,7042873.44,Research Grant Expenditure
BEIS,UKRI - Research England,18/08/2020,Research Grant Expenditure,RE- Quality Research (QR),Leeds Beckett University,98793605,384519.38,Research Grant Expenditure
BEIS,UKRI - Research England,18/08/2020,Research Grant Expenditure,RE- Quality Research (QR),Leeds Trinity University,98793606,21988.75,Research Grant Expenditure
BEIS,UKRI - Research England,18/08/2020,Research Grant Expenditure,RE- Quality Research (QR),University of Leicester,98793607,2950616.09,Research Grant Expenditure
BEIS,UKRI - Research England,18/08/2020,Research Grant Expenditure,RE- Quality Research (QR),University of Lincoln,98793608,573141.09,Research Grant Expenditure
BEIS,UKRI - Research England,18/08/2020,Research Grant Expenditure,RE- Quality Research (QR),University of Liverpool,98793609,4623540.00,Research Grant Expenditure
BEIS,UKRI - Research England,18/08/2020,Research Grant Expenditure,RE- Quality Research (QR),Liverpool Hope University,98793610,171246.41,Research Grant Expenditure
BEIS,UKRI - Research England,18/08/2020,Research Grant Expenditure,RE- Quality Research (QR),Liverpool John Moores University,98793611,938834.53,Research Grant Expenditure
BEIS,UKRI - Research England,18/08/2020,Research Grant Expenditure,RE- Quality Research (QR),Liverpool School of Tropical Medicine,98793612,1080311.41,Research Grant Expenditure
BEIS,UKRI - Research England,18/08/2020,Research Grant Expenditure,RE- Quality Research (QR),University College London,98793613,22584987.34,Research Grant Expenditure
BEIS,UKRI - Research England,18/08/2020,Research Grant Expenditure,RE- Quality Research (QR),University of London,98793614,1341.88,Research Grant Expenditure
BEIS,UKRI - Research England,18/08/2020,Research Grant Expenditure,RE- Quality Research (QR),London Business School,98793615,500452.34,Research Grant Expenditure
BEIS,UKRI - Research England,18/08/2020,Research Grant Expenditure,RE- Quality Research (QR),London Metropolitan University,98793616,182990.78,Research Grant Expenditure
BEIS,UKRI - Research England,18/08/2020,Research Grant Expenditure,RE- Quality Research (QR),London School of Economics and Political Science,98793617,2872593.28,Research Grant Expenditure
BEIS,UKRI - Research England,18/08/2020,Research Grant Expenditure,RE- Quality Research (QR),London School of Hygiene & Tropical Medicine,98793618,3118626.72,Research Grant Expenditure
BEIS,UKRI - Research England,18/08/2020,Research Grant Expenditure,RE- Quality Research (QR),London South Bank University,98793619,306572.50,Research Grant Expenditure
BEIS,UKRI - Research England,18/08/2020,Research Grant Expenditure,RE- Quality Research (QR),Loughborough University,98793620,2832924.38,Research Grant Expenditure
BEIS,UKRI - Research England,18/08/2020,Research Grant Expenditure,RE- Quality Research (QR),The University of Manchester,98793621,10936512.03,Research Grant Expenditure
BEIS,UKRI - Research England,18/08/2020,Research Grant Expenditure,RE- Quality Research (QR),Manchester Metropolitan University,98793622,1060314.53,Research Grant Expenditure
BEIS,UKRI - Research England,18/08/2020,Research Grant Expenditure,RE- Quality Research (QR),Middlesex University,98793623,712565.31,Research Grant Expenditure
BEIS,UKRI - Research England,18/08/2020,Research Grant Expenditure,RE- Quality Research (QR),Newcastle University,98793624,5403426.56,Research Grant Expenditure
BEIS,UKRI - Research England,18/08/2020,Research Grant Expenditure,RE- Quality Research (QR),Newman University,98793625,32155.47,Research Grant Expenditure
BEIS,UKRI - Research England,18/08/2020,Research Grant Expenditure,RE- Quality Research (QR),University of Northampton,98793626,105494.53,Research Grant Expenditure
BEIS,UKRI - Research England,18/08/2020,Research Grant Expenditure,RE- Quality Research (QR),Northumbria University,98793627,1066955.78,Research Grant Expenditure
BEIS,UKRI - Research England,18/08/2020,Research Grant Expenditure,RE- Quality Research (QR),Norwich University of the Arts,98793628,20292.34,Research Grant Expenditure
BEIS,UKRI - Research England,18/08/2020,Research Grant Expenditure,RE- Quality Research (QR),Nottingham Trent University,98793629,733291.09,Research Grant Expenditure
BEIS,UKRI - Research England,18/08/2020,Research Grant Expenditure,RE- Quality Research (QR),University of Nottingham,98793630,7796524.69,Research Grant Expenditure
BEIS,UKRI - Research England,18/08/2020,Research Grant Expenditure,RE- Quality Research (QR),Open University,98793631,1390827.50,Research Grant Expenditure
BEIS,UKRI - Research England,18/08/2020,Research Grant Expenditure,RE- Quality Research (QR),"SOAS, University of London",98793632,886224.53,Research Grant Expenditure
BEIS,UKRI - Research England,18/08/2020,Research Grant Expenditure,RE- Quality Research (QR),University of Oxford,98793633,22921193.44,Research Grant Expenditure
BEIS,UKRI - Research England,18/08/2020,Research Grant Expenditure,RE- Quality Research (QR),Oxford Brookes University,98793634,793612.34,Research Grant Expenditure
BEIS,UKRI - Research England,18/08/2020,Research Grant Expenditure,RE- Quality Research (QR),University of Plymouth,98793635,1315547.81,Research Grant Expenditure
BEIS,UKRI - Research England,18/08/2020,Research Grant Expenditure,RE- Quality Research (QR),University of Portsmouth,98793636,931045.31,Research Grant Expenditure
BEIS,UKRI - Research England,18/08/2020,Research Grant Expenditure,RE- Quality Research (QR),Queen Mary University of London,98793637,5101595.94,Research Grant Expenditure
BEIS,UKRI - Research England,18/08/2020,Research Grant Expenditure,RE- Quality Research (QR),University of Reading,98793638,2804546.56,Research Grant Expenditure
BEIS,UKRI - Research England,18/08/2020,Research Grant Expenditure,RE- Quality Research (QR),Roehampton University (University of Roehampton),98793639,562681.88,Research Grant Expenditure
BEIS,UKRI - Research England,18/08/2020,Research Grant Expenditure,RE- Quality Research (QR),Rose Bruford College of Theatre and Performance,98793640,10237.66,Research Grant Expenditure
BEIS,UKRI - Research England,18/08/2020,Research Grant Expenditure,RE- Quality Research (QR),Royal Academy of Music,98793641,53438.28,Research Grant Expenditure
BEIS,UKRI - Research England,18/08/2020,Research Grant Expenditure,RE- Quality Research (QR),Royal Agricultural University,98793642,8540.31,Research Grant Expenditure
BEIS,UKRI - Research England,18/08/2020,Research Grant Expenditure,RE- Quality Research (QR),The Royal Central School of Speech and Drama,98793643,103349.69,Research Grant Expenditure
BEIS,UKRI - Research England,18/08/2020,Research Grant Expenditure,RE- Quality Research (QR),Royal College of Art,98793644,364674.06,Research Grant Expenditure
BEIS,UKRI - Research England,18/08/2020,Research Grant Expenditure,RE- Quality Research (QR),Royal College of Music,98793645,68113.91,Research Grant Expenditure
BEIS,UKRI - Research England,18/08/2020,Research Grant Expenditure,RE- Quality Research (QR),Royal Holloway & Bedford New C,98793646,2024751.41,Research Grant Expenditure
BEIS,UKRI - Research England,18/08/2020,Research Grant Expenditure,RE- Quality Research (QR),Royal Northern College of Music,98793647,49308.75,Research Grant Expenditure
BEIS,UKRI - Research England,18/08/2020,Research Grant Expenditure,RE- Quality Research (QR),Royal Veterinary College,98793648,711937.03,Research Grant Expenditure
BEIS,UKRI - Research England,18/08/2020,Research Grant Expenditure,RE- Quality Research (QR),University of Salford,98793649,632416.09,Research Grant Expenditure
BEIS,UKRI - Research England,18/08/2020,Research Grant Expenditure,RE- Quality Research (QR),University of Sheffield,98793650,6734456.88,Research Grant Expenditure
BEIS,UKRI - Research England,18/08/2020,Research Grant Expenditure,RE- Quality Research (QR),Sheffield Hallam University,98793651,764851.72,Research Grant Expenditure
BEIS,UKRI - Research England,18/08/2020,Research Grant Expenditure,RE- Quality Research (QR),Solent University Ltd,98793652,26540.78,Research Grant Expenditure
BEIS,UKRI - Research England,18/08/2020,Research Grant Expenditure,RE- Quality Research (QR),University of Southampton,98793653,7190978.75,Research Grant Expenditure
BEIS,UKRI - Research England,18/08/2020,Research Grant Expenditure,RE- Quality Research (QR),University of St Mark & St John,98793654,421.88,Research Grant Expenditure
BEIS,UKRI - Research England,18/08/2020,Research Grant Expenditure,RE- Quality Research (QR),St Marys University,98793655,75538.75,Research Grant Expenditure
BEIS,UKRI - Research England,18/08/2020,Research Grant Expenditure,RE- Quality Research (QR),St George's University of London,98793656,414518.28,Research Grant Expenditure
BEIS,UKRI - Research England,18/08/2020,Research Grant Expenditure,RE- Quality Research (QR),Staffordshire University,98793657,140285.78,Research Grant Expenditure
BEIS,UKRI - Research England,18/08/2020,Research Grant Expenditure,RE- Quality Research (QR),University of Suffolk Ltd,98793658,1276.41,Research Grant Expenditure
BEIS,UKRI - Research England,18/08/2020,Research Grant Expenditure,RE- Quality Research (QR),University of Sunderland,98793659,212118.59,Research Grant Expenditure
BEIS,UKRI - Research England,18/08/2020,Research Grant Expenditure,RE- Quality Research (QR),University of Surrey,98793660,2373688.44,Research Grant Expenditure
BEIS,UKRI - Research England,18/08/2020,Research Grant Expenditure,RE- Quality Research (QR),University of Sussex,98793661,2333495.47,Research Grant Expenditure
BEIS,UKRI - Research England,18/08/2020,Research Grant Expenditure,RE- Quality Research (QR),Teesside University,98793662,246600.31,Research Grant Expenditure
BEIS,UKRI - Research England,18/08/2020,Research Grant Expenditure,RE- Quality Research (QR),Trinity Laban Conservatoire of Music and Dance,98793663,38988.75,Research Grant Expenditure
BEIS,UKRI - Research England,18/08/2020,Research Grant Expenditure,RE- Quality Research (QR),University of Warwick,98793664,5771242.34,Research Grant Expenditure
BEIS,UKRI - Research England,18/08/2020,Research Grant Expenditure,RE- Quality Research (QR),University of West London,98793665,58318.91,Research Grant Expenditure
BEIS,UKRI - Research England,18/08/2020,Research Grant Expenditure,RE- Quality Research (QR),University of the West of England,98793666,876971.72,Research Grant Expenditure
BEIS,UKRI - Research England,18/08/2020,Research Grant Expenditure,RE- Quality Research (QR),University of Westminster,98793667,713519.84,Research Grant Expenditure
BEIS,UKRI - Research England,18/08/2020,Research Grant Expenditure,RE- Quality Research (QR),University of Winchester,98793668,131721.41,Research Grant Expenditure
BEIS,UKRI - Research England,18/08/2020,Research Grant Expenditure,RE- Quality Research (QR),University of Wolverhampton,98793669,304381.72,Research Grant Expenditure
BEIS,UKRI - Research England,18/08/2020,Research Grant Expenditure,RE- Quality Research (QR),University of Worcester,98793670,151037.03,Research Grant Expenditure
BEIS,UKRI - Research England,18/08/2020,Research Grant Expenditure,RE- Quality Research (QR),Writtle College,98793671,6434.69,Research Grant Expenditure
BEIS,UKRI - Research England,18/08/2020,Research Grant Expenditure,RE- Quality Research (QR),University of York,98793672,3723952.50,Research Grant Expenditure
BEIS,UKRI - Research England,18/08/2020,Research Grant Expenditure,RE- Quality Research (QR),York St John University,98793673,86981.72,Research Grant Expenditure
BEIS,UKRI - Research England,18/08/2020,Research Grant Expenditure,RE - HEIF (NPIF),Anglia Ruskin University,98793674,284929.92,Research Grant Expenditure
BEIS,UKRI - Research England,18/08/2020,Research Grant Expenditure,RE - HEIF (NPIF),University of the Arts London,98793675,293749.83,Research Grant Expenditure
BEIS,UKRI - Research England,18/08/2020,Research Grant Expenditure,RE - HEIF (NPIF),Aston University,98793676,114734.73,Research Grant Expenditure
BEIS,UKRI - Research England,18/08/2020,Research Grant Expenditure,RE - HEIF (NPIF),University of Bath,98793677,129803.85,Research Grant Expenditure
BEIS,UKRI - Research England,18/08/2020,Research Grant Expenditure,RE - HEIF (NPIF),University of Bedfordshire,98793678,49912.50,Research Grant Expenditure
BEIS,UKRI - Research England,18/08/2020,Research Grant Expenditure,RE - HEIF (NPIF),University of Birmingham,98793679,316588.80,Research Grant Expenditure
BEIS,UKRI - Research England,18/08/2020,Research Grant Expenditure,RE - HEIF (NPIF),Birmingham City University,98793680,76816.74,Research Grant Expenditure
BEIS,UKRI - Research England,18/08/2020,Research Grant Expenditure,RE - HEIF (NPIF),Bournemouth University,98793681,51303.45,Research Grant Expenditure
BEIS,UKRI - Research England,18/08/2020,Research Grant Expenditure,RE - HEIF (NPIF),University of Bradford,98793682,53327.01,Research Grant Expenditure
BEIS,UKRI - Research England,18/08/2020,Research Grant Expenditure,RE - HEIF (NPIF),University of Brighton,98793683,104852.22,Research Grant Expenditure
BEIS,UKRI - Research England,18/08/2020,Research Grant Expenditure,RE - HEIF (NPIF),University of Bristol,98793684,316588.80,Research Grant Expenditure
BEIS,UKRI - Research England,18/08/2020,Research Grant Expenditure,RE - HEIF (NPIF),Brunel University London,98793685,95785.14,Research Grant Expenditure
BEIS,UKRI - Research England,18/08/2020,Research Grant Expenditure,RE - HEIF (NPIF),Buckinghamshire New University (Bucks New University),98793686,25476.00,Research Grant Expenditure
BEIS,UKRI - Research England,18/08/2020,Research Grant Expenditure,RE - HEIF (NPIF),University of Cambridge,98793687,316588.80,Research Grant Expenditure
BEIS,UKRI - Research England,18/08/2020,Research Grant Expenditure,RE - HEIF (NPIF),Canterbury Christ Church University,98793688,43249.47,Research Grant Expenditure
BEIS,UKRI - Research England,18/08/2020,Research Grant Expenditure,RE - HEIF (NPIF),University of Central Lancashire,98793689,209408.76,Research Grant Expenditure
BEIS,UKRI - Research England,18/08/2020,Research Grant Expenditure,RE - HEIF (NPIF),University of Chester,98793690,77067.87,Research Grant Expenditure
BEIS,UKRI - Research England,18/08/2020,Research Grant Expenditure,RE - HEIF (NPIF),University of Chichester,98793691,22515.57,Research Grant Expenditure
BEIS,UKRI - Research England,18/08/2020,Research Grant Expenditure,RE - HEIF (NPIF),"City, University of London",98793692,174017.91,Research Grant Expenditure
BEIS,UKRI - Research England,18/08/2020,Research Grant Expenditure,RE - HEIF (NPIF),The Conservatoire for Dance and Drama,98793693,35232.78,Research Grant Expenditure
BEIS,UKRI - Research England,18/08/2020,Research Grant Expenditure,RE - HEIF (NPIF),Coventry University,98793694,195399.60,Research Grant Expenditure
BEIS,UKRI - Research England,18/08/2020,Research Grant Expenditure,RE - HEIF (NPIF),Cranfield University,98793695,316588.80,Research Grant Expenditure
BEIS,UKRI - Research England,18/08/2020,Research Grant Expenditure,RE - HEIF (NPIF),De Montfort University,98793696,64503.45,Research Grant Expenditure
BEIS,UKRI - Research England,18/08/2020,Research Grant Expenditure,RE - HEIF (NPIF),University of Derby,98793697,86209.86,Research Grant Expenditure
BEIS,UKRI - Research England,18/08/2020,Research Grant Expenditure,RE - HEIF (NPIF),University of Durham,98793698,251916.72,Research Grant Expenditure
BEIS,UKRI - Research England,18/08/2020,Research Grant Expenditure,RE - HEIF (NPIF),University of East Anglia,98793699,254094.39,Research Grant Expenditure
BEIS,UKRI - Research England,18/08/2020,Research Grant Expenditure,RE - HEIF (NPIF),University of East London,98793700,22471.02,Research Grant Expenditure
BEIS,UKRI - Research England,18/08/2020,Research Grant Expenditure,RE - HEIF (NPIF),Edge Hill University College,98793701,24080.10,Research Grant Expenditure
BEIS,UKRI - Research England,18/08/2020,Research Grant Expenditure,RE - HEIF (NPIF),University of Essex,98793702,251939.16,Research Grant Expenditure
BEIS,UKRI - Research England,18/08/2020,Research Grant Expenditure,RE - HEIF (NPIF),University of Exeter,98793703,311866.83,Research Grant Expenditure
BEIS,UKRI - Research England,18/08/2020,Research Grant Expenditure,RE - HEIF (NPIF),University of Gloucestershire,98793704,39113.58,Research Grant Expenditure
BEIS,UKRI - Research England,18/08/2020,Research Grant Expenditure,RE - HEIF (NPIF),Goldsmiths College University of London,98793705,42370.68,Research Grant Expenditure
BEIS,UKRI - Research England,18/08/2020,Research Grant Expenditure,RE - HEIF (NPIF),University of Greenwich,98793706,180798.75,Research Grant Expenditure
BEIS,UKRI - Research England,18/08/2020,Research Grant Expenditure,RE - HEIF (NPIF),Guildhall School of Music & Drama,98793707,44982.30,Research Grant Expenditure
BEIS,UKRI - Research England,18/08/2020,Research Grant Expenditure,RE - HEIF (NPIF),Harper Adams University College,98793708,33058.41,Research Grant Expenditure
BEIS,UKRI - Research England,18/08/2020,Research Grant Expenditure,RE - HEIF (NPIF),Hartpury University,98793709,20804.52,Research Grant Expenditure
BEIS,UKRI - Research England,18/08/2020,Research Grant Expenditure,RE - HEIF (NPIF),University of Hertfordshire,98793710,313379.22,Research Grant Expenditure
BEIS,UKRI - Research England,18/08/2020,Research Grant Expenditure,RE - HEIF (NPIF),University of Huddersfield,98793711,108426.78,Research Grant Expenditure
BEIS,UKRI - Research England,18/08/2020,Research Grant Expenditure,RE - HEIF (NPIF),University of Hull,98793712,110560.56,Research Grant Expenditure
BEIS,UKRI - Research England,18/08/2020,Research Grant Expenditure,RE - HEIF (NPIF),Imperial College Science Tech & Med,98793713,316588.80,Research Grant Expenditure
BEIS,UKRI - Research England,18/08/2020,Research Grant Expenditure,RE - HEIF (NPIF),Institute of Cancer Research,98793714,239046.72,Research Grant Expenditure
BEIS,UKRI - Research England,18/08/2020,Research Grant Expenditure,RE - HEIF (NPIF),Keele University,98793715,108354.18,Research Grant Expenditure
BEIS,UKRI - Research England,18/08/2020,Research Grant Expenditure,RE - HEIF (NPIF),University of Kent,98793716,113980.02,Research Grant Expenditure
BEIS,UKRI - Research England,18/08/2020,Research Grant Expenditure,RE - HEIF (NPIF),King's College London,98793717,316588.80,Research Grant Expenditure
BEIS,UKRI - Research England,18/08/2020,Research Grant Expenditure,RE - HEIF (NPIF),Kingston University,98793718,39820.11,Research Grant Expenditure
BEIS,UKRI - Research England,18/08/2020,Research Grant Expenditure,RE - HEIF (NPIF),Lamda Ltd (London Academy of Music & Dramatic Art),98793719,109608.84,Research Grant Expenditure
BEIS,UKRI - Research England,18/08/2020,Research Grant Expenditure,RE - HEIF (NPIF),Lancaster University,98793720,284929.92,Research Grant Expenditure
BEIS,UKRI - Research England,18/08/2020,Research Grant Expenditure,RE - HEIF (NPIF),University of Leeds,98793721,316588.80,Research Grant Expenditure
BEIS,UKRI - Research England,18/08/2020,Research Grant Expenditure,RE - HEIF (NPIF),Leeds Beckett University,98793722,232951.29,Research Grant Expenditure
BEIS,UKRI - Research England,18/08/2020,Research Grant Expenditure,RE - HEIF (NPIF),University of Leicester,98793723,316588.80,Research Grant Expenditure
BEIS,UKRI - Research England,18/08/2020,Research Grant Expenditure,RE - HEIF (NPIF),University of Lincoln,98793724,98726.43,Research Grant Expenditure
BEIS,UKRI - Research England,18/08/2020,Research Grant Expenditure,RE - HEIF (NPIF),University of Liverpool,98793725,316588.80,Research Grant Expenditure
BEIS,UKRI - Research England,18/08/2020,Research Grant Expenditure,RE - HEIF (NPIF),Liverpool Hope University,98793726,32808.27,Research Grant Expenditure
BEIS,UKRI - Research England,18/08/2020,Research Grant Expenditure,RE - HEIF (NPIF),Liverpool John Moores University,98793727,102737.91,Research Grant Expenditure
BEIS,UKRI - Research England,18/08/2020,Research Grant Expenditure,RE - HEIF (NPIF),Liverpool School of Tropical Medicine,98793728,254841.84,Research Grant Expenditure
BEIS,UKRI - Research England,18/08/2020,Research Grant Expenditure,RE - HEIF (NPIF),University College London,98793729,316588.80,Research Grant Expenditure
BEIS,UKRI - Research England,18/08/2020,Research Grant Expenditure,RE - HEIF (NPIF),London Business School,98793730,316588.80,Research Grant Expenditure
BEIS,UKRI - Research England,18/08/2020,Research Grant Expenditure,RE - HEIF (NPIF),London Metropolitan University,98793731,67945.02,Research Grant Expenditure
BEIS,UKRI - Research England,18/08/2020,Research Grant Expenditure,RE - HEIF (NPIF),London School of Economics and Political Science,98793732,316588.80,Research Grant Expenditure
BEIS,UKRI - Research England,18/08/2020,Research Grant Expenditure,RE - HEIF (NPIF),London School of Hygiene & Tropical Medicine,98793733,131348.58,Research Grant Expenditure
BEIS,UKRI - Research England,18/08/2020,Research Grant Expenditure,RE - HEIF (NPIF),London South Bank University,98793734,50697.90,Research Grant Expenditure
BEIS,UKRI - Research England,18/08/2020,Research Grant Expenditure,RE - HEIF (NPIF),Loughborough University,98793735,316588.80,Research Grant Expenditure
